Workbook

Sheet Instructions
D1: Value-Added Dairy Processing Decision Making Tool: Bottled Milk
A4: Created by:
D5: Caitlin Zaring Weir, Post Doctoral Fellow
D6: Liz Eckelkamp, Associate Professor & State Dairy Extension Specialist
D7: University of Tennessee, Department of Animal Science
A9: This Excel workbook is designed to provide producers with financial and processing information to support decisions about starting or expanding a bottled milk value-added dairy operation. This tool is intended to be used for investment planning considerations, and should not be used for a day to day processing guideline.
A14: Information you'll need to fill out the tool:
A15: Milk Production and Milk Quality
A16: Milk Costs and Packaging
A17: Costs and Pricing
A18: Equipment
A20: How to Use this Workbook
A21: 1. Make sure you enable external content/macros.
A22: 2. Click the start button below to bring you to the orange "Inputs" tab.
A23: 3. Fill in the grey-shaded cells - use or adjust to the pre-filled data
A24: 4. Use the next and see buttons to navigate through the green tabs: Outputs, Suggested Equipment, and Equipment List
A25: 5. Reference the personalized results and suggestions generated from your farm's data
A26: *Outputs require bottling 7 days per week
A27: *For explanations of the specific reference sheets, refer to the sheet or reference the user guide.
A29: The grey cells contain averages or benchmarks from a comprehensive survey of Tennessee value-added dairies. These can be modified to better fit your operation.
A32: To reset the Inputs screen's values back to the default, press the reset button.
A36: To clear the Inputs screen's values, press the clear button.
A41: For questions about this tool or the Southeast Dairy Business Innovation Initiative (SDBII) please reference www.sdbii.tennessee.edu or contact:
A43: Liz Eckelkamp
A44: eeckelka@utk.edu
A45: (865)-974-8167

Sheet Inputs
A1: The grey cells have data entered that can be used or adjusted to better fit your operation. The pre-populated data consists of averages or benchmarks provided by a comprehensive survey of Tennessee value-added dairies.
A3: Herd and Milk Production Related Information | C3: Assumed Fat Percentages within Components
C4: *If you test components, you can adjust fat percentages, otherwise, assume these fat percentages
A5: Herd Size - All Cows | B5: 300 | D5: Fat Content
A6: Average production per animal per day | B6: 80 | C6: Cream | D6: 0.4
A7: Average fat% | B7: 0.0405 | C7: Skim | D7: 0.0005
A8: Average protein % | B8: 0.038
A9: How many months do you milk each year | B9: 12
A10: What percentage of your herd do you intend to process milk from? | B10: 0.2
A11: How long do you intend to process milk (years)? | B11: 20
A14: Desired Products (in %)
A15: Standardized Whole Milk | B15: 0.25
A16: Standardized Reduced Fat Milk | B16: 0
A17: Standardized Lowfat Milk | B17: 0
A18: Standardized Skim Milk | B18: 0.25
A19: Creamline Milk (non-standardized & non-homogenized) | B19: 0.5
A20: Total Non-Standardized Product | B20: =B19 -> 0.5
A21: Total Standardized Product | B21: =SUM(B15:B18) -> 0.5
A22: =IF(B21+B20=100%,'Standardized Milk'!I52,IF(B21+B20>100%,'Standardized Milk'!I50,IF(B21+B20<100%,'Standardized Milk'!I51,""))) -> All your raw product has been used | B22: =IF(A22='Standardized Milk'!I51,100%-B21-B20,"") -> 
A23: =IF(B21>=1%,"You will need a Separator and Homogenizer","You do NOT need a Separator and Homogenizer") -> You will need a Separator and Homogenizer
A26: Desired Serving Sizes (in %)
A27: Gallons | B27: 0.25
A28: Half Gallons | B28: 0.25
A29: Quarts | B29: 0.25
A30: Pints | B30: 0.25
A31: Total percent used: Must equal 100% | B31: =B27+B28+B29+B30 -> 1
A34: Related Costs
A35: Labor Cost in CWT | B35: 2.71 | C35: 0
A36: Cost to Build Facility | B36: 220857
A37: Annual Utilities Costs: electric, water, sewage, gas | B37: 40438
A38: Annual Other Costs: trash, packaging, cleaning, processing, other | B38: 61899
A39: Cost to Produce Raw Milk (in CWT) | B39: 25.68
A40: Revenue Streams | C40: Suggested Price Adjustments based on Retail Market Values (August 2025)
A41: Mailbox Milk Price (in CWT) | B41: 23.23
A42: Desired Price for Gallons | B42: 5.16 | C42: Gallons | D42: ='Milk Pricing'!D210 -> 0.0396638075
A43: Desired Price for Half Gallons | B43: 4.96 | C43: Half Gallons | D43: ='Milk Pricing'!E210 -> 1
A44: Desired Price for Quarts | B44: 2.85 | C44: Quarts | D44: ='Milk Pricing'!F210 -> -0.4251850146
A45: Desired Price for Pints | B45: 1.64 | C45: Pints | D45: ='Milk Pricing'!G210 -> -0.6689142639
A48: Major Bottling Equipment Pieces: Entered into 'Your Choice Equipment List' *Please Select your desired equipment from the dropdown list. If you do not want an equipment item, select "Not Applicable". If you have a quoted price for equipment, select "Quoted" and enter the price, capcity, and units of capacity.
C49: Price | D49: Capacity # | E49: Capacity Units to Enter in "Capacity #"
A50: Pasteurizers (Vat) | B50: Quoted Vat Pasteurizer | C50: 28000 | D50: 201 | E50: =IF(B50="Quoted Vat Pasteurizer","Gallons",IF(B50="","","No Required Input ")) -> Gallons
A51: In-Line Pasteurizer (HTST) | B51: Not Applicable | E51: =IF(B51="Quoted In-Line Pasteurizer","Gallons per hour (GPH)",IF(B51="","","No Required Input ")) -> No Required Input
A52: Separator | B52: Quoted Separator | C52: 56500 | D52: 300 | E52: =IF(B52="Quoted Separator","Liters per hour (L/h)",IF(B52="","","No Required Input ")) -> Liters per hour (L/h)
A53: Homogenizer | B53: Quoted Homogenizer | C53: 10000 | D53: 300 | E53: =IF(B53="Quoted Homogenizer","Liters per hour (L/h)",IF(B53="","","No Required Input ")) -> Liters per hour (L/h)
A54: Bottler | B54: Quoted Bottler | C54: 36000 | D54: 30 | E54: =IF(B54="Quoted Bottler","Gallons per hour (GPH)",IF(B54="","","No Required Input ")) -> Gallons per hour (GPH)
A57: Additional Processing Equipment: *If you want the following equipment, either enter a quote cost or leave the inputted average. If you do not plan to have one of these equipment costs, then please replace the cost with 0. Cost represents 1 item, if you have multiple bulk tanks, then add total cost for all.
A58: Bulk Tank | B58: 5000
A59: Holding Tank/Mixing Tank | B59: 3800
A60: Clean Out of Place System | B60: 9700
A61: Chiller | B61: 12000
A62: Chart Recorder | B62: 2100
A63: Refridgerator System | B63: 9000
A64: Date Sprayer | B64: 5800
A65: Labeler | B65: 23400
A66: Antibiotic Testing System | B66: 5500
A67: Cooling Unit | B67: 6600
A68: Water Heater | B68: 7200
A69: Other Equipment 1
A70: Other Equipment 2
A71: Other Equipment 3
A72: Other Equipment 4
A73: Other Equipment 5
A74: Other Equipment 6
A75: Other Equipment 7
A76: Other Equipment 8
A77: Other Equipment 9
A78: Other Equipment 10
A81: Debt Financing
A82: Interest Rate | B82: 0.085
A83: Duration of Loan (years) | B83: 20
A84: Down Payment Percent | B84: 0.2
A85: Amount to Finance of Construction and Equipment? | B85: 0.8
A90: To reset the Inputs screen's values back to the default, press the reset button.
A94: To clear the Inputs screen's values, press the clear button.
A99: Once done entering data, click the next page button.

Sheet Outputs
A1: This 'Outputs' sheet shows how much of each milk type you can produce and your potential to grow processing capacity based on equipment package option. It calculates how many pounds of milk you need to process daily to meet your selected processing percentages.
A6: Milk Type and Quantity Amounts: *Values are presented per day
A7: Milk Type | B7: Gallons/Day | C7: Liters/Day | D7: Percent of Actual Raw Milk Used
A8: Whole Milk | B8: ='Standardized Milk'!$J$19 -> 102.9368649 | C8: ='Standardized Milk'!$F$19 -> 27.19304287 | D8: ='Standardized Milk'!$H$35 -> 0.2204081633
A9: Reduced Fat Milk | B9: ='Standardized Milk'!$J$16 -> 0 | C9: ='Standardized Milk'!$F$16 -> 0 | D9: ='Standardized Milk'!$I$35 -> 0
A10: Lowfat Milk | B10: ='Standardized Milk'!$J$13 -> 0 | C10: ='Standardized Milk'!$F$13 -> 0 | D10: ='Standardized Milk'!$J$35 -> 0
A11: Skim Milk | B11: ='Standardized Milk'!$J$10 -> 116.7570922 | C11: ='Standardized Milk'!$F$10 -> 30.84396066 | D11: ='Standardized Milk'!$K$35 -> 0.25
A12: Creamline Milk | B12: ='Standardized Milk'!$J$9 -> 233.5141843 | C12: ='Standardized Milk'!$F$9 -> 61.68792133 | D12: ='Standardized Milk'!$L$35 -> 0.5
A13: Unused Product to be Bottled
A14: Cream | B14: ='Standardized Milk'!$K$22 -> 13.82022724 | C14: ='Standardized Milk'!$G$22 -> 3.650917793
A15: Skim | B15: ='Standardized Milk'!$L$22 -> 0 | C15: ='Standardized Milk'!$H$22 -> 0
A16: Quantity | B16: Bottled Milk | C16: ="Bottled Leftover Cream: "&TEXT(Outputs!$B$14,"00.00")&" Gallons" -> Bottled Leftover Cream: 13.82 Gallons
A17: Number of Gallon: | B17: ='Standardized Milk'!$C$28 -> 113 | C17: -
A18: Number of Half Gallons: | B18: ='Standardized Milk'!$C$29 -> 226 | C18: -
A19: Number of Quarts: | B19: ='Standardized Milk'!$C$30 -> 453 | C19: ='Standardized Milk'!$C$35 -> 27
A20: Number of Pints: | B20: ='Standardized Milk'!$C$31 -> 906 | C20: ='Standardized Milk'!$C$36 -> 55
A21: Extra Pints | B21: =INT('Standardized Milk'!$C$32) -> 5 | C21: =INT('Standardized Milk'!$E$38) -> 1
A23: Growth Capacity - Based on Highest Capacity Used
B24: Capacity Utilized | C24: Can Grow APD By | D24: Can Add Extra Animals | E24: Production Limiting Equipment | F24: Max Lbs to Produce Per Day | G24: Percent of Herd's Milk Used
A25: Your Choice | B25: =MAX('Suggested Equipment'!$E$15:$E$19) -> 0.648650512 | C25: =INDEX('Suggested Equipment'!$F$15:$F$19,MATCH(B25,'Suggested Equipment'!E15:E19,0)) -> 7 lbs/day | D25: =INDEX('Suggested Equipment'!$G$15:$G$19,MATCH(B25,'Suggested Equipment'!$E$15:$E$19,0)) -> 27 cows | E25: =INDEX('Suggested Equipment'!$B$15:$B$19, MATCH(MAX('Suggested Equipment'!$E$15:$E$19), 'Suggested Equipment'!$E$15:$E$19, 0)) -> Quoted Bottler | F25: =INDEX(Equipment!$L$22:$L$81, MATCH(Outputs!$E$25, Equipment!$A$22:$A$81, 0)) -> 6192 | G25: =Equipment!$B$12/Outputs!$F$25 -> 0.648650512
A26: Most Efficient | B26: =MAX('Suggested Equipment'!$E$28:$E$31) -> 0.01052318268 | C26: =INDEX('Suggested Equipment'!$F$28:$F$31,MATCH(B26,'Suggested Equipment'!E28:E31,0)) -> 1259 lbs/day | D26: =INDEX('Suggested Equipment'!$G$28:$G$31,MATCH(B26,'Suggested Equipment'!$E$28:$E$31,0)) -> 4720 cows | E26: =INDEX('Suggested Equipment'!$B$28:$B$31, MATCH(MAX('Suggested Equipment'!$E$28:$E$31), 'Suggested Equipment'!$E$28:$E$31, 0)) -> Tetra Pak 250 (Max. 7,000 L/h) | F26: =INDEX(Equipment!$L$22:$L$81, MATCH(Outputs!$E$26, Equipment!$A$22:$A$81, 0)) -> 381675.7812 | G26: =Equipment!$B$12/Outputs!$F$26 -> 0.01052318268
A27: Most Econonomical | B27: =MAX('Suggested Equipment'!$E$40:$E$43) -> 0.0972975768 | C27: =INDEX('Suggested Equipment'!$F$40:$F$43,MATCH(B27,'Suggested Equipment'!E40:E43,0)) -> 124 lbs/day | D27: =INDEX('Suggested Equipment'!$G$40:$G$43,MATCH(B27,'Suggested Equipment'!$E$40:$E$43,0)) -> 466 cows | E27: =INDEX('Suggested Equipment'!$B$40:$B$43, MATCH(MAX('Suggested Equipment'!$E$40:$E$43), 'Suggested Equipment'!$E$40:$E$43, 0)) -> ANCO Equipment (400 gal. capacity) | F27: =INDEX(Equipment!$L$22:$L$81, MATCH(Outputs!$E$27, Equipment!$A$22:$A$81, 0)) -> 41280 | G27: =Equipment!$B$12/Outputs!$F$27 -> 0.0972975768
A28: Basic Pastuerizer and Bottler | B28: =MAX('Suggested Equipment'!$E$52:$E$53) -> 0.07783806144 | C28: =INDEX('Suggested Equipment'!$F$52:$F$53,MATCH(B28,'Suggested Equipment'!E52:E53,0)) -> 159 lbs/day | D28: =INDEX('Suggested Equipment'!$G$52:$G$53,MATCH(B28,'Suggested Equipment'!$E$52:$E$53,0)) -> 595 cows | E28: =INDEX('Suggested Equipment'!$B$52:$B$53, MATCH(MAX('Suggested Equipment'!$E$52:$E$53), 'Suggested Equipment'!$E$52:$E$53, 0)) -> ANCO Equipment (500 gal. capcity) | F28: =INDEX(Equipment!$L$22:$L$81, MATCH(Outputs!$E$28, Equipment!$A$22:$A$81, 0)) -> 51600 | G28: =Equipment!$B$12/Outputs!$F$28 -> 0.07783806144
A30: ="To process "&TEXT(Inputs!$B$10,"0%")&" of your herd's milk, you need to process "&TEXT(Equipment!$B$12,"#,##0")&" pounds per day. Based on your desired production, you will have "&TEXT(Outputs!$B$21,"0")&" extra pints of bottled milk, and "&TEXT(Outputs!$B$14,"00.00")&" gallons of unused cream that could be bottled into "&TEXT(Outputs!$C$19,"00")&" quarts and "&TEXT(Outputs!$C$20+Outputs!$C$21,"00")&" pints. Bottling this leftover cream will provide an additional "&TEXT(NPV_own!$E$63+NPV_own!$E$64,"$###,###.00")&" if pints were sold at average market price of "&TEXT('Milk Pricing'!$K$204,"$##.##")&" and quarts at "&TEXT('Milk Pricing'!$J$204,"$##.##")&"." -> To process 20% of your herd's milk, you need to process 4,016 pounds per day. Based on your desired production, you will have 5 extra pints of bottled milk, and 13.82 gallons of unused cream that could be bottled into 27 quarts and 56 pints. Bottling this leftover cream will provide an additional $174,902.88 if pints were sold at average market price of $5.05 and quarts at $7.27.
B37: To see more details about the decision tool outputs, reference suggested equipment combinations on the 'Suggested Equipment' sheet and the full list of all equipements used in this tool, sorted by processing time, on the 'Equipment List' Sheet.
A44: To save a personalized and printable report of this decision tool, click the button below. This will allow you to select where to save the PDF report and automatically open it. The report will contain a printout of the 'Inputs' page, this 'Outputs' page, the 'Suggested Equipment' page, and the 'Equipment List' page.
A51: Click the button below to return to the instructions sheet.

Sheet Print Inputs (hidden)
A1: Inputs
A2: Herd and Milk Production Related Information
A3: Herd Size - All Cows | B3: =Inputs!B5 -> 300
A4: Average production per cow per day | B4: =Inputs!B6 -> 80
A5: Average fat% | B5: =Inputs!B7 -> 0.0405
A6: Average protein % | B6: =Inputs!B8 -> 0.038
A7: How many months per year do you milk | B7: =Inputs!B9 -> 12
A8: What percentage of your herd do you intend to process milk from? | B8: =Inputs!B10 -> 0.2
A9: How long do you intend to process milk (years)? | B9: 20
A10: Fat Content of Cream | B10: =Inputs!D6 -> 0.4
A11: Fat Content of Skim | B11: =Inputs!D7 -> 0.0005
A12: Desired Products (in %)
A13: Standardized Whole Milk | B13: =Inputs!B15 -> 0.25
A14: Standardized Reduced Fat Milk | B14: =Inputs!B16 -> 0
A15: Standardized Lowfat Milk | B15: =Inputs!B17 -> 0
A16: Standardized Skim Milk | B16: =Inputs!B18 -> 0.25
A17: Creamline Milk | B17: =Inputs!B19 -> 0.5
A18: Desired Serving Sizes (in %)
A19: Gallons | B19: =Inputs!B27 -> 0.25
A20: Half Gallons | B20: =Inputs!B28 -> 0.25
A21: Quarts | B21: =Inputs!B29 -> 0.25
A22: Pints | B22: =Inputs!B30 -> 0.25
A23: Related Costs
A24: Labor Cost in CWT | B24: =Inputs!B35 -> 2.71
A25: Cost to Build Facility | B25: =Inputs!B36 -> 220857
A26: Annual Utilities: electric, water, sewage, gas | B26: =Inputs!B37 -> 40438
A27: Annual Other: trash, packaging, cleaning, processing, etc. | B27: =Inputs!B38 -> 61899
A28: Cost to Produce Raw Milk (in CWT) | B28: =Inputs!B39 -> 25.68
A29: Revenue Streams | C29: Suggested Price Adjustments based on Retail Market Values (August 2025)
A30: Mailbox Milk Price (in CWT) | B30: =Inputs!B41 -> 23.23
A31: Desired Price for Gallons | B31: =Inputs!B42 -> 5.16 | C31: Gallons | D31: ='Milk Pricing'!D210 -> 0.0396638075
A32: Desired Price for Half Gallons | B32: =Inputs!B43 -> 4.96 | C32: Half Gallons | D32: ='Milk Pricing'!E210 -> 1
A33: Desired Price for Quarts | B33: =Inputs!B44 -> 2.85 | C33: Quarts | D33: ='Milk Pricing'!F210 -> -0.4251850146
A34: Desired Price for Pints | B34: =Inputs!B45 -> 1.64 | C34: Pints | D34: ='Milk Pricing'!G210 -> -0.6689142639
A35: Debt Financing
A36: Interest Rate | B36: =Inputs!B82 -> 0.085
A37: Duration of Loan (years) | B37: =Inputs!B83 -> 20
A38: Down Payment Percent | B38: =Inputs!B84 -> 0.2
A39: Amount to Finance of Construction and Equipment? | B39: =Inputs!B85 -> 0.8
A43: Major Bottling Equipment Pieces | B43: Price | C43: Capacity | D43: Capacity Units
A44: Pasteurizers (Vat)
A45: =Inputs!B50 -> Quoted Vat Pasteurizer | B45: =Inputs!C50 -> 28000 | C45: =Inputs!D50 -> 201 | D45: =IF(A45="Quoted Vat Pasteurizer","Gallons",IF(A45="","","No Required Input ")) -> Gallons
A46: In-Line Pasteurizer (HTST)
A47: =Inputs!B51 -> Not Applicable | B47: =Inputs!C51 -> 0 | C47: =Inputs!D51 -> 0 | D47: =IF(A47="Quoted In-Line Pasteurizer","Gallons per hour",IF(A47="","","No Required Input ")) -> No Required Input
A48: Separator
A49: =Inputs!B52 -> Quoted Separator | B49: =Inputs!C52 -> 56500 | C49: =Inputs!D52 -> 300 | D49: =IF(A49="Quoted Separator","Liters per hour (L/h)",IF(A49="","","No Required Input ")) -> Liters per hour (L/h)
A50: Homogenizer
A51: =Inputs!B53 -> Quoted Homogenizer | B51: =Inputs!C53 -> 10000 | C51: =Inputs!D53 -> 300 | D51: =IF(A51="Quoted Homogenizer","Liters per hour (L/h)",IF(A51="","","No Required Input ")) -> Liters per hour (L/h)
A52: Bottler
A53: =Inputs!B54 -> Quoted Bottler | B53: =Inputs!C54 -> 36000 | C53: =Inputs!D54 -> 30 | D53: =IF(A53="Quoted Bottler","Gallons per hour (GPH)",IF(A53="","","No Required Input ")) -> Gallons per hour (GPH)
A54: Additional Processing Equipment
A55: Bulk Tank | B55: =Inputs!B58 -> 5000
A56: Holding Tank/Mixing Tank | B56: =Inputs!B59 -> 3800
A57: Clean Out of Place System | B57: =Inputs!B60 -> 9700
A58: Chiller | B58: =Inputs!B61 -> 12000
A59: Chart Recorder | B59: =Inputs!B62 -> 2100
A60: Refridgerator System | B60: =Inputs!B63 -> 9000
A61: Date Sprayer | B61: =Inputs!B64 -> 5800
A62: Labeler | B62: =Inputs!B65 -> 23400
A63: Antibiotic Testing System | B63: =Inputs!B66 -> 5500
A64: Cooling Unit | B64: =Inputs!B67 -> 6600
A65: Water Heater | B65: =Inputs!B68 -> 7200
A66: Other Equipment 1 | B66: =Inputs!B69 -> 0
A67: Other Equipment 2 | B67: =Inputs!B70 -> 0
A68: Other Equipment 3 | B68: =Inputs!B71 -> 0
A69: Other Equipment 4 | B69: =Inputs!B72 -> 0
A70: Other Equipment 5 | B70: =Inputs!B73 -> 0
A71: Other Equipment 6 | B71: =Inputs!B74 -> 0
A72: Other Equipment 7 | B72: =Inputs!B75 -> 0
A73: Other Equipment 8 | B73: =Inputs!B76 -> 0
A74: Other Equipment 9 | B74: =Inputs!B77 -> 0
A75: Other Equipment 10 | B75: =Inputs!B78 -> 0

Sheet Print Outputs A (hidden)
A1: This sheet shows how much of each milk type you can produce and your potential to grow processing capacity based on equipment package option. It calculates how many pounds of milk you need to process daily to meet your selected processing percentages.
A3: Milk Type | B3: Gallons/Day | C3: Liters/Day | D3: Percent of Actual Raw Milk Used
A4: Whole Milk | B4: ='Standardized Milk'!$J$19 -> 102.9368649 | C4: ='Standardized Milk'!$F$19 -> 27.19304287 | D4: ='Standardized Milk'!$H$35 -> 0.2204081633
A5: Reduced Fat Milk | B5: ='Standardized Milk'!$J$16 -> 0 | C5: ='Standardized Milk'!$F$16 -> 0 | D5: ='Standardized Milk'!$I$35 -> 0
A6: Lowfat Milk | B6: ='Standardized Milk'!$J$13 -> 0 | C6: ='Standardized Milk'!$F$13 -> 0 | D6: ='Standardized Milk'!$J$35 -> 0
A7: Skim Milk | B7: ='Standardized Milk'!$J$10 -> 116.7570922 | C7: ='Standardized Milk'!$F$10 -> 30.84396066 | D7: ='Standardized Milk'!$K$35 -> 0.25
A8: Creamline Milk | B8: ='Standardized Milk'!$J$9 -> 233.5141843 | C8: ='Standardized Milk'!$F$9 -> 61.68792133 | D8: ='Standardized Milk'!$L$35 -> 0.5
A9: Unused Product to be Bottled
A10: Cream | B10: ='Standardized Milk'!$K$22 -> 13.82022724 | C10: ='Standardized Milk'!$G$22 -> 3.650917793
A11: Skim | B11: ='Standardized Milk'!$L$22 -> 0 | C11: ='Standardized Milk'!$H$22 -> 0
A12: Quantity | B12: Bottled Milk | C12: ="Bottled Leftover Cream: "&CHAR(10)&TEXT(Outputs!$B$14,"00.00")&" Gallons" -> Bottled Leftover Cream: 13.82 Gallons
A13: Number of Gallon: | B13: ='Standardized Milk'!$C$28 -> 113 | C13: -
A14: Number of Half Gallons: | B14: ='Standardized Milk'!$C$29 -> 226 | C14: -
A15: Number of Quarts: | B15: ='Standardized Milk'!$C$30 -> 453 | C15: ='Standardized Milk'!$C$35 -> 27
A16: Number of Pints: | B16: ='Standardized Milk'!$C$31 -> 906 | C16: ='Standardized Milk'!$C$36 -> 55
A17: Extra Pints | B17: =INT('Standardized Milk'!$C$32) -> 5 | C17: =INT('Standardized Milk'!$E$38) -> 1
B18: Your Choice | C18: Most Efficient | D18: Most Econonomical | E18: Basic Pastuerizer and Bottler
A19: Capacity Utilized | B19: =MAX('Suggested Equipment'!$E$15:$E$19) -> 0.648650512 | C19: =MAX('Suggested Equipment'!$E$28:$E$31) -> 0.01052318268 | D19: =MAX('Suggested Equipment'!$E$40:$E$43) -> 0.0972975768 | E19: =MAX('Suggested Equipment'!$E$52:$E$53) -> 0.07783806144
A20: Extra APD | B20: =MIN('Suggested Equipment'!$F$15:$F$19) -> 0 | C20: =MIN('Suggested Equipment'!$F$28:$F$31) -> 0 | D20: =MIN('Suggested Equipment'!$F$40:$F$43) -> 0 | E20: =MIN('Suggested Equipment'!$F$52:$F$53) -> 0
A21: Extra Animals | B21: =MIN('Suggested Equipment'!$G$15:$G$19) -> 0 | C21: =MIN('Suggested Equipment'!$G$28:$G$31) -> 0 | D21: =MIN('Suggested Equipment'!$G$40:$G$43) -> 0 | E21: =MIN('Suggested Equipment'!$G$52:$G$53) -> 0
A22: Production Limiting Equipment | B22: =INDEX('Suggested Equipment'!$B$15:$B$19, MATCH(MAX('Suggested Equipment'!$E$15:$E$19), 'Suggested Equipment'!$E$15:$E$19, 0)) -> Quoted Bottler | C22: =INDEX('Suggested Equipment'!$B$28:$B$31, MATCH(MAX('Suggested Equipment'!$E$28:$E$31), 'Suggested Equipment'!$E$28:$E$31, 0)) -> Tetra Pak 250 (Max. 7,000 L/h) | D22: =INDEX('Suggested Equipment'!$B$40:$B$43, MATCH(MAX('Suggested Equipment'!$E$40:$E$43), 'Suggested Equipment'!$E$40:$E$43, 0)) -> ANCO Equipment (400 gal. capacity) | E22: =INDEX('Suggested Equipment'!$B$52:$B$53, MATCH(MAX('Suggested Equipment'!$E$52:$E$53), 'Suggested Equipment'!$E$52:$E$53, 0)) -> ANCO Equipment (500 gal. capcity)
A23: Max Daily Production (lbs) | B23: =INDEX(Equipment!$L$22:$L$81, MATCH(Outputs!$E$25, Equipment!$A$22:$A$81, 0)) -> 6192 | C23: =INDEX(Equipment!$L$22:$L$81, MATCH(Outputs!$E$26, Equipment!$A$22:$A$81, 0)) -> 381675.7812 | D23: =INDEX(Equipment!$L$22:$L$81, MATCH(Outputs!$E$27, Equipment!$A$22:$A$81, 0)) -> 41280 | E23: =INDEX(Equipment!$L$22:$L$81, MATCH(Outputs!$E$28, Equipment!$A$22:$A$81, 0)) -> 51600
A24: Percent of Milk Used | B24: =Equipment!$B$12/Outputs!$F$25 -> 0.648650512 | C24: =Equipment!$B$12/Outputs!$F$26 -> 0.01052318268 | D24: =Equipment!$B$12/Outputs!$F$27 -> 0.0972975768 | E24: =Equipment!$B$12/Outputs!$F$28 -> 0.07783806144
A25: ="To process "&TEXT(Inputs!$B$10,"0%")&" of your herd's milk, you need to process "&TEXT(Equipment!$B$12,"#,##0")&" pounds per day. Based on your desired production, you will have "&TEXT(Outputs!$B$21,"0")&" extra pints of bottled milk, and "&TEXT(Outputs!$B$14,"00.00")&" gallons of unused cream that could be bottled into "&TEXT(Outputs!$C$19,"00")&" quarts and "&TEXT(Outputs!$C$20+Outputs!$C$21,"00")&" pints. Bottling this leftover cream will provide an additional "&TEXT(NPV_own!$E$63+NPV_own!$E$64,"$###,###.00")&" if pints were sold at average market price of "&TEXT('Milk Pricing'!$K$204,"$##.##")&" and quarts at "&TEXT('Milk Pricing'!$J$204,"$##.##")&"." -> To process 20% of your herd's milk, you need to process 4,016 pounds per day. Based on your desired production, you will have 5 extra pints of bottled milk, and 13.82 gallons of unused cream that could be bottled into 27 quarts and 56 pints. Bottling this leftover cream will provide an additional $174,902.88 if pints were sold at average market price of $5.05 and quarts at $7.27.

Sheet Print Outputs B (hidden)
A1: This sheet compares four equipment packages: your choice list from the inputs sheet, the most efficient combination, the most economical combination, and a basic pasteurizer and bottler combination. For each, it shows total cost, processing time (not including cleanup time), payback period (years to breakeven), net present value (NPV), and internal rate of return (IRR). Payback period represents the number of years it will take to overcome the initial investment cost and begin to return a profit. Net present value represents the total value of your investment over time, in other words, how much more you would earn compared to the alternative (not processing). Internal rate of return tells you how fast your money is expected to grow with the investment in a bottled milk operation. Lower payback period and larger net present values and internal rate of returns are best.
A6: Your Choice Equipment List | B6: Equipment Description | C6: Equipment Cost | D6: Time Required | E6: Capacity Utilized | F6: Extra Capacity | G6: Extra Capacity
A7: Pasteurizers (Vat) | B7: =Inputs!$B$50 -> Quoted Vat Pasteurizer | C7: =VLOOKUP('Suggested Equipment'!$B$15,Equipment!$A$22:$K$39,5,FALSE) -> 28000 | D7: =VLOOKUP('Suggested Equipment'!$B$15,Equipment!$A$22:$K$39,11,FALSE) -> 04:38:49.374 | E7: =VLOOKUP('Suggested Equipment'!$B$15,Equipment!$A$22:$K$39,6,FALSE) -> 0.1936270185 | F7: =TEXT(VLOOKUP('Suggested Equipment'!$B$15,Equipment!$A$22:$K$39,9,FALSE),"0")&" lbs/day" -> 56 lbs/day | G7: =TEXT(VLOOKUP('Suggested Equipment'!$B$15,Equipment!$A$22:$K$39,10,FALSE),"0")&" cows" -> 209 cows
A8: In-Line Pasteurizer | B8: =Inputs!$B$51 -> Not Applicable | C8: =VLOOKUP('Suggested Equipment'!$B$16,Equipment!$A$40:$K$51,5,FALSE) -> 0 | D8: =VLOOKUP('Suggested Equipment'!$B$16,Equipment!$A$40:$K$51,11,FALSE) -> 00:00:00 | E8: =VLOOKUP('Suggested Equipment'!$B$16,Equipment!$A$40:$K$51,6,FALSE) -> 0 | F8: =TEXT(VLOOKUP('Suggested Equipment'!$B$16,Equipment!$A$40:$K$51,9,FALSE),"0")&" lbs/day" -> 0 lbs/day | G8: =TEXT(VLOOKUP('Suggested Equipment'!$B$16,Equipment!$A$40:$K$51,10,FALSE),"0")&" cows" -> 0 cows
A9: Separator | B9: =Inputs!$B$52 -> Quoted Separator | C9: =VLOOKUP('Suggested Equipment'!$B$17,Equipment!$A$54:$K$61,5,FALSE) -> 56500 | D9: =VLOOKUP('Suggested Equipment'!$B$17,Equipment!$A$54:$K$61,11,FALSE) -> 05:53:34.736 | E9: =VLOOKUP('Suggested Equipment'!$B$17,Equipment!$A$54:$K$61,6,FALSE) -> 0.2455409292 | F9: =TEXT(VLOOKUP('Suggested Equipment'!$B$17,Equipment!$A$54:$K$61,9,FALSE),"0")&" lbs/day" -> 41 lbs/day | G9: =TEXT(VLOOKUP('Suggested Equipment'!$B$17,Equipment!$A$54:$K$61,10,FALSE),"0")&" cows" -> 154 cows
A10: Homogenizer | B10: =Inputs!$B$53 -> Quoted Homogenizer | C10: =VLOOKUP('Suggested Equipment'!$B$18,Equipment!$A$64:$K$71,5,FALSE) -> 10000 | D10: =VLOOKUP('Suggested Equipment'!$B$18,Equipment!$A$64:$K$71,11,FALSE) -> 05:53:34.736 | E10: =VLOOKUP('Suggested Equipment'!$B$18,Equipment!$A$64:$K$71,6,FALSE) -> 0.2455409292 | F10: =TEXT(VLOOKUP('Suggested Equipment'!$B$18,Equipment!$A$64:$K$71,9,FALSE),"0")&" lbs/day" -> 41 lbs/day | G10: =TEXT(VLOOKUP('Suggested Equipment'!$B$18,Equipment!$A$64:$K$71,10,FALSE),"0")&" cows" -> 154 cows
A11: Bottler | B11: =Inputs!$B$54 -> Quoted Bottler | C11: =VLOOKUP('Suggested Equipment'!$B$19,Equipment!$A$75:$K$82,5,FALSE) -> 36000 | D11: =VLOOKUP('Suggested Equipment'!$B$19,Equipment!$A$75:$K$82,11,FALSE) -> 15:34:03.404 | E11: =VLOOKUP('Suggested Equipment'!$B$19,Equipment!$A$75:$K$82,6,FALSE) -> 0.648650512 | F11: =TEXT(VLOOKUP('Suggested Equipment'!$B$19,Equipment!$A$75:$K$829,9,FALSE),"0")&" lbs/day" -> 7 lbs/day | G11: =TEXT(VLOOKUP('Suggested Equipment'!$B$19,Equipment!$A$75:$K$82,10,FALSE),"0")&" cows" -> 27 cows
A12: Main Equipment Cost | B12: =SUM('Suggested Equipment'!$C$15:$C$19) -> 130500 | C12: Years to Break Even: | D12: =NPV_own!$G$30 -> 0.8304275839
A13: Supplemental Equipment Cost | B13: =SUM(Inputs!$B$58:$B$78) -> 90100 | C13: Net Present Value | D13: =NPV_own!$G$28 -> 3889251.019
A14: Total Time | B14: =SUM('Suggested Equipment'!$D$15:$D$19) -> 1900-01-01T08:00:02.251 | C14: Internal Rate of Return | D14: =NPV_own!$E$27 -> 1.354723736
A16: Most Efficient | B16: Equipment Suggestion | C16: Equipment Cost | D16: Time Required | E16: Capacity Utilized | F16: Extra Capacity | G16: Extra Capacity
A17: Pasteurizer | B17: =VLOOKUP('Suggested Equipment'!$D$28,CHOOSE({1,2},Equipment!$K$85:$K$111,Equipment!$A$85:$A$111),2,FALSE) -> In-line Pasteurizer 3500 gal/hr | C17: =VLOOKUP('Suggested Equipment'!$D$28,CHOOSE({1,2},Equipment!$K$85:$K$111,Equipment!$E$85:$E$111),2,FALSE) -> 120000 | D17: =MIN(Equipment!$D$85:$D$111) -> 00:08:00.372 | E17: =MIN(Equipment!$F$85:$F$111) -> 0 | F17: =TEXT(MAX(Equipment!$I$85:$I$111),"0")&" lbs/day" -> 2395 lbs/day | G17: =TEXT(MAX(Equipment!$J$85:$J$111),"0")&" cows" -> 8980 cows
A18: Separator | B18: =VLOOKUP('Suggested Equipment'!$D$29,CHOOSE({1,2},'Equipment List'!$B$43:$B$49,'Equipment List'!$A$43:$A$49),2,FALSE) -> Tetra Pak H10 Hot Milk (Max. Capacity 75,000 L/h) | C18: =VLOOKUP('Suggested Equipment'!$D$29,CHOOSE({1,2},'Equipment List'!$B$43:$B$49,'Equipment List'!$C$43:$C$49),2,FALSE) -> 160000 | D18: ='Equipment List'!$B$43 -> 00:01:24.859 | E18: ='Equipment List'!$D$43 -> 0.0009821637167 | F18: =TEXT('Equipment List'!$E$43,"0")&" lbs/day" -> 13618 lbs/day | G18: =TEXT('Equipment List'!$F$43,"0")&" cows" -> 51067 cows
A19: Homogenizer | B19: =VLOOKUP('Suggested Equipment'!$D$30,CHOOSE({1,2},'Equipment List'!$B$54:$B$57,'Equipment List'!$A$54:$A$57),2,FALSE) -> Tetra Pak 250 (Max. 7,000 L/h) | C19: =VLOOKUP('Suggested Equipment'!$D$30,'Equipment List'!$B$54:$C$57,2,FALSE) -> 152640 | D19: ='Equipment List'!$B$54 -> 00:15:09.203 | E19: ='Equipment List'!$D$54 -> 0.01052318268 | F19: =TEXT('Equipment List'!$E$54,"0")&" lbs/day" -> 1259 lbs/day | G19: =TEXT('Equipment List'!$F$54,"0")&" cows" -> 4720 cows
A20: Bottler | B20: =VLOOKUP('Suggested Equipment'!$D$31,CHOOSE({1,2},'Equipment List'!$B$65:$B$70,'Equipment List'!$A$65:$A$70),2,FALSE) -> Federal 309 Gravity Filler (Max. Capacity for 1 gal) | C20: =VLOOKUP('Suggested Equipment'!$D$31,'Equipment List'!$B$65:$C$70,2,FALSE) -> 600000 | D20: ='Equipment List'!$B$65 -> 00:03:53.514 | E20: ='Equipment List'!$D$65 -> 0.002702710467 | F20: =TEXT('Equipment List'!$E$65,"0")&" lbs/day" -> 4940 lbs/day | G20: =TEXT('Equipment List'!$F$65,"0")&" cows" -> 18525 cows
A21: Main Equipment Cost | B21: =SUM('Suggested Equipment'!$C$28:$C$31) -> 1032640 | C21: Years to Break Even: | D21: =NPV_eff!$G$30 -> 2.808177518
A22: Supplemental Equipment Cost | B22: =SUM(Inputs!$B$58:$B$78) -> 90100 | C22: Net Present Value | D22: =NPV_eff!$G$28 -> 2987111.019
A23: Total Time | B23: =SUM('Suggested Equipment'!$D$28:$D$31) -> 00:28:27.948 | C23: Internal Rate of Return | D23: =NPV_eff!$E$27 -> 0.4448296273
A25: Most Economical | B25: Equipment Suggestion | C25: Equipment Cost | D25: Time Required | E25: Capacity Utilized | F25: Extra Capacity | G25: Extra Capacity
A26: Pasteurizer | B26: =Equipment!$A$120 -> ANCO Equipment (400 gal. capacity) | C26: =VLOOKUP('Suggested Equipment'!$B$40,Equipment!$A$22:$K$39,5,FALSE) -> 24000 | D26: =VLOOKUP('Suggested Equipment'!$B$40,Equipment!$A$22:$K$39,11,FALSE) -> 02:20:06.511 | E26: =VLOOKUP('Suggested Equipment'!$B$40,Equipment!$A$22:$K$39,6,FALSE) -> 0.0972975768 | F26: =TEXT(VLOOKUP('Suggested Equipment'!$B$40,Equipment!$A$22:$K$39,9,FALSE),"0")&" lbs/day" -> 124 lbs/day | G26: =TEXT(VLOOKUP('Suggested Equipment'!$B$40,Equipment!$A$22:$K$39,10,FALSE),"0")&" cows" -> 466 cows
A27: Separator | B27: =Equipment!$A$123 -> Tetra Pak H10 Hot Milk (Avg. Capacity 41,000 L/h) | C27: =VLOOKUP('Suggested Equipment'!$B$41,Equipment!$A$54:$K$61,5,FALSE) -> 160000 | D27: =VLOOKUP('Suggested Equipment'!$B$41,Equipment!$A$54:$K$61,11,FALSE) -> 00:02:35.230 | E27: =VLOOKUP('Suggested Equipment'!$B$41,Equipment!$A$54:$K$61,6,FALSE) -> 0.001796640945 | F27: =TEXT(VLOOKUP('Suggested Equipment'!$B$41,Equipment!$A$54:$K$61,9,FALSE),"0")&" lbs/day" -> 7438 lbs/day | G27: =TEXT(VLOOKUP('Suggested Equipment'!$B$41,Equipment!$A$54:$K$61,10,FALSE),"0")&" cows" -> 27894 cows
A28: Homogenizer | B28: =Equipment!$A$122 -> Tetra Pak 250 (Max. 7,000 L/h) | C28: =VLOOKUP('Suggested Equipment'!$B$42,Equipment!$A$64:$K$71,5,FALSE) -> 152640 | D28: =VLOOKUP('Suggested Equipment'!$B$42,Equipment!$A$64:$K$71,11,FALSE) -> 00:15:09.203 | E28: =VLOOKUP('Suggested Equipment'!$B$42,Equipment!$A$64:$K$71,6,FALSE) -> 0.01052318268 | F28: =TEXT(VLOOKUP('Suggested Equipment'!$B$42,Equipment!$A$64:$K$71,9,FALSE),"0")&" lbs/day" -> 1259 lbs/day | G28: =TEXT(VLOOKUP('Suggested Equipment'!$B$42,Equipment!$A$64:$K$71,10,FALSE),"0")&" cows" -> 4721 cows
A29: Bottler | B29: =Equipment!$A$121 -> Federal 309 Gravity Filler (Min. Capacity for 1 gal) | C29: =VLOOKUP('Suggested Equipment'!$B$43,Equipment!$A$75:$K$82,5,FALSE) -> 600000 | D29: =VLOOKUP('Suggested Equipment'!$B$43,Equipment!$A$75:$K$82,11,FALSE) -> 00:04:26.873 | E29: =VLOOKUP('Suggested Equipment'!$B$43,Equipment!$A$75:$K$82,6,FALSE) -> 0.003088811962 | F29: =TEXT(VLOOKUP('Suggested Equipment'!$B$43,Equipment!$A$75:$K$829,9,FALSE),"0")&" lbs/day" -> 4321 lbs/day | G29: =TEXT(VLOOKUP('Suggested Equipment'!$B$43,Equipment!$A$75:$K$82,10,FALSE),"0")&" cows" -> 16204 cows
A30: Main Equipment Cost | B30: =SUM('Suggested Equipment'!$C$40:$C$43) -> 936640 | C30: Years to Break Even: | D30: =NPV_econ!$G$30 -> 2.579623092
A31: Supplemental Equipment Cost | B31: =SUM(Inputs!$B$58:$B$78) -> 90100 | C31: Net Present Value | D31: =NPV_econ!$G$28 -> 3083111.019
A32: Total Time | B32: =SUM('Suggested Equipment'!$D$40:$D$43) -> 02:42:17.817 | C32: Internal Rate of Return | D32: =NPV_econ!$E$27 -> 0.4791726945
A34: Basic Pastuerizer/Bottler | B34: Equipment Suggestion | C34: Equipment Cost | D34: Time Required | E34: Capacity Utilized | F34: Extra Capacity | G34: Extra Capacity
A35: Pasteurizer | B35: =Equipment!$A$91 -> ANCO Equipment (200 gal. capacity) | C35: =Equipment!$E$91 -> 18000 | D35: =Equipment!$K$91 -> 04:40:13.021 | E35: =Equipment!$F$91 -> 0.1945951536 | F35: =TEXT(Equipment!$I$91,"0")&" lbs/day" -> 55 lbs/day | G35: =TEXT(Equipment!$J$91,"0")&" cows" -> 208 cows
A36: Bottler | B36: =Equipment!$A$79 -> Federal 309 Gravity Filler (Avg. Capacity for 0.5 gal) | C36: =Equipment!$E$79 -> 600000 | D36: =Equipment!$K$79 -> 00:06:29.190 | E36: =Equipment!$F$79 -> 0.002252258722 | F36: =TEXT(Equipment!$I$79,"0")&" lbs/day" -> 5931 lbs/day | G36: =TEXT(Equipment!$J$79,"0")&" cows" -> 22241 cows
A37: Main Equipment Cost | B37: =SUM('Suggested Equipment'!$C$52:$C$53) -> 626500 | C37: Years to Break Even: | D37: =NPV_basic!$G$30 -> 1.858888398
A38: Supplemental Equipment Cost | B38: =SUM(Inputs!$B$58:$B$78) -> 90100 | C38: Net Present Value | D38: =NPV_basic!$G$28 -> 3393251.019
A39: Total Time | B39: =SUM('Suggested Equipment'!$D$52:$D$53) -> 01:58:34.399 | C39: Internal Rate of Return | D39: =NPV_basic!$E$27 -> 0.6379186796

Sheet Print Outputs C (hidden)
A1: This sheet presents all available pasteurizers, separators, homogenizers, and bottlers used in this tool, sorted from shortest to longest run-times. It includes estimated cost as well as processing and growth capacities.
A3: Vat Pasteurizers
B4: Total Run Time | C4: Equipment Cost | D4: Capacity Utilized | E4: Extra Capcity | F4: Extra Capacity
A5: =IFERROR(INDEX(Equipment!$A$22:$J$38,MATCH('Equipment List'!$B$8,Equipment!$K$22:$K$38,0),1),"") -> ANCO Equipment (2000 gal. capacity) | B5: =IF(SMALL(Equipment!$K$22:$K$38,1),SMALL(Equipment!$K$22:$K$38,1),Equipment!$T$13) -> 00:28:01.302 | C5: =IFERROR(INDEX(Equipment!$A$22:$J$38,MATCH('Equipment List'!$B$8,Equipment!$K$22:$K$38,0),5),"") -> 56000 | D5: =IFERROR(INDEX(Equipment!$A$22:$J$38,MATCH('Equipment List'!$B$8,Equipment!$K$22:$K$38,0),6),"") -> 0.01945951536 | E5: =TEXT(IFERROR(INDEX(Equipment!$A$22:$J$38,MATCH('Equipment List'!$B$8,Equipment!$K$22:$K$38,0),9),""),"0.00")&" lbs/day" -> 674.61 lbs/day | F5: =TEXT(IFERROR(ROUNDDOWN(INDEX(Equipment!$A$22:$J$38,MATCH('Equipment List'!$B$8,Equipment!$K$22:$K$38,0),10),0),""),"0")&" cows" -> 2529 cows
A6: =IFERROR(INDEX(Equipment!$A$22:$J$38,MATCH('Equipment List'!$B$9,Equipment!$K$22:$K$38,0),1),"") -> ANCO Equipment (1500 gal. capacity) | B6: =IF(SMALL(Equipment!$K$22:$K$38,1),SMALL(Equipment!$K$22:$K$38,2),Equipment!$T$13) -> 00:37:21.736 | C6: =IFERROR(INDEX(Equipment!$A$22:$J$38,MATCH('Equipment List'!$B$9,Equipment!$K$22:$K$38,0),5),"") -> 49500 | D6: =IFERROR(INDEX(Equipment!$A$22:$J$38,MATCH('Equipment List'!$B$9,Equipment!$K$22:$K$38,0),6),"") -> 0.02594602048 | E6: =TEXT(IFERROR(INDEX(Equipment!$A$22:$J$38,MATCH('Equipment List'!$B$9,Equipment!$K$22:$K$38,0),9),""),"0.00")&" lbs/day" -> 502.61 lbs/day | F6: =TEXT(IFERROR(ROUNDDOWN(INDEX(Equipment!$A$22:$J$38,MATCH('Equipment List'!$B$9,Equipment!$K$22:$K$38,0),10),0),""),"0")&" cows" -> 1884 cows
A7: =IFERROR(INDEX(Equipment!$A$22:$J$38,MATCH('Equipment List'!$B$10,Equipment!$K$22:$K$38,0),1),"") -> ANCO Equipment (1200 gal. capacity) | B7: =IF(SMALL(Equipment!$K$22:$K$38,1),SMALL(Equipment!$K$22:$K$38,3),Equipment!$T$13) -> 00:46:42.170 | C7: =IFERROR(INDEX(Equipment!$A$22:$J$38,MATCH('Equipment List'!$B$10,Equipment!$K$22:$K$38,0),5),"") -> 45500 | D7: =IFERROR(INDEX(Equipment!$A$22:$J$38,MATCH('Equipment List'!$B$10,Equipment!$K$22:$K$38,0),6),"") -> 0.0324325256 | E7: =TEXT(IFERROR(INDEX(Equipment!$A$22:$J$38,MATCH('Equipment List'!$B$10,Equipment!$K$22:$K$38,0),9),""),"0.00")&" lbs/day" -> 399.41 lbs/day | F7: =TEXT(IFERROR(ROUNDDOWN(INDEX(Equipment!$A$22:$J$38,MATCH('Equipment List'!$B$10,Equipment!$K$22:$K$38,0),10),0),""),"0")&" cows" -> 1497 cows
A8: =IFERROR(INDEX(Equipment!$A$22:$J$38,MATCH('Equipment List'!$B$11,Equipment!$K$22:$K$38,0),1),"") -> ANCO Equipment (1000 gal. capacity) | B8: =IF(SMALL(Equipment!$K$22:$K$38,1),SMALL(Equipment!$K$22:$K$38,4),Equipment!$T$13) -> 00:56:02.604 | C8: =IFERROR(INDEX(Equipment!$A$22:$J$38,MATCH('Equipment List'!$B$11,Equipment!$K$22:$K$38,0),5),"") -> 39500 | D8: =IFERROR(INDEX(Equipment!$A$22:$J$38,MATCH('Equipment List'!$B$11,Equipment!$K$22:$K$38,0),6),"") -> 0.03891903072 | E8: =TEXT(IFERROR(INDEX(Equipment!$A$22:$J$38,MATCH('Equipment List'!$B$11,Equipment!$K$22:$K$38,0),9),""),"0.00")&" lbs/day" -> 330.61 lbs/day | F8: =TEXT(IFERROR(ROUNDDOWN(INDEX(Equipment!$A$22:$J$38,MATCH('Equipment List'!$B$11,Equipment!$K$22:$K$38,0),10),0),""),"0")&" cows" -> 1239 cows
A9: =IFERROR(INDEX(Equipment!$A$22:$J$38,MATCH('Equipment List'!$B$12,Equipment!$K$22:$K$38,0),1),"") -> ANCO Equipment (800 gal. capacity) | B9: =IF(SMALL(Equipment!$K$22:$K$38,1),SMALL(Equipment!$K$22:$K$38,5),Equipment!$T$13) -> 01:10:03.255 | C9: =IFERROR(INDEX(Equipment!$A$22:$J$38,MATCH('Equipment List'!$B$12,Equipment!$K$22:$K$38,0),5),"") -> 32000 | D9: =IFERROR(INDEX(Equipment!$A$22:$J$38,MATCH('Equipment List'!$B$12,Equipment!$K$22:$K$38,0),6),"") -> 0.0486487884 | E9: =TEXT(IFERROR(INDEX(Equipment!$A$22:$J$38,MATCH('Equipment List'!$B$12,Equipment!$K$22:$K$38,0),9),""),"0.00")&" lbs/day" -> 261.81 lbs/day | F9: =TEXT(IFERROR(ROUNDDOWN(INDEX(Equipment!$A$22:$J$38,MATCH('Equipment List'!$B$12,Equipment!$K$22:$K$38,0),10),0),""),"0")&" cows" -> 981 cows
A10: =IFERROR(INDEX(Equipment!$A$22:$J$38,MATCH('Equipment List'!$B$13,Equipment!$K$22:$K$38,0),1),"") -> ANCO Equipment (600 gal. capacity) | B10: =IF(SMALL(Equipment!$K$22:$K$38,1),SMALL(Equipment!$K$22:$K$38,6),Equipment!$T$13) -> 01:33:24.340 | C10: =IFERROR(INDEX(Equipment!$A$22:$J$38,MATCH('Equipment List'!$B$13,Equipment!$K$22:$K$38,0),5),"") -> 28500 | D10: =IFERROR(INDEX(Equipment!$A$22:$J$38,MATCH('Equipment List'!$B$13,Equipment!$K$22:$K$38,0),6),"") -> 0.0648650512 | E10: =TEXT(IFERROR(INDEX(Equipment!$A$22:$J$38,MATCH('Equipment List'!$B$13,Equipment!$K$22:$K$38,0),9),""),"0.00")&" lbs/day" -> 193.01 lbs/day | F10: =TEXT(IFERROR(ROUNDDOWN(INDEX(Equipment!$A$22:$J$38,MATCH('Equipment List'!$B$13,Equipment!$K$22:$K$38,0),10),0),""),"0")&" cows" -> 723 cows
A11: =IFERROR(INDEX(Equipment!$A$22:$J$38,MATCH('Equipment List'!$B$14,Equipment!$K$22:$K$38,0),1),"") -> ANCO Equipment (500 gal. capcity) | B11: =IF(SMALL(Equipment!$K$22:$K$38,1),SMALL(Equipment!$K$22:$K$38,7),Equipment!$T$13) -> 01:52:05.209 | C11: =IFERROR(INDEX(Equipment!$A$22:$J$38,MATCH('Equipment List'!$B$14,Equipment!$K$22:$K$38,0),5),"") -> 26500 | D11: =IFERROR(INDEX(Equipment!$A$22:$J$38,MATCH('Equipment List'!$B$14,Equipment!$K$22:$K$38,0),6),"") -> 0.07783806144 | E11: =TEXT(IFERROR(INDEX(Equipment!$A$22:$J$38,MATCH('Equipment List'!$B$14,Equipment!$K$22:$K$38,0),9),""),"0.00")&" lbs/day" -> 158.61 lbs/day | F11: =TEXT(IFERROR(ROUNDDOWN(INDEX(Equipment!$A$22:$J$38,MATCH('Equipment List'!$B$14,Equipment!$K$22:$K$38,0),10),0),""),"0")&" cows" -> 594 cows
A12: =IFERROR(INDEX(Equipment!$A$22:$J$38,MATCH('Equipment List'!$B$15,Equipment!$K$22:$K$38,0),1),"") -> ANCO Equipment (400 gal. capacity) | B12: =IF(SMALL(Equipment!$K$22:$K$38,1),SMALL(Equipment!$K$22:$K$38,8),Equipment!$T$13) -> 02:20:06.511 | C12: =IFERROR(INDEX(Equipment!$A$22:$J$38,MATCH('Equipment List'!$B$15,Equipment!$K$22:$K$38,0),5),"") -> 24000 | D12: =IFERROR(INDEX(Equipment!$A$22:$J$38,MATCH('Equipment List'!$B$15,Equipment!$K$22:$K$38,0),6),"") -> 0.0972975768 | E12: =TEXT(IFERROR(INDEX(Equipment!$A$22:$J$38,MATCH('Equipment List'!$B$15,Equipment!$K$22:$K$38,0),9),""),"0.00")&" lbs/day" -> 124.21 lbs/day | F12: =TEXT(IFERROR(ROUNDDOWN(INDEX(Equipment!$A$22:$J$38,MATCH('Equipment List'!$B$15,Equipment!$K$22:$K$38,0),10),0),""),"0")&" cows" -> 465 cows
A13: =IFERROR(INDEX(Equipment!$A$22:$J$38,MATCH('Equipment List'!$B$16,Equipment!$K$22:$K$38,0),1),"") -> ANCO Equipment (300 gal. capacity) | B13: =IF(SMALL(Equipment!$K$22:$K$38,1),SMALL(Equipment!$K$22:$K$38,9),Equipment!$T$13) -> 03:06:48.681 | C13: =IFERROR(INDEX(Equipment!$A$22:$J$38,MATCH('Equipment List'!$B$16,Equipment!$K$22:$K$38,0),5),"") -> 20000 | D13: =IFERROR(INDEX(Equipment!$A$22:$J$38,MATCH('Equipment List'!$B$16,Equipment!$K$22:$K$38,0),6),"") -> 0.1297301024 | E13: =TEXT(IFERROR(INDEX(Equipment!$A$22:$J$38,MATCH('Equipment List'!$B$16,Equipment!$K$22:$K$38,0),9),""),"0.00")&" lbs/day" -> 89.81 lbs/day | F13: =TEXT(IFERROR(ROUNDDOWN(INDEX(Equipment!$A$22:$J$38,MATCH('Equipment List'!$B$16,Equipment!$K$22:$K$38,0),10),0),""),"0")&" cows" -> 336 cows
A14: =IFERROR(INDEX(Equipment!$A$22:$J$38,MATCH('Equipment List'!$B$17,Equipment!$K$22:$K$38,0),1),"") -> Quoted Vat Pasteurizer | B14: =IF(SMALL(Equipment!$K$22:$K$38,1),SMALL(Equipment!$K$22:$K$38,10),Equipment!$T$13) -> 04:38:49.374 | C14: =IFERROR(INDEX(Equipment!$A$22:$J$38,MATCH('Equipment List'!$B$17,Equipment!$K$22:$K$38,0),5),"") -> 28000 | D14: =IFERROR(INDEX(Equipment!$A$22:$J$38,MATCH('Equipment List'!$B$17,Equipment!$K$22:$K$38,0),6),"") -> 0.1936270185 | E14: =TEXT(IFERROR(INDEX(Equipment!$A$22:$J$38,MATCH('Equipment List'!$B$17,Equipment!$K$22:$K$38,0),9),""),"0.00")&" lbs/day" -> 55.76 lbs/day | F14: =TEXT(IFERROR(ROUNDDOWN(INDEX(Equipment!$A$22:$J$38,MATCH('Equipment List'!$B$17,Equipment!$K$22:$K$38,0),10),0),""),"0")&" cows" -> 209 cows
A15: =IFERROR(INDEX(Equipment!$A$22:$J$38,MATCH('Equipment List'!$B$18,Equipment!$K$22:$K$38,0),1),"") -> ANCO Equipment (200 gal. capacity) | B15: =IF(SMALL(Equipment!$K$22:$K$38,1),SMALL(Equipment!$K$22:$K$38,11),Equipment!$T$13) -> 04:40:13.021 | C15: =IFERROR(INDEX(Equipment!$A$22:$J$38,MATCH('Equipment List'!$B$18,Equipment!$K$22:$K$38,0),5),"") -> 18000 | D15: =IFERROR(INDEX(Equipment!$A$22:$J$38,MATCH('Equipment List'!$B$18,Equipment!$K$22:$K$38,0),6),"") -> 0.1945951536 | E15: =TEXT(IFERROR(INDEX(Equipment!$A$22:$J$38,MATCH('Equipment List'!$B$18,Equipment!$K$22:$K$38,0),9),""),"0.00")&" lbs/day" -> 55.41 lbs/day | F15: =TEXT(IFERROR(ROUNDDOWN(INDEX(Equipment!$A$22:$J$38,MATCH('Equipment List'!$B$18,Equipment!$K$22:$K$38,0),10),0),""),"0")&" cows" -> 207 cows
A16: =IFERROR(INDEX(Equipment!$A$22:$J$38,MATCH('Equipment List'!$B$19,Equipment!$K$22:$K$38,0),1),"") -> MicroDairy Designs (99 gal. capacity) | B16: =IF(SMALL(Equipment!$K$22:$K$38,1),SMALL(Equipment!$K$22:$K$38,12),Equipment!$T$13) -> 09:26:05.700 | C16: =IFERROR(INDEX(Equipment!$A$22:$J$38,MATCH('Equipment List'!$B$19,Equipment!$K$22:$K$38,0),5),"") -> 18000 | D16: =IFERROR(INDEX(Equipment!$A$22:$J$38,MATCH('Equipment List'!$B$19,Equipment!$K$22:$K$38,0),6),"") -> 0.3931215224 | E16: =TEXT(IFERROR(INDEX(Equipment!$A$22:$J$38,MATCH('Equipment List'!$B$19,Equipment!$K$22:$K$38,0),9),""),"0.00")&" lbs/day" -> 20.67 lbs/day | F16: =TEXT(IFERROR(ROUNDDOWN(INDEX(Equipment!$A$22:$J$38,MATCH('Equipment List'!$B$19,Equipment!$K$22:$K$38,0),10),0),""),"0")&" cows" -> 77 cows
A17: =IFERROR(INDEX(Equipment!$A$22:$J$38,MATCH('Equipment List'!$B$20,Equipment!$K$22:$K$38,0),1),"") -> MicroDairy Designs (60 gal. capacity) | B17: =IF(SMALL(Equipment!$K$22:$K$38,1),SMALL(Equipment!$K$22:$K$38,13),Equipment!$T$13) -> 15:34:03.404 | C17: =IFERROR(INDEX(Equipment!$A$22:$J$38,MATCH('Equipment List'!$B$20,Equipment!$K$22:$K$38,0),5),"") -> 16000 | D17: =IFERROR(INDEX(Equipment!$A$22:$J$38,MATCH('Equipment List'!$B$20,Equipment!$K$22:$K$38,0),6),"") -> 0.648650512 | E17: =TEXT(IFERROR(INDEX(Equipment!$A$22:$J$38,MATCH('Equipment List'!$B$20,Equipment!$K$22:$K$38,0),9),""),"0.00")&" lbs/day" -> 7.25 lbs/day | F17: =TEXT(IFERROR(ROUNDDOWN(INDEX(Equipment!$A$22:$J$38,MATCH('Equipment List'!$B$20,Equipment!$K$22:$K$38,0),10),0),""),"0")&" cows" -> 27 cows
A18: =IFERROR(INDEX(Equipment!$A$22:$J$38,MATCH('Equipment List'!$B$21,Equipment!$K$22:$K$38,0),1),"") -> MicroDairy Designs (45 gal. capacity) | B18: =IF(SMALL(Equipment!$K$22:$K$38,1),SMALL(Equipment!$K$22:$K$38,14),Equipment!$T$13) -> 20:45:24.539 | C18: =IFERROR(INDEX(Equipment!$A$22:$J$38,MATCH('Equipment List'!$B$21,Equipment!$K$22:$K$38,0),5),"") -> 13000 | D18: =IFERROR(INDEX(Equipment!$A$22:$J$38,MATCH('Equipment List'!$B$21,Equipment!$K$22:$K$38,0),6),"") -> 0.8648673493 | E18: =TEXT(IFERROR(INDEX(Equipment!$A$22:$J$38,MATCH('Equipment List'!$B$21,Equipment!$K$22:$K$38,0),9),""),"0.00")&" lbs/day" -> 2.09 lbs/day | F18: =TEXT(IFERROR(ROUNDDOWN(INDEX(Equipment!$A$22:$J$38,MATCH('Equipment List'!$B$21,Equipment!$K$22:$K$38,0),10),0),""),"0")&" cows" -> 7 cows
A19: =IFERROR(INDEX(Equipment!$A$22:$J$38,MATCH('Equipment List'!$B$22,Equipment!$K$22:$K$38,0),1),"") -> MicroDairy Designs (30 gal. capacity) | B19: =IF(SMALL(Equipment!$K$22:$K$38,1),SMALL(Equipment!$K$22:$K$38,15),Equipment!$T$13) -> 1900-01-01T07:08:06.808 | C19: =IFERROR(INDEX(Equipment!$A$22:$J$38,MATCH('Equipment List'!$B$22,Equipment!$K$22:$K$38,0),5),"") -> 10000 | D19: =IFERROR(INDEX(Equipment!$A$22:$J$38,MATCH('Equipment List'!$B$22,Equipment!$K$22:$K$38,0),6),"") -> 1.297301024 | E19: =TEXT(IFERROR(INDEX(Equipment!$A$22:$J$38,MATCH('Equipment List'!$B$22,Equipment!$K$22:$K$38,0),9),""),"0.00")&" lbs/day" -> -3.07 lbs/day | F19: =TEXT(IFERROR(ROUNDDOWN(INDEX(Equipment!$A$22:$J$38,MATCH('Equipment List'!$B$22,Equipment!$K$22:$K$38,0),10),0),""),"0")&" cows" -> -11 cows
A20: =IFERROR(INDEX(Equipment!$A$22:$J$38,MATCH('Equipment List'!$B$23,Equipment!$K$22:$K$38,0),1),"") -> MicroDairy Designs (15 gal. capacity) | B20: =IF(SMALL(Equipment!$K$22:$K$38,1),SMALL(Equipment!$K$22:$K$38,16),Equipment!$T$13) -> 1900-01-02T14:16:13.617 | C20: =IFERROR(INDEX(Equipment!$A$22:$J$38,MATCH('Equipment List'!$B$23,Equipment!$K$22:$K$38,0),5),"") -> 7000 | D20: =IFERROR(INDEX(Equipment!$A$22:$J$38,MATCH('Equipment List'!$B$23,Equipment!$K$22:$K$38,0),6),"") -> 2.594602048 | E20: =TEXT(IFERROR(INDEX(Equipment!$A$22:$J$38,MATCH('Equipment List'!$B$23,Equipment!$K$22:$K$38,0),9),""),"0.00")&" lbs/day" -> -8.23 lbs/day | F20: =TEXT(IFERROR(ROUNDDOWN(INDEX(Equipment!$A$22:$J$38,MATCH('Equipment List'!$B$23,Equipment!$K$22:$K$38,0),10),0),""),"0")&" cows" -> -30 cows
A21: =IFERROR(INDEX(Equipment!$A$22:$J$38,MATCH('Equipment List'!$B$24,Equipment!$K$22:$K$38,0),1),"") -> MicroDairy Designs (4 gal. capacity) | B21: =IF(SMALL(Equipment!$K$22:$K$38,1),SMALL(Equipment!$K$22:$K$38,17),Equipment!$T$13) -> 1900-01-09T17:30:51.064 | C21: =IFERROR(INDEX(Equipment!$A$22:$J$38,MATCH('Equipment List'!$B$24,Equipment!$K$22:$K$38,0),5),"") -> 5500 | D21: =IFERROR(INDEX(Equipment!$A$22:$J$38,MATCH('Equipment List'!$B$24,Equipment!$K$22:$K$38,0),6),"") -> 9.72975768 | E21: =TEXT(IFERROR(INDEX(Equipment!$A$22:$J$38,MATCH('Equipment List'!$B$24,Equipment!$K$22:$K$38,0),9),""),"0.00")&" lbs/day" -> -12.01 lbs/day | F21: =TEXT(IFERROR(ROUNDDOWN(INDEX(Equipment!$A$22:$J$38,MATCH('Equipment List'!$B$24,Equipment!$K$22:$K$38,0),10),0),""),"0")&" cows" -> -45 cows
A24: High Temperature Short Time (HTST) In-Line Pastuerizers
B25: Total Run Time | C25: Equipment Cost | D25: Capacity Utilized | E25: Extra Capcity | F25: Extra Capacity
A26: =IFERROR(INDEX(Equipment!$A$41:$J$50,MATCH('Equipment List'!$B$29,Equipment!$K$41:$K$50,0),1),"") -> In-line Pasteurizer 3500 gal/hr | B26: =IF(SMALL(Equipment!$K$41:$K$50,1),SMALL(Equipment!$K$41:$K$50,1),Equipment!$T$13) -> 00:08:00.372 | C26: =IFERROR(INDEX(Equipment!$A$41:$J$50,MATCH('Equipment List'!$B$29,Equipment!$K$41:$K$50,0),5),"") -> 120000 | D26: =IFERROR(INDEX(Equipment!$A$41:$J$50,MATCH('Equipment List'!$B$29,Equipment!$K$41:$K$50,0),6),"") -> 0.005559861531 | E26: =TEXT(IFERROR(INDEX(Equipment!$A$41:$J$50,MATCH('Equipment List'!$B$29,Equipment!$K$41:$K$50,0),9),""),"0.00")&" lbs/day" -> 2394.61 lbs/day | F26: =TEXT(IFERROR(ROUNDDOWN(INDEX(Equipment!$A$41:$J$50,MATCH('Equipment List'!$B$29,Equipment!$K$41:$K$50,0),10),0),""),"0")&" cows" -> 8979 cows
A27: =IFERROR(INDEX(Equipment!$A$41:$J$50,MATCH('Equipment List'!$B$30,Equipment!$K$41:$K$50,0),1),"") -> In-line Pasteurizer 3000 gal/hr | B27: =IF(SMALL(Equipment!$K$41:$K$50,1),SMALL(Equipment!$K$41:$K$50,2),Equipment!$T$13) -> 00:09:20.434 | C27: =IFERROR(INDEX(Equipment!$A$41:$J$50,MATCH('Equipment List'!$B$30,Equipment!$K$41:$K$50,0),5),"") -> 120000 | D27: =IFERROR(INDEX(Equipment!$A$41:$J$50,MATCH('Equipment List'!$B$30,Equipment!$K$41:$K$50,0),6),"") -> 0.00648650512 | E27: =TEXT(IFERROR(INDEX(Equipment!$A$41:$J$50,MATCH('Equipment List'!$B$30,Equipment!$K$41:$K$50,0),9),""),"0.00")&" lbs/day" -> 2050.61 lbs/day | F27: =TEXT(IFERROR(ROUNDDOWN(INDEX(Equipment!$A$41:$J$50,MATCH('Equipment List'!$B$30,Equipment!$K$41:$K$50,0),10),0),""),"0")&" cows" -> 7689 cows
A28: =IFERROR(INDEX(Equipment!$A$41:$J$50,MATCH('Equipment List'!$B$31,Equipment!$K$41:$K$50,0),1),"") -> In-line Pasteurizer 2500 gal/hr | B28: =IF(SMALL(Equipment!$K$41:$K$50,1),SMALL(Equipment!$K$41:$K$50,3),Equipment!$T$13) -> 00:11:12.521 | C28: =IFERROR(INDEX(Equipment!$A$41:$J$50,MATCH('Equipment List'!$B$31,Equipment!$K$41:$K$50,0),5),"") -> 120000 | D28: =IFERROR(INDEX(Equipment!$A$41:$J$50,MATCH('Equipment List'!$B$31,Equipment!$K$41:$K$50,0),6),"") -> 0.007783806144 | E28: =TEXT(IFERROR(INDEX(Equipment!$A$41:$J$50,MATCH('Equipment List'!$B$31,Equipment!$K$41:$K$50,0),9),""),"0.00")&" lbs/day" -> 1706.61 lbs/day | F28: =TEXT(IFERROR(ROUNDDOWN(INDEX(Equipment!$A$41:$J$50,MATCH('Equipment List'!$B$31,Equipment!$K$41:$K$50,0),10),0),""),"0")&" cows" -> 6399 cows
A29: =IFERROR(INDEX(Equipment!$A$41:$J$50,MATCH('Equipment List'!$B$32,Equipment!$K$41:$K$50,0),1),"") -> In-line Pasteurizer 2000 gal/hr | B29: =IF(SMALL(Equipment!$K$41:$K$50,1),SMALL(Equipment!$K$41:$K$50,4),Equipment!$T$13) -> 00:14:00.651 | C29: =IFERROR(INDEX(Equipment!$A$41:$J$50,MATCH('Equipment List'!$B$32,Equipment!$K$41:$K$50,0),5),"") -> 120000 | D29: =IFERROR(INDEX(Equipment!$A$41:$J$50,MATCH('Equipment List'!$B$32,Equipment!$K$41:$K$50,0),6),"") -> 0.00972975768 | E29: =TEXT(IFERROR(INDEX(Equipment!$A$41:$J$50,MATCH('Equipment List'!$B$32,Equipment!$K$41:$K$50,0),9),""),"0.00")&" lbs/day" -> 1362.61 lbs/day | F29: =TEXT(IFERROR(ROUNDDOWN(INDEX(Equipment!$A$41:$J$50,MATCH('Equipment List'!$B$32,Equipment!$K$41:$K$50,0),10),0),""),"0")&" cows" -> 5109 cows
A30: =IFERROR(INDEX(Equipment!$A$41:$J$50,MATCH('Equipment List'!$B$33,Equipment!$K$41:$K$50,0),1),"") -> In-line Pasteurizer 1500 gal/hr | B30: =IF(SMALL(Equipment!$K$41:$K$50,1),SMALL(Equipment!$K$41:$K$50,5),Equipment!$T$13) -> 00:18:40.868 | C30: =IFERROR(INDEX(Equipment!$A$41:$J$50,MATCH('Equipment List'!$B$33,Equipment!$K$41:$K$50,0),5),"") -> 120000 | D30: =IFERROR(INDEX(Equipment!$A$41:$J$50,MATCH('Equipment List'!$B$33,Equipment!$K$41:$K$50,0),6),"") -> 0.01297301024 | E30: =TEXT(IFERROR(INDEX(Equipment!$A$41:$J$50,MATCH('Equipment List'!$B$33,Equipment!$K$41:$K$50,0),9),""),"0.00")&" lbs/day" -> 1018.61 lbs/day | F30: =TEXT(IFERROR(ROUNDDOWN(INDEX(Equipment!$A$41:$J$50,MATCH('Equipment List'!$B$33,Equipment!$K$41:$K$50,0),10),0),""),"0")&" cows" -> 3819 cows
A31: =IFERROR(INDEX(Equipment!$A$41:$J$50,MATCH('Equipment List'!$B$34,Equipment!$K$41:$K$50,0),1),"") -> In-line Pasteurizer 1000 gal/hr | B31: =IF(SMALL(Equipment!$K$41:$K$50,1),SMALL(Equipment!$K$41:$K$50,6),Equipment!$T$13) -> 00:28:01.302 | C31: =IFERROR(INDEX(Equipment!$A$41:$J$50,MATCH('Equipment List'!$B$34,Equipment!$K$41:$K$50,0),5),"") -> 120000 | D31: =IFERROR(INDEX(Equipment!$A$41:$J$50,MATCH('Equipment List'!$B$34,Equipment!$K$41:$K$50,0),6),"") -> 0.01945951536 | E31: =TEXT(IFERROR(INDEX(Equipment!$A$41:$J$50,MATCH('Equipment List'!$B$34,Equipment!$K$41:$K$50,0),9),""),"0.00")&" lbs/day" -> 674.61 lbs/day | F31: =TEXT(IFERROR(ROUNDDOWN(INDEX(Equipment!$A$41:$J$50,MATCH('Equipment List'!$B$34,Equipment!$K$41:$K$50,0),10),0),""),"0")&" cows" -> 2529 cows
A32: =IFERROR(INDEX(Equipment!$A$41:$J$50,MATCH('Equipment List'!$B$35,Equipment!$K$41:$K$50,0),1),"") -> In-line Pasteurizer 500 gal/hr | B32: =IF(SMALL(Equipment!$K$41:$K$50,1),SMALL(Equipment!$K$41:$K$50,7),Equipment!$T$13) -> 00:56:02.604 | C32: =IFERROR(INDEX(Equipment!$A$41:$J$50,MATCH('Equipment List'!$B$35,Equipment!$K$41:$K$50,0),5),"") -> 120000 | D32: =IFERROR(INDEX(Equipment!$A$41:$J$50,MATCH('Equipment List'!$B$35,Equipment!$K$41:$K$50,0),6),"") -> 0.03891903072 | E32: =TEXT(IFERROR(INDEX(Equipment!$A$41:$J$50,MATCH('Equipment List'!$B$35,Equipment!$K$41:$K$50,0),9),""),"0.00")&" lbs/day" -> 330.61 lbs/day | F32: =TEXT(IFERROR(ROUNDDOWN(INDEX(Equipment!$A$41:$J$50,MATCH('Equipment List'!$B$35,Equipment!$K$41:$K$50,0),10),0),""),"0")&" cows" -> 1239 cows
A33: =IFERROR(INDEX(Equipment!$A$41:$J$50,MATCH('Equipment List'!$B$36,Equipment!$K$41:$K$50,0),1),"") -> In-line Pasteurizer 200 gal/hr | B33: =IF(SMALL(Equipment!$K$41:$K$50,1),SMALL(Equipment!$K$41:$K$50,8),Equipment!$T$13) -> 02:20:06.511 | C33: =IFERROR(INDEX(Equipment!$A$41:$J$50,MATCH('Equipment List'!$B$36,Equipment!$K$41:$K$50,0),5),"") -> 120000 | D33: =IFERROR(INDEX(Equipment!$A$41:$J$50,MATCH('Equipment List'!$B$36,Equipment!$K$41:$K$50,0),6),"") -> 0.0972975768 | E33: =TEXT(IFERROR(INDEX(Equipment!$A$41:$J$50,MATCH('Equipment List'!$B$36,Equipment!$K$41:$K$50,0),9),""),"0.00")&" lbs/day" -> 124.21 lbs/day | F33: =TEXT(IFERROR(ROUNDDOWN(INDEX(Equipment!$A$41:$J$50,MATCH('Equipment List'!$B$36,Equipment!$K$41:$K$50,0),10),0),""),"0")&" cows" -> 465 cows
A34: =IFERROR(INDEX(Equipment!$A$41:$J$50,MATCH('Equipment List'!$B$37,Equipment!$K$41:$K$50,0),1),"") -> In-line Pasteurizer 100 gal/hr | B34: =IF(SMALL(Equipment!$K$41:$K$50,1),SMALL(Equipment!$K$41:$K$50,9),Equipment!$T$13) -> 04:40:13.021 | C34: =IFERROR(INDEX(Equipment!$A$41:$J$50,MATCH('Equipment List'!$B$37,Equipment!$K$41:$K$50,0),5),"") -> 120000 | D34: =IFERROR(INDEX(Equipment!$A$41:$J$50,MATCH('Equipment List'!$B$37,Equipment!$K$41:$K$50,0),6),"") -> 0.1945951536 | E34: =TEXT(IFERROR(INDEX(Equipment!$A$41:$J$50,MATCH('Equipment List'!$B$37,Equipment!$K$41:$K$50,0),9),""),"0.00")&" lbs/day" -> 55.41 lbs/day | F34: =TEXT(IFERROR(ROUNDDOWN(INDEX(Equipment!$A$41:$J$50,MATCH('Equipment List'!$B$37,Equipment!$K$41:$K$50,0),10),0),""),"0")&" cows" -> 207 cows
A35: =IFERROR(INDEX(Equipment!$A$41:$J$50,MATCH('Equipment List'!$B$38,Equipment!$K$41:$K$50,0),1),"") -> Quoted In-Line Pasteurizer | B35: =IF(SMALL(Equipment!$K$41:$K$50,1),SMALL(Equipment!$K$41:$K$50,10),Equipment!$T$13) -> 1923-12-25 | C35: =IFERROR(INDEX(Equipment!$A$41:$J$50,MATCH('Equipment List'!$B$38,Equipment!$K$41:$K$50,0),5),"") -> 0 | D35: =IFERROR(INDEX(Equipment!$A$41:$J$50,MATCH('Equipment List'!$B$38,Equipment!$K$41:$K$50,0),6),"") -> 0 | E35: =TEXT(IFERROR(INDEX(Equipment!$A$41:$J$50,MATCH('Equipment List'!$B$38,Equipment!$K$41:$K$50,0),9),""),"0.00")&" lbs/day" -> 0.00 lbs/day | F35: =TEXT(IFERROR(ROUNDDOWN(INDEX(Equipment!$A$41:$J$50,MATCH('Equipment List'!$B$38,Equipment!$K$41:$K$50,0),10),0),""),"0")&" cows" -> 0 cows
A37: Separators
B38: Total Run Time | C38: Equipment Cost | D38: Capacity Utilized | E38: Extra Capcity | F38: Extra Capacity
A39: =IFERROR(INDEX(Equipment!$A$54:$J$60,MATCH('Equipment List'!$B$43,Equipment!$K$54:$K$60,0),1),"") -> Tetra Pak H10 Hot Milk (Max. Capacity 75,000 L/h) | B39: =IF(SMALL(Equipment!$K$54:$K$60,1),SMALL(Equipment!$K$54:$K$60,1),Equipment!$T$13) -> 00:01:24.859 | C39: =IFERROR(INDEX(Equipment!$A$54:$J$60,MATCH('Equipment List'!$B$43,Equipment!$K$54:$K$60,0),5),"") -> 160000 | D39: =IFERROR(INDEX(Equipment!$A$54:$J$60,MATCH('Equipment List'!$B$43,Equipment!$K$54:$K$60,0),6),"") -> 0.0009821637167 | E39: =TEXT(IFERROR(INDEX(Equipment!$A$54:$J$60,MATCH('Equipment List'!$B$43,Equipment!$K$54:$K$60,0),9),""),"0.00")&" lbs/day" -> 13617.89 lbs/day | F39: =TEXT(IFERROR(ROUNDDOWN(INDEX(Equipment!$A$54:$J$60,MATCH('Equipment List'!$B$43,Equipment!$K$54:$K$60,0),10),0),""),"0")&" cows" -> 51067 cows
A40: =IFERROR(INDEX(Equipment!$A$54:$J$60,MATCH('Equipment List'!$B$44,Equipment!$K$54:$K$60,0),1),"") -> Tetra Pak C10 Cold Milk (Max. Capacity 50,000 L/h) | B40: =IF(SMALL(Equipment!$K$54:$K$60,1),SMALL(Equipment!$K$54:$K$60,2),Equipment!$T$13) -> 00:02:07.288 | C40: =IFERROR(INDEX(Equipment!$A$54:$J$60,MATCH('Equipment List'!$B$44,Equipment!$K$54:$K$60,0),5),"") -> 190000 | D40: =IFERROR(INDEX(Equipment!$A$54:$J$60,MATCH('Equipment List'!$B$44,Equipment!$K$54:$K$60,0),6),"") -> 0.001473245575 | E40: =TEXT(IFERROR(INDEX(Equipment!$A$54:$J$60,MATCH('Equipment List'!$B$44,Equipment!$K$54:$K$60,0),9),""),"0.00")&" lbs/day" -> 9074.13 lbs/day | F40: =TEXT(IFERROR(ROUNDDOWN(INDEX(Equipment!$A$54:$J$60,MATCH('Equipment List'!$B$44,Equipment!$K$54:$K$60,0),10),0),""),"0")&" cows" -> 34027 cows
A41: =IFERROR(INDEX(Equipment!$A$54:$J$60,MATCH('Equipment List'!$B$45,Equipment!$K$54:$K$60,0),1),"") -> Tetra Pak H10 Hot Milk (Avg. Capacity 41,000 L/h) | B41: =IF(SMALL(Equipment!$K$54:$K$60,1),SMALL(Equipment!$K$54:$K$60,3),Equipment!$T$13) -> 00:02:35.230 | C41: =IFERROR(INDEX(Equipment!$A$54:$J$60,MATCH('Equipment List'!$B$45,Equipment!$K$54:$K$60,0),5),"") -> 160000 | D41: =IFERROR(INDEX(Equipment!$A$54:$J$60,MATCH('Equipment List'!$B$45,Equipment!$K$54:$K$60,0),6),"") -> 0.001796640945 | E41: =TEXT(IFERROR(INDEX(Equipment!$A$54:$J$60,MATCH('Equipment List'!$B$45,Equipment!$K$54:$K$60,0),9),""),"0.00")&" lbs/day" -> 7438.38 lbs/day | F41: =TEXT(IFERROR(ROUNDDOWN(INDEX(Equipment!$A$54:$J$60,MATCH('Equipment List'!$B$45,Equipment!$K$54:$K$60,0),10),0),""),"0")&" cows" -> 27893 cows
A42: =IFERROR(INDEX(Equipment!$A$54:$J$60,MATCH('Equipment List'!$B$46,Equipment!$K$54:$K$60,0),1),"") -> Tetra Pak C10 Cold Milk (Avg. Capacity 30,000 L/h) | B42: =IF(SMALL(Equipment!$K$54:$K$60,1),SMALL(Equipment!$K$54:$K$60,4),Equipment!$T$13) -> 00:03:32.147 | C42: =IFERROR(INDEX(Equipment!$A$54:$J$60,MATCH('Equipment List'!$B$46,Equipment!$K$54:$K$60,0),5),"") -> 190000 | D42: =IFERROR(INDEX(Equipment!$A$54:$J$60,MATCH('Equipment List'!$B$46,Equipment!$K$54:$K$60,0),6),"") -> 0.002455409292 | E42: =TEXT(IFERROR(INDEX(Equipment!$A$54:$J$60,MATCH('Equipment List'!$B$46,Equipment!$K$54:$K$60,0),9),""),"0.00")&" lbs/day" -> 5439.12 lbs/day | F42: =TEXT(IFERROR(ROUNDDOWN(INDEX(Equipment!$A$54:$J$60,MATCH('Equipment List'!$B$46,Equipment!$K$54:$K$60,0),10),0),""),"0")&" cows" -> 20396 cows
A43: =IFERROR(INDEX(Equipment!$A$54:$J$60,MATCH('Equipment List'!$B$47,Equipment!$K$54:$K$60,0),1),"") -> Tetra Pak C10 Cold Milk (Min. Capacity 10,000 L/h) | B43: =IF(SMALL(Equipment!$K$54:$K$60,1),SMALL(Equipment!$K$54:$K$60,5),Equipment!$T$13) -> 00:10:36.442 | C43: =IFERROR(INDEX(Equipment!$A$54:$J$60,MATCH('Equipment List'!$B$47,Equipment!$K$54:$K$60,0),5),"") -> 190000 | D43: =IFERROR(INDEX(Equipment!$A$54:$J$60,MATCH('Equipment List'!$B$47,Equipment!$K$54:$K$60,0),6),"") -> 0.007366227876 | E43: =TEXT(IFERROR(INDEX(Equipment!$A$54:$J$60,MATCH('Equipment List'!$B$47,Equipment!$K$54:$K$60,0),9),""),"0.00")&" lbs/day" -> 1804.12 lbs/day | F43: =TEXT(IFERROR(ROUNDDOWN(INDEX(Equipment!$A$54:$J$60,MATCH('Equipment List'!$B$47,Equipment!$K$54:$K$60,0),10),0),""),"0")&" cows" -> 6765 cows
A44: =IFERROR(INDEX(Equipment!$A$54:$J$60,MATCH('Equipment List'!$B$48,Equipment!$K$54:$K$60,0),1),"") -> Tetra Pak H10 Hot Milk (Min. Capacity 7,000 L/h) | B44: =IF(SMALL(Equipment!$K$54:$K$60,1),SMALL(Equipment!$K$54:$K$60,6),Equipment!$T$13) -> 00:15:09.203 | C44: =IFERROR(INDEX(Equipment!$A$54:$J$60,MATCH('Equipment List'!$B$48,Equipment!$K$54:$K$60,0),5),"") -> 160000 | D44: =IFERROR(INDEX(Equipment!$A$54:$J$60,MATCH('Equipment List'!$B$48,Equipment!$K$54:$K$60,0),6),"") -> 0.01052318268 | E44: =TEXT(IFERROR(INDEX(Equipment!$A$54:$J$60,MATCH('Equipment List'!$B$48,Equipment!$K$54:$K$60,0),9),""),"0.00")&" lbs/day" -> 1258.86 lbs/day | F44: =TEXT(IFERROR(ROUNDDOWN(INDEX(Equipment!$A$54:$J$60,MATCH('Equipment List'!$B$48,Equipment!$K$54:$K$60,0),10),0),""),"0")&" cows" -> 4720 cows
A45: =IFERROR(INDEX(Equipment!$A$54:$J$60,MATCH('Equipment List'!$B$49,Equipment!$K$54:$K$60,0),1),"") -> Quoted Separator | B45: =IF(SMALL(Equipment!$K$54:$K$60,1),SMALL(Equipment!$K$54:$K$60,7),Equipment!$T$13) -> 05:53:34.736 | C45: =IFERROR(INDEX(Equipment!$A$54:$J$60,MATCH('Equipment List'!$B$49,Equipment!$K$54:$K$60,0),5),"") -> 56500 | D45: =IFERROR(INDEX(Equipment!$A$54:$J$60,MATCH('Equipment List'!$B$49,Equipment!$K$54:$K$60,0),6),"") -> 0.2455409292 | E45: =TEXT(IFERROR(INDEX(Equipment!$A$54:$J$60,MATCH('Equipment List'!$B$49,Equipment!$K$54:$K$60,0),9),""),"0.00")&" lbs/day" -> 41.14 lbs/day | F45: =TEXT(IFERROR(ROUNDDOWN(INDEX(Equipment!$A$54:$J$60,MATCH('Equipment List'!$B$49,Equipment!$K$54:$K$60,0),10),0),""),"0")&" cows" -> 154 cows
A48: Homogenizers
B49: Total Run Time | C49: Equipment Cost | D49: Capacity Utilized | E49: Extra Capcity | F49: Extra Capacity
A50: =IFERROR(INDEX(Equipment!$A$64:$J$70,MATCH('Equipment List'!$B$54,Equipment!$K$64:$K$70,0),1),"") -> Tetra Pak 250 (Max. 7,000 L/h) | B50: =IF(SMALL(Equipment!$K$64:$K$70,1),SMALL(Equipment!$K$64:$K$70,1),Equipment!$T$13) -> 00:15:09.203 | C50: =IFERROR(INDEX(Equipment!$A$64:$J$70,MATCH('Equipment List'!$B$54,Equipment!$K$64:$K$70,0),5),"") -> 152640 | D50: =IFERROR(INDEX(Equipment!$A$64:$J$70,MATCH('Equipment List'!$B$54,Equipment!$K$64:$K$70,0),6),"") -> 0.01052318268 | E50: =TEXT(IFERROR(INDEX(Equipment!$A$64:$J$70,MATCH('Equipment List'!$B$54,Equipment!$K$64:$K$70,0),9),""),"0.00")&" lbs/day" -> 1258.86 lbs/day | F50: =TEXT(IFERROR(ROUNDDOWN(INDEX(Equipment!$A$64:$J$70,MATCH('Equipment List'!$B$54,Equipment!$K$64:$K$70,0),10),0),""),"0")&" cows" -> 4720 cows
A51: =IFERROR(INDEX(Equipment!$A$64:$J$70,MATCH('Equipment List'!$B$55,Equipment!$K$64:$K$70,0),1),"") -> Tetra Pak 250 (Avg. 5,250 L/h) | B51: =IF(SMALL(Equipment!$K$64:$K$70,1),SMALL(Equipment!$K$64:$K$70,2),Equipment!$T$13) -> 00:20:12.271 | C51: =IFERROR(INDEX(Equipment!$A$64:$J$70,MATCH('Equipment List'!$B$55,Equipment!$K$64:$K$70,0),5),"") -> 152640 | D51: =IFERROR(INDEX(Equipment!$A$64:$J$70,MATCH('Equipment List'!$B$55,Equipment!$K$64:$K$70,0),6),"") -> 0.01403091024 | E51: =TEXT(IFERROR(INDEX(Equipment!$A$64:$J$70,MATCH('Equipment List'!$B$55,Equipment!$K$64:$K$70,0),9),""),"0.00")&" lbs/day" -> 940.80 lbs/day | F51: =TEXT(IFERROR(ROUNDDOWN(INDEX(Equipment!$A$64:$J$70,MATCH('Equipment List'!$B$55,Equipment!$K$64:$K$70,0),10),0),""),"0")&" cows" -> 3528 cows
A52: =IFERROR(INDEX(Equipment!$A$64:$J$70,MATCH('Equipment List'!$B$56,Equipment!$K$64:$K$70,0),1),"") -> Tetra Pak 250 (Min. 3,500 L/h) | B52: =IF(SMALL(Equipment!$K$64:$K$70,1),SMALL(Equipment!$K$64:$K$70,3),Equipment!$T$13) -> 00:30:18.406 | C52: =IFERROR(INDEX(Equipment!$A$64:$J$70,MATCH('Equipment List'!$B$56,Equipment!$K$64:$K$70,0),5),"") -> 152640 | D52: =IFERROR(INDEX(Equipment!$A$64:$J$70,MATCH('Equipment List'!$B$56,Equipment!$K$64:$K$70,0),6),"") -> 0.02104636536 | E52: =TEXT(IFERROR(INDEX(Equipment!$A$64:$J$70,MATCH('Equipment List'!$B$56,Equipment!$K$64:$K$70,0),9),""),"0.00")&" lbs/day" -> 622.74 lbs/day | F52: =TEXT(IFERROR(ROUNDDOWN(INDEX(Equipment!$A$64:$J$70,MATCH('Equipment List'!$B$56,Equipment!$K$64:$K$70,0),10),0),""),"0")&" cows" -> 2335 cows
A53: =IFERROR(INDEX(Equipment!$A$64:$J$70,MATCH('Equipment List'!$B$57,Equipment!$K$64:$K$70,0),1),"") -> Quoted Homogenizer | B53: =IF(SMALL(Equipment!$K$64:$K$70,1),SMALL(Equipment!$K$64:$K$70,4),Equipment!$T$13) -> 05:53:34.736 | C53: =IFERROR(INDEX(Equipment!$A$64:$J$70,MATCH('Equipment List'!$B$57,Equipment!$K$64:$K$70,0),5),"") -> 10000 | D53: =IFERROR(INDEX(Equipment!$A$64:$J$70,MATCH('Equipment List'!$B$57,Equipment!$K$64:$K$70,0),6),"") -> 0.2455409292 | E53: =TEXT(IFERROR(INDEX(Equipment!$A$64:$J$70,MATCH('Equipment List'!$B$57,Equipment!$K$64:$K$70,0),9),""),"0.00")&" lbs/day" -> 41.14 lbs/day | F53: =TEXT(IFERROR(ROUNDDOWN(INDEX(Equipment!$A$64:$J$70,MATCH('Equipment List'!$B$57,Equipment!$K$64:$K$70,0),10),0),""),"0")&" cows" -> 154 cows
A54: =IFERROR(INDEX(Equipment!$A$64:$J$70,MATCH('Equipment List'!$B$58,Equipment!$K$64:$K$70,0),1),"") -> Tetra Pak S05 (Max. 30 GPH) | B54: =IF(SMALL(Equipment!$K$64:$K$70,1),SMALL(Equipment!$K$64:$K$70,5),Equipment!$T$13) -> 15:34:03.404 | C54: =IFERROR(INDEX(Equipment!$A$64:$J$70,MATCH('Equipment List'!$B$58,Equipment!$K$64:$K$70,0),5),"") -> 81910 | D54: =IFERROR(INDEX(Equipment!$A$64:$J$70,MATCH('Equipment List'!$B$58,Equipment!$K$64:$K$70,0),6),"") -> 0.648650512 | E54: =TEXT(IFERROR(INDEX(Equipment!$A$64:$J$70,MATCH('Equipment List'!$B$58,Equipment!$K$64:$K$70,0),9),""),"0.00")&" lbs/day" -> 7.25 lbs/day | F54: =TEXT(IFERROR(ROUNDDOWN(INDEX(Equipment!$A$64:$J$70,MATCH('Equipment List'!$B$58,Equipment!$K$64:$K$70,0),10),0),""),"0")&" cows" -> 27 cows
A55: =IFERROR(INDEX(Equipment!$A$64:$J$70,MATCH('Equipment List'!$B$59,Equipment!$K$64:$K$70,0),1),"") -> Tetra Pak S05 (Avg. 22.50 GPH) | B55: =IF(SMALL(Equipment!$K$64:$K$70,1),SMALL(Equipment!$K$64:$K$70,6),Equipment!$T$13) -> 20:45:24.539 | C55: =IFERROR(INDEX(Equipment!$A$64:$J$70,MATCH('Equipment List'!$B$59,Equipment!$K$64:$K$70,0),5),"") -> 81910 | D55: =IFERROR(INDEX(Equipment!$A$64:$J$70,MATCH('Equipment List'!$B$59,Equipment!$K$64:$K$70,0),6),"") -> 0.8648673493 | E55: =TEXT(IFERROR(INDEX(Equipment!$A$64:$J$70,MATCH('Equipment List'!$B$59,Equipment!$K$64:$K$70,0),9),""),"0.00")&" lbs/day" -> 2.09 lbs/day | F55: =TEXT(IFERROR(ROUNDDOWN(INDEX(Equipment!$A$64:$J$70,MATCH('Equipment List'!$B$59,Equipment!$K$64:$K$70,0),10),0),""),"0")&" cows" -> 7 cows
A56: =IFERROR(INDEX(Equipment!$A$64:$J$70,MATCH('Equipment List'!$B$60,Equipment!$K$64:$K$70,0),1),"") -> Tetra Pak S05 (Min. 15 GPH) | B56: =IF(SMALL(Equipment!$K$64:$K$70,1),SMALL(Equipment!$K$64:$K$70,7),Equipment!$T$13) -> 1900-01-01T07:08:06.808 | C56: =IFERROR(INDEX(Equipment!$A$64:$J$70,MATCH('Equipment List'!$B$60,Equipment!$K$64:$K$70,0),5),"") -> 81910 | D56: =IFERROR(INDEX(Equipment!$A$64:$J$70,MATCH('Equipment List'!$B$60,Equipment!$K$64:$K$70,0),6),"") -> 1.297301024 | E56: =TEXT(IFERROR(INDEX(Equipment!$A$64:$J$70,MATCH('Equipment List'!$B$60,Equipment!$K$64:$K$70,0),9),""),"0.00")&" lbs/day" -> -3.07 lbs/day | F56: =TEXT(IFERROR(ROUNDDOWN(INDEX(Equipment!$A$64:$J$70,MATCH('Equipment List'!$B$60,Equipment!$K$64:$K$70,0),10),0),""),"0")&" cows" -> -11 cows
A59: Bottlers: Filler + Capper
B60: Total Run Time | C60: Equipment Cost | D60: Capacity Utilized | E60: Extra Capcity | F60: Extra Capacity
A61: =IFERROR(INDEX(Equipment!$A$75:$J$81,MATCH('Equipment List'!$B$65,Equipment!$K$75:$K$81,0),1),"") -> Federal 309 Gravity Filler (Max. Capacity for 1 gal) | B61: =IF(SMALL(Equipment!$K$75:$K$81,1),SMALL(Equipment!$K$75:$K$81,1),Equipment!$T$13) -> 00:03:53.514 | C61: =IFERROR(INDEX(Equipment!$A$75:$J$81,MATCH('Equipment List'!$B$65,Equipment!$K$75:$K$81,0),5),"") -> 600000 | D61: =IFERROR(INDEX(Equipment!$A$75:$J$81,MATCH('Equipment List'!$B$65,Equipment!$K$75:$K$81,0),6),"") -> 0.002702710467 | E61: =TEXT(IFERROR(INDEX(Equipment!$A$75:$J$81,MATCH('Equipment List'!$B$65,Equipment!$K$75:$K$81,0),9),""),"0.00")&" lbs/day" -> 4940.21 lbs/day | F61: =TEXT(IFERROR(ROUNDDOWN(INDEX(Equipment!$A$75:$J$81,MATCH('Equipment List'!$B$65,Equipment!$K$75:$K$81,0),10),0),""),"0")&" cows" -> 18525 cows
A62: =IFERROR(INDEX(Equipment!$A$75:$J$81,MATCH('Equipment List'!$B$66,Equipment!$K$75:$K$81,0),1),"") -> Federal 309 Gravity Filler (Avg. Capacity for 1 gal) | B62: =IF(SMALL(Equipment!$K$75:$K$81,1),SMALL(Equipment!$K$75:$K$81,2),Equipment!$T$13) -> 00:04:10.194 | C62: =IFERROR(INDEX(Equipment!$A$75:$J$81,MATCH('Equipment List'!$B$66,Equipment!$K$75:$K$81,0),5),"") -> 600000 | D62: =IFERROR(INDEX(Equipment!$A$75:$J$81,MATCH('Equipment List'!$B$66,Equipment!$K$75:$K$81,0),6),"") -> 0.002895761214 | E62: =TEXT(IFERROR(INDEX(Equipment!$A$75:$J$81,MATCH('Equipment List'!$B$66,Equipment!$K$75:$K$81,0),9),""),"0.00")&" lbs/day" -> 4609.97 lbs/day | F62: =TEXT(IFERROR(ROUND(INDEX(Equipment!$A$75:$J$81,MATCH('Equipment List'!$B$66,Equipment!$K$75:$K$81,0),10),0),""),"0")&" cows" -> 17287 cows
A63: =IFERROR(INDEX(Equipment!$A$75:$J$81,MATCH('Equipment List'!$B$67,Equipment!$K$75:$K$81,0),1),"") -> Federal 309 Gravity Filler (Min. Capacity for 1 gal) | B63: =IF(SMALL(Equipment!$K$75:$K$81,1),SMALL(Equipment!$K$75:$K$81,3),Equipment!$T$13) -> 00:04:26.873 | C63: =IFERROR(INDEX(Equipment!$A$75:$J$81,MATCH('Equipment List'!$B$67,Equipment!$K$75:$K$81,0),5),"") -> 600000 | D63: =IFERROR(INDEX(Equipment!$A$75:$J$81,MATCH('Equipment List'!$B$67,Equipment!$K$75:$K$81,0),6),"") -> 0.003088811962 | E63: =TEXT(IFERROR(INDEX(Equipment!$A$75:$J$81,MATCH('Equipment List'!$B$67,Equipment!$K$75:$K$81,0),9),""),"0.00")&" lbs/day" -> 4321.01 lbs/day | F63: =TEXT(IFERROR(ROUNDDOWN(INDEX(Equipment!$A$75:$J$81,MATCH('Equipment List'!$B$67,Equipment!$K$75:$K$81,0),10),0),""),"0")&" cows" -> 16203 cows
A64: =IFERROR(INDEX(Equipment!$A$75:$J$81,MATCH('Equipment List'!$B$68,Equipment!$K$75:$K$81,0),1),"") -> Federal 309 Gravity Filler (Max. Capacity for 0.5 gal) | B64: =IF(SMALL(Equipment!$K$75:$K$81,1),SMALL(Equipment!$K$75:$K$81,4),Equipment!$T$13) -> 00:05:50.271 | C64: =IFERROR(INDEX(Equipment!$A$75:$J$81,MATCH('Equipment List'!$B$68,Equipment!$K$75:$K$81,0),5),"") -> 600000 | D64: =IFERROR(INDEX(Equipment!$A$75:$J$81,MATCH('Equipment List'!$B$68,Equipment!$K$75:$K$81,0),6),"") -> 0.00202703285 | E64: =TEXT(IFERROR(INDEX(Equipment!$A$75:$J$81,MATCH('Equipment List'!$B$68,Equipment!$K$75:$K$81,0),9),""),"0.00")&" lbs/day" -> 6591.41 lbs/day | F64: =TEXT(IFERROR(ROUNDDOWN(INDEX(Equipment!$A$75:$J$81,MATCH('Equipment List'!$B$68,Equipment!$K$75:$K$81,0),10),0),""),"0")&" cows" -> 24717 cows
A65: =IFERROR(INDEX(Equipment!$A$75:$J$81,MATCH('Equipment List'!$B$69,Equipment!$K$75:$K$81,0),1),"") -> Federal 309 Gravity Filler (Avg. Capacity for 0.5 gal) | B65: =IF(SMALL(Equipment!$K$75:$K$81,1),SMALL(Equipment!$K$75:$K$81,5),Equipment!$T$13) -> 00:06:29.190 | C65: =IFERROR(INDEX(Equipment!$A$75:$J$81,MATCH('Equipment List'!$B$69,Equipment!$K$75:$K$81,0),5),"") -> 600000 | D65: =IFERROR(INDEX(Equipment!$A$75:$J$81,MATCH('Equipment List'!$B$69,Equipment!$K$75:$K$81,0),6),"") -> 0.002252258722 | E65: =TEXT(IFERROR(INDEX(Equipment!$A$75:$J$81,MATCH('Equipment List'!$B$69,Equipment!$K$75:$K$81,0),9),""),"0.00")&" lbs/day" -> 5930.93 lbs/day | F65: =TEXT(IFERROR(ROUNDDOWN(INDEX(Equipment!$A$75:$J$81,MATCH('Equipment List'!$B$69,Equipment!$K$75:$K$81,0),10),0),""),"0")&" cows" -> 22240 cows
A66: =IFERROR(INDEX(Equipment!$A$75:$J$81,MATCH('Equipment List'!$B$70,Equipment!$K$75:$K$81,0),1),"") -> Federal 309 Gravity Filler (Min. Capacity for 0.5 gal) | B66: =IF(SMALL(Equipment!$K$75:$K$81,1),SMALL(Equipment!$K$75:$K$81,6),Equipment!$T$13) -> 00:07:17.839 | C66: =IFERROR(INDEX(Equipment!$A$75:$J$81,MATCH('Equipment List'!$B$70,Equipment!$K$75:$K$81,0),5),"") -> 600000 | D66: =IFERROR(INDEX(Equipment!$A$75:$J$81,MATCH('Equipment List'!$B$70,Equipment!$K$75:$K$81,0),6),"") -> 0.002533791063 | E66: =TEXT(IFERROR(INDEX(Equipment!$A$75:$J$81,MATCH('Equipment List'!$B$70,Equipment!$K$75:$K$81,0),9),""),"0.00")&" lbs/day" -> 5270.45 lbs/day | F66: =TEXT(IFERROR(ROUNDDOWN(INDEX(Equipment!$A$75:$J$81,MATCH('Equipment List'!$B$70,Equipment!$K$75:$K$81,0),10),0),""),"0")&" cows" -> 19764 cows
A67: =IFERROR(INDEX(Equipment!$A$75:$J$81,MATCH('Equipment List'!$B$71,Equipment!$K$75:$K$81,0),1),"") -> Quoted Bottler | B67: =IF(SMALL(Equipment!$K$75:$K$81,1),SMALL(Equipment!$K$75:$K$81,7),Equipment!$T$13) -> 15:34:03.404 | C67: =IFERROR(INDEX(Equipment!$A$75:$J$81,MATCH('Equipment List'!$B$71,Equipment!$K$75:$K$81,0),5),"") -> 36000 | D67: =IFERROR(INDEX(Equipment!$A$75:$J$81,MATCH('Equipment List'!$B$71,Equipment!$K$75:$K$81,0),6),"") -> 0.648650512 | E67: =TEXT(IFERROR(INDEX(Equipment!$A$75:$J$81,MATCH('Equipment List'!$B$71,Equipment!$K$75:$K$81,0),9),""),"0.00")&" lbs/day" -> 7.25 lbs/day | F67: =TEXT(IFERROR(ROUNDDOWN(INDEX(Equipment!$A$75:$J$81,MATCH('Equipment List'!$B$71,Equipment!$K$75:$K$81,0),10),0),""),"0")&" cows" -> 27 cows

Sheet Suggested Equipment
A1: This 'Suggested Equipment' sheet compares four equipment packages: your choice list from the inputs sheet, the most efficient combination, the most economical combination, and a basic pasteurizer and bottler combination. For each, it shows total cost, processing time (not including cleanup time), payback period (years to breakeven), net present value (NPV), and internal rate of return (IRR). Payback period represents the number of years it will take to overcome the initial investment cost and begin to return a profit. Net present value represents the total value of your investment over time, in other words, how much more you would earn compared to the alternative (not processing). Internal rate of return tells you how fast your money is expected to grow with the investment in a bottled milk operation. Lower payback period and larger net present values and internal rate of returns are best.
A12: **Total Time does not include cleanup time** | D12: ***Anything over 100% capacity utilized, means you have used more than your equipment can handle
A14: Your Choice Equipment List | B14: Equipment Description | C14: Equipment Cost | D14: Time Required | E14: Capacity Utilized | F14: Extra Capacity | G14: Extra Capacity
A15: Pasteurizers (Vat) | B15: =Inputs!$B$50 -> Quoted Vat Pasteurizer | C15: =VLOOKUP('Suggested Equipment'!$B$15,Equipment!$A$22:$K$39,5,FALSE) -> 28000 | D15: =VLOOKUP('Suggested Equipment'!$B$15,Equipment!$A$22:$K$39,11,FALSE) -> 04:38:49.374 | E15: =VLOOKUP('Suggested Equipment'!$B$15,Equipment!$A$22:$K$39,6,FALSE) -> 0.1936270185 | F15: =TEXT(VLOOKUP('Suggested Equipment'!$B$15,Equipment!$A$22:$K$39,9,FALSE),"0")&" lbs/day" -> 56 lbs/day | G15: =TEXT(VLOOKUP('Suggested Equipment'!$B$15,Equipment!$A$22:$K$39,10,FALSE),"0")&" cows" -> 209 cows
A16: In-Line Pasteurizer | B16: =Inputs!$B$51 -> Not Applicable | C16: =VLOOKUP('Suggested Equipment'!$B$16,Equipment!$A$40:$K$51,5,FALSE) -> 0 | D16: =VLOOKUP('Suggested Equipment'!$B$16,Equipment!$A$40:$K$51,11,FALSE) -> 00:00:00 | E16: =VLOOKUP('Suggested Equipment'!$B$16,Equipment!$A$40:$K$51,6,FALSE) -> 0 | F16: =TEXT(VLOOKUP('Suggested Equipment'!$B$16,Equipment!$A$40:$K$51,9,FALSE),"0")&" lbs/day" -> 0 lbs/day | G16: =TEXT(VLOOKUP('Suggested Equipment'!$B$16,Equipment!$A$40:$K$51,10,FALSE),"0")&" cows" -> 0 cows
A17: Separator | B17: =Inputs!$B$52 -> Quoted Separator | C17: =VLOOKUP('Suggested Equipment'!$B$17,Equipment!$A$54:$K$61,5,FALSE) -> 56500 | D17: =VLOOKUP('Suggested Equipment'!$B$17,Equipment!$A$54:$K$61,11,FALSE) -> 05:53:34.736 | E17: =VLOOKUP('Suggested Equipment'!$B$17,Equipment!$A$54:$K$61,6,FALSE) -> 0.2455409292 | F17: =TEXT(VLOOKUP('Suggested Equipment'!$B$17,Equipment!$A$54:$K$61,9,FALSE),"0")&" lbs/day" -> 41 lbs/day | G17: =TEXT(VLOOKUP('Suggested Equipment'!$B$17,Equipment!$A$54:$K$61,10,FALSE),"0")&" cows" -> 154 cows
A18: Homogenizer | B18: =Inputs!$B$53 -> Quoted Homogenizer | C18: =VLOOKUP('Suggested Equipment'!$B$18,Equipment!$A$64:$K$71,5,FALSE) -> 10000 | D18: =VLOOKUP('Suggested Equipment'!$B$18,Equipment!$A$64:$K$71,11,FALSE) -> 05:53:34.736 | E18: =VLOOKUP('Suggested Equipment'!$B$18,Equipment!$A$64:$K$71,6,FALSE) -> 0.2455409292 | F18: =TEXT(VLOOKUP('Suggested Equipment'!$B$18,Equipment!$A$64:$K$71,9,FALSE),"0")&" lbs/day" -> 41 lbs/day | G18: =TEXT(VLOOKUP('Suggested Equipment'!$B$18,Equipment!$A$64:$K$71,10,FALSE),"0")&" cows" -> 154 cows
A19: Bottler | B19: =Inputs!$B$54 -> Quoted Bottler | C19: =VLOOKUP('Suggested Equipment'!$B$19,Equipment!$A$75:$K$82,5,FALSE) -> 36000 | D19: =VLOOKUP('Suggested Equipment'!$B$19,Equipment!$A$75:$K$82,11,FALSE) -> 15:34:03.404 | E19: =VLOOKUP('Suggested Equipment'!$B$19,Equipment!$A$75:$K$82,6,FALSE) -> 0.648650512 | F19: =TEXT(VLOOKUP('Suggested Equipment'!$B$19,Equipment!$A$75:$K$829,9,FALSE),"0")&" lbs/day" -> 7 lbs/day | G19: =TEXT(VLOOKUP('Suggested Equipment'!$B$19,Equipment!$A$75:$K$82,10,FALSE),"0")&" cows" -> 27 cows
A20: BEP Equip Cost | B20: =SUM('Suggested Equipment'!$C$15:$C$19) -> 130500 | C20: BEP PP | D20: =NPV_own!$G$30 -> 0.8304275839
A21: BEP Added Cost | B21: =SUM(Inputs!$B$58:$B$78) -> 90100 | C21: BEP NPV | D21: =NPV_own!$G$28 -> 3889251.019
A22: BEP Total Time | B22: =SUM('Suggested Equipment'!$D$15:$D$19) -> 1900-01-01T08:00:02.251 | C22: BEP IRR | D22: =NPV_own!$E$27 -> 1.354723736
A27: Most Efficient | B27: Equipment Suggestion | C27: Equipment Cost | D27: Time Required | E27: Capacity Utilized | F27: Extra Capacity | G27: Extra Capacity
A28: Pasteurizer | B28: =VLOOKUP('Suggested Equipment'!$D$28,CHOOSE({1,2},Equipment!$K$85:$K$111,Equipment!$A$85:$A$111),2,FALSE) -> In-line Pasteurizer 3500 gal/hr | C28: =VLOOKUP('Suggested Equipment'!$D$28,CHOOSE({1,2},Equipment!$K$85:$K$111,Equipment!$E$85:$E$111),2,FALSE) -> 120000 | D28: =MIN(Equipment!$D$85:$D$111) -> 00:08:00.372 | E28: =MIN(Equipment!$F$85:$F$111) -> 0 | F28: =TEXT(MAX(Equipment!$I$85:$I$111),"0")&" lbs/day" -> 2395 lbs/day | G28: =TEXT(MAX(Equipment!$J$85:$J$111),"0")&" cows" -> 8980 cows
A29: Separator | B29: =VLOOKUP('Suggested Equipment'!$D$29,CHOOSE({1,2},'Equipment List'!$B$43:$B$49,'Equipment List'!$A$43:$A$49),2,FALSE) -> Tetra Pak H10 Hot Milk (Max. Capacity 75,000 L/h) | C29: =VLOOKUP('Suggested Equipment'!$D$29,CHOOSE({1,2},'Equipment List'!$B$43:$B$49,'Equipment List'!$C$43:$C$49),2,FALSE) -> 160000 | D29: ='Equipment List'!$B$43 -> 00:01:24.859 | E29: ='Equipment List'!$D$43 -> 0.0009821637167 | F29: =TEXT('Equipment List'!$E$43,"0")&" lbs/day" -> 13618 lbs/day | G29: =TEXT('Equipment List'!$F$43,"0")&" cows" -> 51067 cows
A30: Homogenizer | B30: =VLOOKUP('Suggested Equipment'!$D$30,CHOOSE({1,2},'Equipment List'!$B$54:$B$57,'Equipment List'!$A$54:$A$57),2,FALSE) -> Tetra Pak 250 (Max. 7,000 L/h) | C30: =VLOOKUP('Suggested Equipment'!$D$30,'Equipment List'!$B$54:$C$57,2,FALSE) -> 152640 | D30: ='Equipment List'!$B$54 -> 00:15:09.203 | E30: ='Equipment List'!$D$54 -> 0.01052318268 | F30: =TEXT('Equipment List'!$E$54,"0")&" lbs/day" -> 1259 lbs/day | G30: =TEXT('Equipment List'!$F$54,"0")&" cows" -> 4720 cows
A31: Bottler | B31: =VLOOKUP('Suggested Equipment'!$D$31,CHOOSE({1,2},'Equipment List'!$B$65:$B$70,'Equipment List'!$A$65:$A$70),2,FALSE) -> Federal 309 Gravity Filler (Max. Capacity for 1 gal) | C31: =VLOOKUP('Suggested Equipment'!$D$31,'Equipment List'!$B$65:$C$70,2,FALSE) -> 600000 | D31: ='Equipment List'!$B$65 -> 00:03:53.514 | E31: ='Equipment List'!$D$65 -> 0.002702710467 | F31: =TEXT('Equipment List'!$E$65,"0")&" lbs/day" -> 4940 lbs/day | G31: =TEXT('Equipment List'!$F$65,"0")&" cows" -> 18525 cows
A32: TEP Equip Cost | B32: =SUM('Suggested Equipment'!$C$28:$C$31) -> 1032640 | C32: TEP PP | D32: =NPV_eff!$G$30 -> 2.808177518
A33: TEP Added Cost | B33: =SUM(Inputs!$B$58:$B$78) -> 90100 | C33: TEP NPV | D33: =NPV_eff!$G$28 -> 2987111.019
A34: TEP Total Time | B34: =SUM('Suggested Equipment'!$D$28:$D$31) -> 00:28:27.948 | C34: TEP IRR | D34: =NPV_eff!$E$27 -> 0.4448296273
A39: Most Economical | B39: Equipment Suggestion | C39: Equipment Cost | D39: Time Required | E39: Capacity Utilized | F39: Extra Capacity | G39: Extra Capacity
A40: Pasteurizer | B40: =Equipment!$A$120 -> ANCO Equipment (400 gal. capacity) | C40: =VLOOKUP('Suggested Equipment'!$B$40,Equipment!$A$22:$K$39,5,FALSE) -> 24000 | D40: =VLOOKUP('Suggested Equipment'!$B$40,Equipment!$A$22:$K$39,11,FALSE) -> 02:20:06.511 | E40: =VLOOKUP('Suggested Equipment'!$B$40,Equipment!$A$22:$K$39,6,FALSE) -> 0.0972975768 | F40: =TEXT(VLOOKUP('Suggested Equipment'!$B$40,Equipment!$A$22:$K$39,9,FALSE),"0")&" lbs/day" -> 124 lbs/day | G40: =TEXT(VLOOKUP('Suggested Equipment'!$B$40,Equipment!$A$22:$K$39,10,FALSE),"0")&" cows" -> 466 cows
A41: Separator | B41: =Equipment!$A$123 -> Tetra Pak H10 Hot Milk (Avg. Capacity 41,000 L/h) | C41: =VLOOKUP('Suggested Equipment'!$B$41,Equipment!$A$54:$K$61,5,FALSE) -> 160000 | D41: =VLOOKUP('Suggested Equipment'!$B$41,Equipment!$A$54:$K$61,11,FALSE) -> 00:02:35.230 | E41: =VLOOKUP('Suggested Equipment'!$B$41,Equipment!$A$54:$K$61,6,FALSE) -> 0.001796640945 | F41: =TEXT(VLOOKUP('Suggested Equipment'!$B$41,Equipment!$A$54:$K$61,9,FALSE),"0")&" lbs/day" -> 7438 lbs/day | G41: =TEXT(VLOOKUP('Suggested Equipment'!$B$41,Equipment!$A$54:$K$61,10,FALSE),"0")&" cows" -> 27894 cows
A42: Homogenizer | B42: =Equipment!$A$122 -> Tetra Pak 250 (Max. 7,000 L/h) | C42: =VLOOKUP('Suggested Equipment'!$B$42,Equipment!$A$64:$K$71,5,FALSE) -> 152640 | D42: =VLOOKUP('Suggested Equipment'!$B$42,Equipment!$A$64:$K$71,11,FALSE) -> 00:15:09.203 | E42: =VLOOKUP('Suggested Equipment'!$B$42,Equipment!$A$64:$K$71,6,FALSE) -> 0.01052318268 | F42: =TEXT(VLOOKUP('Suggested Equipment'!$B$42,Equipment!$A$64:$K$71,9,FALSE),"0")&" lbs/day" -> 1259 lbs/day | G42: =TEXT(VLOOKUP('Suggested Equipment'!$B$42,Equipment!$A$64:$K$71,10,FALSE),"0")&" cows" -> 4721 cows
A43: Bottler | B43: =Equipment!$A$121 -> Federal 309 Gravity Filler (Min. Capacity for 1 gal) | C43: =VLOOKUP('Suggested Equipment'!$B$43,Equipment!$A$75:$K$82,5,FALSE) -> 600000 | D43: =VLOOKUP('Suggested Equipment'!$B$43,Equipment!$A$75:$K$82,11,FALSE) -> 00:04:26.873 | E43: =VLOOKUP('Suggested Equipment'!$B$43,Equipment!$A$75:$K$82,6,FALSE) -> 0.003088811962 | F43: =TEXT(VLOOKUP('Suggested Equipment'!$B$43,Equipment!$A$75:$K$829,9,FALSE),"0")&" lbs/day" -> 4321 lbs/day | G43: =TEXT(VLOOKUP('Suggested Equipment'!$B$43,Equipment!$A$75:$K$82,10,FALSE),"0")&" cows" -> 16204 cows
A44: CEP Equip Cost | B44: =SUM('Suggested Equipment'!$C$40:$C$43) -> 936640 | C44: CEP PP | D44: =NPV_econ!$G$30 -> 2.579623092
A45: CEP Added Cost | B45: =SUM(Inputs!$B$58:$B$78) -> 90100 | C45: CEP NPV | D45: =NPV_econ!$G$28 -> 3083111.019
A46: CEP Total Time | B46: =SUM('Suggested Equipment'!$D$40:$D$43) -> 02:42:17.817 | C46: CEP IRR | D46: =NPV_econ!$E$27 -> 0.4791726945
A51: Basic Pastuerizer/Bottler | B51: Equipment Suggestion | C51: Equipment Cost | D51: Time Required | E51: Capacity Utilized | F51: Extra Capacity | G51: Extra Capacity
A52: Pasteurizer | B52: =Equipment!$A$94 -> ANCO Equipment (500 gal. capcity) | C52: =Equipment!$E$94 -> 26500 | D52: =Equipment!$K$94 -> 01:52:05.209 | E52: =Equipment!$F$94 -> 0.07783806144 | F52: =TEXT(Equipment!$I$94,"0")&" lbs/day" -> 159 lbs/day | G52: =TEXT(Equipment!$J$94,"0")&" cows" -> 595 cows
A53: Bottler | B53: =Equipment!$A$79 -> Federal 309 Gravity Filler (Avg. Capacity for 0.5 gal) | C53: =Equipment!$E$79 -> 600000 | D53: =Equipment!$K$79 -> 00:06:29.190 | E53: =Equipment!$F$79 -> 0.002252258722 | F53: =TEXT(Equipment!$I$79,"0")&" lbs/day" -> 5931 lbs/day | G53: =TEXT(Equipment!$J$79,"0")&" cows" -> 22241 cows
A54: SEP Equip Cost | B54: =SUM('Suggested Equipment'!$C$52:$C$53) -> 626500 | C54: SEP PP | D54: =NPV_basic!$G$30 -> 1.858888398
A55: SEP Added Cost | B55: =SUM(Inputs!$B$58:$B$78) -> 90100 | C55: SEP NPV | D55: =NPV_basic!$G$28 -> 3393251.019
A56: SEP Total Time | B56: =SUM('Suggested Equipment'!$D$52:$D$53) -> 01:58:34.399 | C56: SEP IRR | D56: =NPV_basic!$E$27 -> 0.6379186796
A65: Click the button below to return to the instructions sheet.

Sheet Equipment List
A1: This 'Equipment List' sheet presents all available pasteurizers, separators, homogenizers, and bottlers used in this tool, sorted from shortest to longest run-times. It includes estimated cost as well as processing and growth capacities.
A6: Vat Pasteurizers
B7: Total Run Time | C7: Equipment Cost | D7: Capacity Utilized | E7: Extra Capacity | F7: Extra Capacity
A8: =IFERROR(INDEX(Equipment!$A$22:$J$38,MATCH('Equipment List'!$B$8,Equipment!$K$22:$K$38,0),1),"") -> ANCO Equipment (2000 gal. capacity) | B8: =IF(SMALL(Equipment!$K$22:$K$38,1),SMALL(Equipment!$K$22:$K$38,1),Equipment!$T$13) -> 00:28:01.302 | C8: =IFERROR(INDEX(Equipment!$A$22:$J$38,MATCH('Equipment List'!$B$8,Equipment!$K$22:$K$38,0),5),"") -> 56000 | D8: =IFERROR(INDEX(Equipment!$A$22:$J$38,MATCH('Equipment List'!$B$8,Equipment!$K$22:$K$38,0),6),"") -> 0.01945951536 | E8: =IFERROR(INDEX(Equipment!$A$22:$J$38,MATCH('Equipment List'!$B$8,Equipment!$K$22:$K$38,0),9),"") -> 674.6118534 | F8: =IFERROR(ROUNDDOWN(INDEX(Equipment!$A$22:$J$38,MATCH('Equipment List'!$B$8,Equipment!$K$22:$K$38,0),10),0),"") -> 2529
A9: =IFERROR(INDEX(Equipment!$A$22:$J$38,MATCH('Equipment List'!$B$9,Equipment!$K$22:$K$38,0),1),"") -> ANCO Equipment (1500 gal. capacity) | B9: =IF(SMALL(Equipment!$K$22:$K$38,1),SMALL(Equipment!$K$22:$K$38,2),Equipment!$T$13) -> 00:37:21.736 | C9: =IFERROR(INDEX(Equipment!$A$22:$J$38,MATCH('Equipment List'!$B$9,Equipment!$K$22:$K$38,0),5),"") -> 49500 | D9: =IFERROR(INDEX(Equipment!$A$22:$J$38,MATCH('Equipment List'!$B$9,Equipment!$K$22:$K$38,0),6),"") -> 0.02594602048 | E9: =IFERROR(INDEX(Equipment!$A$22:$J$38,MATCH('Equipment List'!$B$9,Equipment!$K$22:$K$38,0),9),"") -> 502.6118534 | F9: =IFERROR(ROUNDDOWN(INDEX(Equipment!$A$22:$J$38,MATCH('Equipment List'!$B$9,Equipment!$K$22:$K$38,0),10),0),"") -> 1884
A10: =IFERROR(INDEX(Equipment!$A$22:$J$38,MATCH('Equipment List'!$B$10,Equipment!$K$22:$K$38,0),1),"") -> ANCO Equipment (1200 gal. capacity) | B10: =IF(SMALL(Equipment!$K$22:$K$38,1),SMALL(Equipment!$K$22:$K$38,3),Equipment!$T$13) -> 00:46:42.170 | C10: =IFERROR(INDEX(Equipment!$A$22:$J$38,MATCH('Equipment List'!$B$10,Equipment!$K$22:$K$38,0),5),"") -> 45500 | D10: =IFERROR(INDEX(Equipment!$A$22:$J$38,MATCH('Equipment List'!$B$10,Equipment!$K$22:$K$38,0),6),"") -> 0.0324325256 | E10: =IFERROR(INDEX(Equipment!$A$22:$J$38,MATCH('Equipment List'!$B$10,Equipment!$K$22:$K$38,0),9),"") -> 399.4118534 | F10: =IFERROR(ROUNDDOWN(INDEX(Equipment!$A$22:$J$38,MATCH('Equipment List'!$B$10,Equipment!$K$22:$K$38,0),10),0),"") -> 1497
A11: =IFERROR(INDEX(Equipment!$A$22:$J$38,MATCH('Equipment List'!$B$11,Equipment!$K$22:$K$38,0),1),"") -> ANCO Equipment (1000 gal. capacity) | B11: =IF(SMALL(Equipment!$K$22:$K$38,1),SMALL(Equipment!$K$22:$K$38,4),Equipment!$T$13) -> 00:56:02.604 | C11: =IFERROR(INDEX(Equipment!$A$22:$J$38,MATCH('Equipment List'!$B$11,Equipment!$K$22:$K$38,0),5),"") -> 39500 | D11: =IFERROR(INDEX(Equipment!$A$22:$J$38,MATCH('Equipment List'!$B$11,Equipment!$K$22:$K$38,0),6),"") -> 0.03891903072 | E11: =IFERROR(INDEX(Equipment!$A$22:$J$38,MATCH('Equipment List'!$B$11,Equipment!$K$22:$K$38,0),9),"") -> 330.6118534 | F11: =IFERROR(ROUNDDOWN(INDEX(Equipment!$A$22:$J$38,MATCH('Equipment List'!$B$11,Equipment!$K$22:$K$38,0),10),0),"") -> 1239
A12: =IFERROR(INDEX(Equipment!$A$22:$J$38,MATCH('Equipment List'!$B$12,Equipment!$K$22:$K$38,0),1),"") -> ANCO Equipment (800 gal. capacity) | B12: =IF(SMALL(Equipment!$K$22:$K$38,1),SMALL(Equipment!$K$22:$K$38,5),Equipment!$T$13) -> 01:10:03.255 | C12: =IFERROR(INDEX(Equipment!$A$22:$J$38,MATCH('Equipment List'!$B$12,Equipment!$K$22:$K$38,0),5),"") -> 32000 | D12: =IFERROR(INDEX(Equipment!$A$22:$J$38,MATCH('Equipment List'!$B$12,Equipment!$K$22:$K$38,0),6),"") -> 0.0486487884 | E12: =IFERROR(INDEX(Equipment!$A$22:$J$38,MATCH('Equipment List'!$B$12,Equipment!$K$22:$K$38,0),9),"") -> 261.8118534 | F12: =IFERROR(ROUNDDOWN(INDEX(Equipment!$A$22:$J$38,MATCH('Equipment List'!$B$12,Equipment!$K$22:$K$38,0),10),0),"") -> 981
A13: =IFERROR(INDEX(Equipment!$A$22:$J$38,MATCH('Equipment List'!$B$13,Equipment!$K$22:$K$38,0),1),"") -> ANCO Equipment (600 gal. capacity) | B13: =IF(SMALL(Equipment!$K$22:$K$38,1),SMALL(Equipment!$K$22:$K$38,6),Equipment!$T$13) -> 01:33:24.340 | C13: =IFERROR(INDEX(Equipment!$A$22:$J$38,MATCH('Equipment List'!$B$13,Equipment!$K$22:$K$38,0),5),"") -> 28500 | D13: =IFERROR(INDEX(Equipment!$A$22:$J$38,MATCH('Equipment List'!$B$13,Equipment!$K$22:$K$38,0),6),"") -> 0.0648650512 | E13: =IFERROR(INDEX(Equipment!$A$22:$J$38,MATCH('Equipment List'!$B$13,Equipment!$K$22:$K$38,0),9),"") -> 193.0118534 | F13: =IFERROR(ROUNDDOWN(INDEX(Equipment!$A$22:$J$38,MATCH('Equipment List'!$B$13,Equipment!$K$22:$K$38,0),10),0),"") -> 723
A14: =IFERROR(INDEX(Equipment!$A$22:$J$38,MATCH('Equipment List'!$B$14,Equipment!$K$22:$K$38,0),1),"") -> ANCO Equipment (500 gal. capcity) | B14: =IF(SMALL(Equipment!$K$22:$K$38,1),SMALL(Equipment!$K$22:$K$38,7),Equipment!$T$13) -> 01:52:05.209 | C14: =IFERROR(INDEX(Equipment!$A$22:$J$38,MATCH('Equipment List'!$B$14,Equipment!$K$22:$K$38,0),5),"") -> 26500 | D14: =IFERROR(INDEX(Equipment!$A$22:$J$38,MATCH('Equipment List'!$B$14,Equipment!$K$22:$K$38,0),6),"") -> 0.07783806144 | E14: =IFERROR(INDEX(Equipment!$A$22:$J$38,MATCH('Equipment List'!$B$14,Equipment!$K$22:$K$38,0),9),"") -> 158.6118534 | F14: =IFERROR(ROUNDDOWN(INDEX(Equipment!$A$22:$J$38,MATCH('Equipment List'!$B$14,Equipment!$K$22:$K$38,0),10),0),"") -> 594
A15: =IFERROR(INDEX(Equipment!$A$22:$J$38,MATCH('Equipment List'!$B$15,Equipment!$K$22:$K$38,0),1),"") -> ANCO Equipment (400 gal. capacity) | B15: =IF(SMALL(Equipment!$K$22:$K$38,1),SMALL(Equipment!$K$22:$K$38,8),Equipment!$T$13) -> 02:20:06.511 | C15: =IFERROR(INDEX(Equipment!$A$22:$J$38,MATCH('Equipment List'!$B$15,Equipment!$K$22:$K$38,0),5),"") -> 24000 | D15: =IFERROR(INDEX(Equipment!$A$22:$J$38,MATCH('Equipment List'!$B$15,Equipment!$K$22:$K$38,0),6),"") -> 0.0972975768 | E15: =IFERROR(INDEX(Equipment!$A$22:$J$38,MATCH('Equipment List'!$B$15,Equipment!$K$22:$K$38,0),9),"") -> 124.2118534 | F15: =IFERROR(ROUNDDOWN(INDEX(Equipment!$A$22:$J$38,MATCH('Equipment List'!$B$15,Equipment!$K$22:$K$38,0),10),0),"") -> 465
A16: =IFERROR(INDEX(Equipment!$A$22:$J$38,MATCH('Equipment List'!$B$16,Equipment!$K$22:$K$38,0),1),"") -> ANCO Equipment (300 gal. capacity) | B16: =IF(SMALL(Equipment!$K$22:$K$38,1),SMALL(Equipment!$K$22:$K$38,9),Equipment!$T$13) -> 03:06:48.681 | C16: =IFERROR(INDEX(Equipment!$A$22:$J$38,MATCH('Equipment List'!$B$16,Equipment!$K$22:$K$38,0),5),"") -> 20000 | D16: =IFERROR(INDEX(Equipment!$A$22:$J$38,MATCH('Equipment List'!$B$16,Equipment!$K$22:$K$38,0),6),"") -> 0.1297301024 | E16: =IFERROR(INDEX(Equipment!$A$22:$J$38,MATCH('Equipment List'!$B$16,Equipment!$K$22:$K$38,0),9),"") -> 89.81185343 | F16: =IFERROR(ROUNDDOWN(INDEX(Equipment!$A$22:$J$38,MATCH('Equipment List'!$B$16,Equipment!$K$22:$K$38,0),10),0),"") -> 336
A17: =IFERROR(INDEX(Equipment!$A$22:$J$38,MATCH('Equipment List'!$B$17,Equipment!$K$22:$K$38,0),1),"") -> Quoted Vat Pasteurizer | B17: =IF(SMALL(Equipment!$K$22:$K$38,1),SMALL(Equipment!$K$22:$K$38,10),Equipment!$T$13) -> 04:38:49.374 | C17: =IFERROR(INDEX(Equipment!$A$22:$J$38,MATCH('Equipment List'!$B$17,Equipment!$K$22:$K$38,0),5),"") -> 28000 | D17: =IFERROR(INDEX(Equipment!$A$22:$J$38,MATCH('Equipment List'!$B$17,Equipment!$K$22:$K$38,0),6),"") -> 0.1936270185 | E17: =IFERROR(INDEX(Equipment!$A$22:$J$38,MATCH('Equipment List'!$B$17,Equipment!$K$22:$K$38,0),9),"") -> 55.75585343 | F17: =IFERROR(ROUNDDOWN(INDEX(Equipment!$A$22:$J$38,MATCH('Equipment List'!$B$17,Equipment!$K$22:$K$38,0),10),0),"") -> 209
A18: =IFERROR(INDEX(Equipment!$A$22:$J$38,MATCH('Equipment List'!$B$18,Equipment!$K$22:$K$38,0),1),"") -> ANCO Equipment (200 gal. capacity) | B18: =IF(SMALL(Equipment!$K$22:$K$38,1),SMALL(Equipment!$K$22:$K$38,11),Equipment!$T$13) -> 04:40:13.021 | C18: =IFERROR(INDEX(Equipment!$A$22:$J$38,MATCH('Equipment List'!$B$18,Equipment!$K$22:$K$38,0),5),"") -> 18000 | D18: =IFERROR(INDEX(Equipment!$A$22:$J$38,MATCH('Equipment List'!$B$18,Equipment!$K$22:$K$38,0),6),"") -> 0.1945951536 | E18: =IFERROR(INDEX(Equipment!$A$22:$J$38,MATCH('Equipment List'!$B$18,Equipment!$K$22:$K$38,0),9),"") -> 55.41185343 | F18: =IFERROR(ROUNDDOWN(INDEX(Equipment!$A$22:$J$38,MATCH('Equipment List'!$B$18,Equipment!$K$22:$K$38,0),10),0),"") -> 207
A19: =IFERROR(INDEX(Equipment!$A$22:$J$38,MATCH('Equipment List'!$B$19,Equipment!$K$22:$K$38,0),1),"") -> MicroDairy Designs (99 gal. capacity) | B19: =IF(SMALL(Equipment!$K$22:$K$38,1),SMALL(Equipment!$K$22:$K$38,12),Equipment!$T$13) -> 09:26:05.700 | C19: =IFERROR(INDEX(Equipment!$A$22:$J$38,MATCH('Equipment List'!$B$19,Equipment!$K$22:$K$38,0),5),"") -> 18000 | D19: =IFERROR(INDEX(Equipment!$A$22:$J$38,MATCH('Equipment List'!$B$19,Equipment!$K$22:$K$38,0),6),"") -> 0.3931215224 | E19: =IFERROR(INDEX(Equipment!$A$22:$J$38,MATCH('Equipment List'!$B$19,Equipment!$K$22:$K$38,0),9),"") -> 20.66785343 | F19: =IFERROR(ROUNDDOWN(INDEX(Equipment!$A$22:$J$38,MATCH('Equipment List'!$B$19,Equipment!$K$22:$K$38,0),10),0),"") -> 77
A20: =IFERROR(INDEX(Equipment!$A$22:$J$38,MATCH('Equipment List'!$B$20,Equipment!$K$22:$K$38,0),1),"") -> MicroDairy Designs (60 gal. capacity) | B20: =IF(SMALL(Equipment!$K$22:$K$38,1),SMALL(Equipment!$K$22:$K$38,13),Equipment!$T$13) -> 15:34:03.404 | C20: =IFERROR(INDEX(Equipment!$A$22:$J$38,MATCH('Equipment List'!$B$20,Equipment!$K$22:$K$38,0),5),"") -> 16000 | D20: =IFERROR(INDEX(Equipment!$A$22:$J$38,MATCH('Equipment List'!$B$20,Equipment!$K$22:$K$38,0),6),"") -> 0.648650512 | E20: =IFERROR(INDEX(Equipment!$A$22:$J$38,MATCH('Equipment List'!$B$20,Equipment!$K$22:$K$38,0),9),"") -> 7.251853432 | F20: =IFERROR(ROUNDDOWN(INDEX(Equipment!$A$22:$J$38,MATCH('Equipment List'!$B$20,Equipment!$K$22:$K$38,0),10),0),"") -> 27
A21: =IFERROR(INDEX(Equipment!$A$22:$J$38,MATCH('Equipment List'!$B$21,Equipment!$K$22:$K$38,0),1),"") -> MicroDairy Designs (45 gal. capacity) | B21: =IF(SMALL(Equipment!$K$22:$K$38,1),SMALL(Equipment!$K$22:$K$38,14),Equipment!$T$13) -> 20:45:24.539 | C21: =IFERROR(INDEX(Equipment!$A$22:$J$38,MATCH('Equipment List'!$B$21,Equipment!$K$22:$K$38,0),5),"") -> 13000 | D21: =IFERROR(INDEX(Equipment!$A$22:$J$38,MATCH('Equipment List'!$B$21,Equipment!$K$22:$K$38,0),6),"") -> 0.8648673493 | E21: =IFERROR(INDEX(Equipment!$A$22:$J$38,MATCH('Equipment List'!$B$21,Equipment!$K$22:$K$38,0),9),"") -> 2.091853432 | F21: =IFERROR(ROUNDDOWN(INDEX(Equipment!$A$22:$J$38,MATCH('Equipment List'!$B$21,Equipment!$K$22:$K$38,0),10),0),"") -> 7
A22: =IFERROR(INDEX(Equipment!$A$22:$J$38,MATCH('Equipment List'!$B$22,Equipment!$K$22:$K$38,0),1),"") -> MicroDairy Designs (30 gal. capacity) | B22: =IF(SMALL(Equipment!$K$22:$K$38,1),SMALL(Equipment!$K$22:$K$38,15),Equipment!$T$13) -> 1900-01-01T07:08:06.808 | C22: =IFERROR(INDEX(Equipment!$A$22:$J$38,MATCH('Equipment List'!$B$22,Equipment!$K$22:$K$38,0),5),"") -> 10000 | D22: =IFERROR(INDEX(Equipment!$A$22:$J$38,MATCH('Equipment List'!$B$22,Equipment!$K$22:$K$38,0),6),"") -> 1.297301024 | E22: =IFERROR(INDEX(Equipment!$A$22:$J$38,MATCH('Equipment List'!$B$22,Equipment!$K$22:$K$38,0),9),"") -> -3.068146568 | F22: =IFERROR(ROUNDDOWN(INDEX(Equipment!$A$22:$J$38,MATCH('Equipment List'!$B$22,Equipment!$K$22:$K$38,0),10),0),"") -> -11
A23: =IFERROR(INDEX(Equipment!$A$22:$J$38,MATCH('Equipment List'!$B$23,Equipment!$K$22:$K$38,0),1),"") -> MicroDairy Designs (15 gal. capacity) | B23: =IF(SMALL(Equipment!$K$22:$K$38,1),SMALL(Equipment!$K$22:$K$38,16),Equipment!$T$13) -> 1900-01-02T14:16:13.617 | C23: =IFERROR(INDEX(Equipment!$A$22:$J$38,MATCH('Equipment List'!$B$23,Equipment!$K$22:$K$38,0),5),"") -> 7000 | D23: =IFERROR(INDEX(Equipment!$A$22:$J$38,MATCH('Equipment List'!$B$23,Equipment!$K$22:$K$38,0),6),"") -> 2.594602048 | E23: =IFERROR(INDEX(Equipment!$A$22:$J$38,MATCH('Equipment List'!$B$23,Equipment!$K$22:$K$38,0),9),"") -> -8.228146568 | F23: =IFERROR(ROUNDDOWN(INDEX(Equipment!$A$22:$J$38,MATCH('Equipment List'!$B$23,Equipment!$K$22:$K$38,0),10),0),"") -> -30
A24: =IFERROR(INDEX(Equipment!$A$22:$J$38,MATCH('Equipment List'!$B$24,Equipment!$K$22:$K$38,0),1),"") -> MicroDairy Designs (4 gal. capacity) | B24: =IF(SMALL(Equipment!$K$22:$K$38,1),SMALL(Equipment!$K$22:$K$38,17),Equipment!$T$13) -> 1900-01-09T17:30:51.064 | C24: =IFERROR(INDEX(Equipment!$A$22:$J$38,MATCH('Equipment List'!$B$24,Equipment!$K$22:$K$38,0),5),"") -> 5500 | D24: =IFERROR(INDEX(Equipment!$A$22:$J$38,MATCH('Equipment List'!$B$24,Equipment!$K$22:$K$38,0),6),"") -> 9.72975768 | E24: =IFERROR(INDEX(Equipment!$A$22:$J$38,MATCH('Equipment List'!$B$24,Equipment!$K$22:$K$38,0),9),"") -> -12.01214657 | F24: =IFERROR(ROUNDDOWN(INDEX(Equipment!$A$22:$J$38,MATCH('Equipment List'!$B$24,Equipment!$K$22:$K$38,0),10),0),"") -> -45
A27: High Temperature Short Time (HTST) In-Line Pastuerizers
B28: Total Run Time | C28: Equipment Cost | D28: Capacity Utilized | E28: Extra Capacity | F28: Extra Capacity
A29: =IFERROR(INDEX(Equipment!$A$41:$J$50,MATCH('Equipment List'!$B$29,Equipment!$K$41:$K$50,0),1),"") -> In-line Pasteurizer 3500 gal/hr | B29: =IF(SMALL(Equipment!$K$41:$K$50,1),SMALL(Equipment!$K$41:$K$50,1),Equipment!$T$13) -> 00:08:00.372 | C29: =IFERROR(INDEX(Equipment!$A$41:$J$50,MATCH('Equipment List'!$B$29,Equipment!$K$41:$K$50,0),5),"") -> 120000 | D29: =IFERROR(INDEX(Equipment!$A$41:$J$50,MATCH('Equipment List'!$B$29,Equipment!$K$41:$K$50,0),6),"") -> 0.005559861531 | E29: =IFERROR(INDEX(Equipment!$A$41:$J$50,MATCH('Equipment List'!$B$29,Equipment!$K$41:$K$50,0),9),"") -> 2394.611853 | F29: =IFERROR(ROUNDDOWN(INDEX(Equipment!$A$41:$J$50,MATCH('Equipment List'!$B$29,Equipment!$K$41:$K$50,0),10),0),"") -> 8979
A30: =IFERROR(INDEX(Equipment!$A$41:$J$50,MATCH('Equipment List'!$B$30,Equipment!$K$41:$K$50,0),1),"") -> In-line Pasteurizer 3000 gal/hr | B30: =IF(SMALL(Equipment!$K$41:$K$50,1),SMALL(Equipment!$K$41:$K$50,2),Equipment!$T$13) -> 00:09:20.434 | C30: =IFERROR(INDEX(Equipment!$A$41:$J$50,MATCH('Equipment List'!$B$30,Equipment!$K$41:$K$50,0),5),"") -> 120000 | D30: =IFERROR(INDEX(Equipment!$A$41:$J$50,MATCH('Equipment List'!$B$30,Equipment!$K$41:$K$50,0),6),"") -> 0.00648650512 | E30: =IFERROR(INDEX(Equipment!$A$41:$J$50,MATCH('Equipment List'!$B$30,Equipment!$K$41:$K$50,0),9),"") -> 2050.611853 | F30: =IFERROR(ROUNDDOWN(INDEX(Equipment!$A$41:$J$50,MATCH('Equipment List'!$B$30,Equipment!$K$41:$K$50,0),10),0),"") -> 7689
A31: =IFERROR(INDEX(Equipment!$A$41:$J$50,MATCH('Equipment List'!$B$31,Equipment!$K$41:$K$50,0),1),"") -> In-line Pasteurizer 2500 gal/hr | B31: =IF(SMALL(Equipment!$K$41:$K$50,1),SMALL(Equipment!$K$41:$K$50,3),Equipment!$T$13) -> 00:11:12.521 | C31: =IFERROR(INDEX(Equipment!$A$41:$J$50,MATCH('Equipment List'!$B$31,Equipment!$K$41:$K$50,0),5),"") -> 120000 | D31: =IFERROR(INDEX(Equipment!$A$41:$J$50,MATCH('Equipment List'!$B$31,Equipment!$K$41:$K$50,0),6),"") -> 0.007783806144 | E31: =IFERROR(INDEX(Equipment!$A$41:$J$50,MATCH('Equipment List'!$B$31,Equipment!$K$41:$K$50,0),9),"") -> 1706.611853 | F31: =IFERROR(ROUNDDOWN(INDEX(Equipment!$A$41:$J$50,MATCH('Equipment List'!$B$31,Equipment!$K$41:$K$50,0),10),0),"") -> 6399
A32: =IFERROR(INDEX(Equipment!$A$41:$J$50,MATCH('Equipment List'!$B$32,Equipment!$K$41:$K$50,0),1),"") -> In-line Pasteurizer 2000 gal/hr | B32: =IF(SMALL(Equipment!$K$41:$K$50,1),SMALL(Equipment!$K$41:$K$50,4),Equipment!$T$13) -> 00:14:00.651 | C32: =IFERROR(INDEX(Equipment!$A$41:$J$50,MATCH('Equipment List'!$B$32,Equipment!$K$41:$K$50,0),5),"") -> 120000 | D32: =IFERROR(INDEX(Equipment!$A$41:$J$50,MATCH('Equipment List'!$B$32,Equipment!$K$41:$K$50,0),6),"") -> 0.00972975768 | E32: =IFERROR(INDEX(Equipment!$A$41:$J$50,MATCH('Equipment List'!$B$32,Equipment!$K$41:$K$50,0),9),"") -> 1362.611853 | F32: =IFERROR(ROUNDDOWN(INDEX(Equipment!$A$41:$J$50,MATCH('Equipment List'!$B$32,Equipment!$K$41:$K$50,0),10),0),"") -> 5109
A33: =IFERROR(INDEX(Equipment!$A$41:$J$50,MATCH('Equipment List'!$B$33,Equipment!$K$41:$K$50,0),1),"") -> In-line Pasteurizer 1500 gal/hr | B33: =IF(SMALL(Equipment!$K$41:$K$50,1),SMALL(Equipment!$K$41:$K$50,5),Equipment!$T$13) -> 00:18:40.868 | C33: =IFERROR(INDEX(Equipment!$A$41:$J$50,MATCH('Equipment List'!$B$33,Equipment!$K$41:$K$50,0),5),"") -> 120000 | D33: =IFERROR(INDEX(Equipment!$A$41:$J$50,MATCH('Equipment List'!$B$33,Equipment!$K$41:$K$50,0),6),"") -> 0.01297301024 | E33: =IFERROR(INDEX(Equipment!$A$41:$J$50,MATCH('Equipment List'!$B$33,Equipment!$K$41:$K$50,0),9),"") -> 1018.611853 | F33: =IFERROR(ROUNDDOWN(INDEX(Equipment!$A$41:$J$50,MATCH('Equipment List'!$B$33,Equipment!$K$41:$K$50,0),10),0),"") -> 3819
A34: =IFERROR(INDEX(Equipment!$A$41:$J$50,MATCH('Equipment List'!$B$34,Equipment!$K$41:$K$50,0),1),"") -> In-line Pasteurizer 1000 gal/hr | B34: =IF(SMALL(Equipment!$K$41:$K$50,1),SMALL(Equipment!$K$41:$K$50,6),Equipment!$T$13) -> 00:28:01.302 | C34: =IFERROR(INDEX(Equipment!$A$41:$J$50,MATCH('Equipment List'!$B$34,Equipment!$K$41:$K$50,0),5),"") -> 120000 | D34: =IFERROR(INDEX(Equipment!$A$41:$J$50,MATCH('Equipment List'!$B$34,Equipment!$K$41:$K$50,0),6),"") -> 0.01945951536 | E34: =IFERROR(INDEX(Equipment!$A$41:$J$50,MATCH('Equipment List'!$B$34,Equipment!$K$41:$K$50,0),9),"") -> 674.6118534 | F34: =IFERROR(ROUNDDOWN(INDEX(Equipment!$A$41:$J$50,MATCH('Equipment List'!$B$34,Equipment!$K$41:$K$50,0),10),0),"") -> 2529
A35: =IFERROR(INDEX(Equipment!$A$41:$J$50,MATCH('Equipment List'!$B$35,Equipment!$K$41:$K$50,0),1),"") -> In-line Pasteurizer 500 gal/hr | B35: =IF(SMALL(Equipment!$K$41:$K$50,1),SMALL(Equipment!$K$41:$K$50,7),Equipment!$T$13) -> 00:56:02.604 | C35: =IFERROR(INDEX(Equipment!$A$41:$J$50,MATCH('Equipment List'!$B$35,Equipment!$K$41:$K$50,0),5),"") -> 120000 | D35: =IFERROR(INDEX(Equipment!$A$41:$J$50,MATCH('Equipment List'!$B$35,Equipment!$K$41:$K$50,0),6),"") -> 0.03891903072 | E35: =IFERROR(INDEX(Equipment!$A$41:$J$50,MATCH('Equipment List'!$B$35,Equipment!$K$41:$K$50,0),9),"") -> 330.6118534 | F35: =IFERROR(ROUNDDOWN(INDEX(Equipment!$A$41:$J$50,MATCH('Equipment List'!$B$35,Equipment!$K$41:$K$50,0),10),0),"") -> 1239
A36: =IFERROR(INDEX(Equipment!$A$41:$J$50,MATCH('Equipment List'!$B$36,Equipment!$K$41:$K$50,0),1),"") -> In-line Pasteurizer 200 gal/hr | B36: =IF(SMALL(Equipment!$K$41:$K$50,1),SMALL(Equipment!$K$41:$K$50,8),Equipment!$T$13) -> 02:20:06.511 | C36: =IFERROR(INDEX(Equipment!$A$41:$J$50,MATCH('Equipment List'!$B$36,Equipment!$K$41:$K$50,0),5),"") -> 120000 | D36: =IFERROR(INDEX(Equipment!$A$41:$J$50,MATCH('Equipment List'!$B$36,Equipment!$K$41:$K$50,0),6),"") -> 0.0972975768 | E36: =IFERROR(INDEX(Equipment!$A$41:$J$50,MATCH('Equipment List'!$B$36,Equipment!$K$41:$K$50,0),9),"") -> 124.2118534 | F36: =IFERROR(ROUNDDOWN(INDEX(Equipment!$A$41:$J$50,MATCH('Equipment List'!$B$36,Equipment!$K$41:$K$50,0),10),0),"") -> 465
A37: =IFERROR(INDEX(Equipment!$A$41:$J$50,MATCH('Equipment List'!$B$37,Equipment!$K$41:$K$50,0),1),"") -> In-line Pasteurizer 100 gal/hr | B37: =IF(SMALL(Equipment!$K$41:$K$50,1),SMALL(Equipment!$K$41:$K$50,9),Equipment!$T$13) -> 04:40:13.021 | C37: =IFERROR(INDEX(Equipment!$A$41:$J$50,MATCH('Equipment List'!$B$37,Equipment!$K$41:$K$50,0),5),"") -> 120000 | D37: =IFERROR(INDEX(Equipment!$A$41:$J$50,MATCH('Equipment List'!$B$37,Equipment!$K$41:$K$50,0),6),"") -> 0.1945951536 | E37: =IFERROR(INDEX(Equipment!$A$41:$J$50,MATCH('Equipment List'!$B$37,Equipment!$K$41:$K$50,0),9),"") -> 55.41185343 | F37: =IFERROR(ROUNDDOWN(INDEX(Equipment!$A$41:$J$50,MATCH('Equipment List'!$B$37,Equipment!$K$41:$K$50,0),10),0),"") -> 207
A38: =IFERROR(INDEX(Equipment!$A$41:$J$50,MATCH('Equipment List'!$B$38,Equipment!$K$41:$K$50,0),1),"") -> Quoted In-Line Pasteurizer | B38: =IF(SMALL(Equipment!$K$41:$K$50,1),SMALL(Equipment!$K$41:$K$50,10),Equipment!$T$13) -> 1923-12-25 | C38: =IFERROR(INDEX(Equipment!$A$41:$J$50,MATCH('Equipment List'!$B$38,Equipment!$K$41:$K$50,0),5),"") -> 0 | D38: =IFERROR(INDEX(Equipment!$A$41:$J$50,MATCH('Equipment List'!$B$38,Equipment!$K$41:$K$50,0),6),"") -> 0 | E38: =IFERROR(INDEX(Equipment!$A$41:$J$50,MATCH('Equipment List'!$B$38,Equipment!$K$41:$K$50,0),9),"") -> 0 | F38: =IFERROR(ROUNDDOWN(INDEX(Equipment!$A$41:$J$50,MATCH('Equipment List'!$B$38,Equipment!$K$41:$K$50,0),10),0),"") -> 0
A41: Separators
B42: Total Run Time | C42: Equipment Cost | D42: Capacity Utilized | E42: Extra Capacity | F42: Extra Capacity
A43: =IFERROR(INDEX(Equipment!$A$54:$J$60,MATCH('Equipment List'!$B$43,Equipment!$K$54:$K$60,0),1),"") -> Tetra Pak H10 Hot Milk (Max. Capacity 75,000 L/h) | B43: =IF(SMALL(Equipment!$K$54:$K$60,1),SMALL(Equipment!$K$54:$K$60,1),Equipment!$T$13) -> 00:01:24.859 | C43: =IFERROR(INDEX(Equipment!$A$54:$J$60,MATCH('Equipment List'!$B$43,Equipment!$K$54:$K$60,0),5),"") -> 160000 | D43: =IFERROR(INDEX(Equipment!$A$54:$J$60,MATCH('Equipment List'!$B$43,Equipment!$K$54:$K$60,0),6),"") -> 0.0009821637167 | E43: =IFERROR(INDEX(Equipment!$A$54:$J$60,MATCH('Equipment List'!$B$43,Equipment!$K$54:$K$60,0),9),"") -> 13617.88976 | F43: =IFERROR(ROUNDDOWN(INDEX(Equipment!$A$54:$J$60,MATCH('Equipment List'!$B$43,Equipment!$K$54:$K$60,0),10),0),"") -> 51067
A44: =IFERROR(INDEX(Equipment!$A$54:$J$60,MATCH('Equipment List'!$B$44,Equipment!$K$54:$K$60,0),1),"") -> Tetra Pak C10 Cold Milk (Max. Capacity 50,000 L/h) | B44: =IF(SMALL(Equipment!$K$54:$K$60,1),SMALL(Equipment!$K$54:$K$60,2),Equipment!$T$13) -> 00:02:07.288 | C44: =IFERROR(INDEX(Equipment!$A$54:$J$60,MATCH('Equipment List'!$B$44,Equipment!$K$54:$K$60,0),5),"") -> 190000 | D44: =IFERROR(INDEX(Equipment!$A$54:$J$60,MATCH('Equipment List'!$B$44,Equipment!$K$54:$K$60,0),6),"") -> 0.001473245575 | E44: =IFERROR(INDEX(Equipment!$A$54:$J$60,MATCH('Equipment List'!$B$44,Equipment!$K$54:$K$60,0),9),"") -> 9074.130455 | F44: =IFERROR(ROUNDDOWN(INDEX(Equipment!$A$54:$J$60,MATCH('Equipment List'!$B$44,Equipment!$K$54:$K$60,0),10),0),"") -> 34027
A45: =IFERROR(INDEX(Equipment!$A$54:$J$60,MATCH('Equipment List'!$B$45,Equipment!$K$54:$K$60,0),1),"") -> Tetra Pak H10 Hot Milk (Avg. Capacity 41,000 L/h) | B45: =IF(SMALL(Equipment!$K$54:$K$60,1),SMALL(Equipment!$K$54:$K$60,3),Equipment!$T$13) -> 00:02:35.230 | C45: =IFERROR(INDEX(Equipment!$A$54:$J$60,MATCH('Equipment List'!$B$45,Equipment!$K$54:$K$60,0),5),"") -> 160000 | D45: =IFERROR(INDEX(Equipment!$A$54:$J$60,MATCH('Equipment List'!$B$45,Equipment!$K$54:$K$60,0),6),"") -> 0.001796640945 | E45: =IFERROR(INDEX(Equipment!$A$54:$J$60,MATCH('Equipment List'!$B$45,Equipment!$K$54:$K$60,0),9),"") -> 7438.377106 | F45: =IFERROR(ROUNDDOWN(INDEX(Equipment!$A$54:$J$60,MATCH('Equipment List'!$B$45,Equipment!$K$54:$K$60,0),10),0),"") -> 27893
A46: =IFERROR(INDEX(Equipment!$A$54:$J$60,MATCH('Equipment List'!$B$46,Equipment!$K$54:$K$60,0),1),"") -> Tetra Pak C10 Cold Milk (Avg. Capacity 30,000 L/h) | B46: =IF(SMALL(Equipment!$K$54:$K$60,1),SMALL(Equipment!$K$54:$K$60,4),Equipment!$T$13) -> 00:03:32.147 | C46: =IFERROR(INDEX(Equipment!$A$54:$J$60,MATCH('Equipment List'!$B$46,Equipment!$K$54:$K$60,0),5),"") -> 190000 | D46: =IFERROR(INDEX(Equipment!$A$54:$J$60,MATCH('Equipment List'!$B$46,Equipment!$K$54:$K$60,0),6),"") -> 0.002455409292 | E46: =IFERROR(INDEX(Equipment!$A$54:$J$60,MATCH('Equipment List'!$B$46,Equipment!$K$54:$K$60,0),9),"") -> 5439.123014 | F46: =IFERROR(ROUNDDOWN(INDEX(Equipment!$A$54:$J$60,MATCH('Equipment List'!$B$46,Equipment!$K$54:$K$60,0),10),0),"") -> 20396
A47: =IFERROR(INDEX(Equipment!$A$54:$J$60,MATCH('Equipment List'!$B$47,Equipment!$K$54:$K$60,0),1),"") -> Tetra Pak C10 Cold Milk (Min. Capacity 10,000 L/h) | B47: =IF(SMALL(Equipment!$K$54:$K$60,1),SMALL(Equipment!$K$54:$K$60,5),Equipment!$T$13) -> 00:10:36.442 | C47: =IFERROR(INDEX(Equipment!$A$54:$J$60,MATCH('Equipment List'!$B$47,Equipment!$K$54:$K$60,0),5),"") -> 190000 | D47: =IFERROR(INDEX(Equipment!$A$54:$J$60,MATCH('Equipment List'!$B$47,Equipment!$K$54:$K$60,0),6),"") -> 0.007366227876 | E47: =IFERROR(INDEX(Equipment!$A$54:$J$60,MATCH('Equipment List'!$B$47,Equipment!$K$54:$K$60,0),9),"") -> 1804.115574 | F47: =IFERROR(ROUNDDOWN(INDEX(Equipment!$A$54:$J$60,MATCH('Equipment List'!$B$47,Equipment!$K$54:$K$60,0),10),0),"") -> 6765
A48: =IFERROR(INDEX(Equipment!$A$54:$J$60,MATCH('Equipment List'!$B$48,Equipment!$K$54:$K$60,0),1),"") -> Tetra Pak H10 Hot Milk (Min. Capacity 7,000 L/h) | B48: =IF(SMALL(Equipment!$K$54:$K$60,1),SMALL(Equipment!$K$54:$K$60,6),Equipment!$T$13) -> 00:15:09.203 | C48: =IFERROR(INDEX(Equipment!$A$54:$J$60,MATCH('Equipment List'!$B$48,Equipment!$K$54:$K$60,0),5),"") -> 160000 | D48: =IFERROR(INDEX(Equipment!$A$54:$J$60,MATCH('Equipment List'!$B$48,Equipment!$K$54:$K$60,0),6),"") -> 0.01052318268 | E48: =IFERROR(INDEX(Equipment!$A$54:$J$60,MATCH('Equipment List'!$B$48,Equipment!$K$54:$K$60,0),9),"") -> 1258.864458 | F48: =IFERROR(ROUNDDOWN(INDEX(Equipment!$A$54:$J$60,MATCH('Equipment List'!$B$48,Equipment!$K$54:$K$60,0),10),0),"") -> 4720
A49: =IFERROR(INDEX(Equipment!$A$54:$J$60,MATCH('Equipment List'!$B$49,Equipment!$K$54:$K$60,0),1),"") -> Quoted Separator | B49: =IF(SMALL(Equipment!$K$54:$K$60,1),SMALL(Equipment!$K$54:$K$60,7),Equipment!$T$13) -> 05:53:34.736 | C49: =IFERROR(INDEX(Equipment!$A$54:$J$60,MATCH('Equipment List'!$B$49,Equipment!$K$54:$K$60,0),5),"") -> 56500 | D49: =IFERROR(INDEX(Equipment!$A$54:$J$60,MATCH('Equipment List'!$B$49,Equipment!$K$54:$K$60,0),6),"") -> 0.2455409292 | E49: =IFERROR(INDEX(Equipment!$A$54:$J$60,MATCH('Equipment List'!$B$49,Equipment!$K$54:$K$60,0),9),"") -> 41.13696504 | F49: =IFERROR(ROUNDDOWN(INDEX(Equipment!$A$54:$J$60,MATCH('Equipment List'!$B$49,Equipment!$K$54:$K$60,0),10),0),"") -> 154
A52: Homogenizers
B53: Total Run Time | C53: Equipment Cost | D53: Capacity Utilized | E53: Extra Capacity | F53: Extra Capacity
A54: =IFERROR(INDEX(Equipment!$A$64:$J$70,MATCH('Equipment List'!$B$54,Equipment!$K$64:$K$70,0),1),"") -> Tetra Pak 250 (Max. 7,000 L/h) | B54: =IF(SMALL(Equipment!$K$64:$K$70,1),SMALL(Equipment!$K$64:$K$70,1),Equipment!$T$13) -> 00:15:09.203 | C54: =IFERROR(INDEX(Equipment!$A$64:$J$70,MATCH('Equipment List'!$B$54,Equipment!$K$64:$K$70,0),5),"") -> 152640 | D54: =IFERROR(INDEX(Equipment!$A$64:$J$70,MATCH('Equipment List'!$B$54,Equipment!$K$64:$K$70,0),6),"") -> 0.01052318268 | E54: =IFERROR(INDEX(Equipment!$A$64:$J$70,MATCH('Equipment List'!$B$54,Equipment!$K$64:$K$70,0),9),"") -> 1258.864458 | F54: =IFERROR(ROUNDDOWN(INDEX(Equipment!$A$64:$J$70,MATCH('Equipment List'!$B$54,Equipment!$K$64:$K$70,0),10),0),"") -> 4720
A55: =IFERROR(INDEX(Equipment!$A$64:$J$70,MATCH('Equipment List'!$B$55,Equipment!$K$64:$K$70,0),1),"") -> Tetra Pak 250 (Avg. 5,250 L/h) | B55: =IF(SMALL(Equipment!$K$64:$K$70,1),SMALL(Equipment!$K$64:$K$70,2),Equipment!$T$13) -> 00:20:12.271 | C55: =IFERROR(INDEX(Equipment!$A$64:$J$70,MATCH('Equipment List'!$B$55,Equipment!$K$64:$K$70,0),5),"") -> 152640 | D55: =IFERROR(INDEX(Equipment!$A$64:$J$70,MATCH('Equipment List'!$B$55,Equipment!$K$64:$K$70,0),6),"") -> 0.01403091024 | E55: =IFERROR(INDEX(Equipment!$A$64:$J$70,MATCH('Equipment List'!$B$55,Equipment!$K$64:$K$70,0),9),"") -> 940.8013065 | F55: =IFERROR(ROUNDDOWN(INDEX(Equipment!$A$64:$J$70,MATCH('Equipment List'!$B$55,Equipment!$K$64:$K$70,0),10),0),"") -> 3528
A56: =IFERROR(INDEX(Equipment!$A$64:$J$70,MATCH('Equipment List'!$B$56,Equipment!$K$64:$K$70,0),1),"") -> Tetra Pak 250 (Min. 3,500 L/h) | B56: =IF(SMALL(Equipment!$K$64:$K$70,1),SMALL(Equipment!$K$64:$K$70,3),Equipment!$T$13) -> 00:30:18.406 | C56: =IFERROR(INDEX(Equipment!$A$64:$J$70,MATCH('Equipment List'!$B$56,Equipment!$K$64:$K$70,0),5),"") -> 152640 | D56: =IFERROR(INDEX(Equipment!$A$64:$J$70,MATCH('Equipment List'!$B$56,Equipment!$K$64:$K$70,0),6),"") -> 0.02104636536 | E56: =IFERROR(INDEX(Equipment!$A$64:$J$70,MATCH('Equipment List'!$B$56,Equipment!$K$64:$K$70,0),9),"") -> 622.7381555 | F56: =IFERROR(ROUNDDOWN(INDEX(Equipment!$A$64:$J$70,MATCH('Equipment List'!$B$56,Equipment!$K$64:$K$70,0),10),0),"") -> 2335
A57: =IFERROR(INDEX(Equipment!$A$64:$J$70,MATCH('Equipment List'!$B$57,Equipment!$K$64:$K$70,0),1),"") -> Quoted Homogenizer | B57: =IF(SMALL(Equipment!$K$64:$K$70,1),SMALL(Equipment!$K$64:$K$70,4),Equipment!$T$13) -> 05:53:34.736 | C57: =IFERROR(INDEX(Equipment!$A$64:$J$70,MATCH('Equipment List'!$B$57,Equipment!$K$64:$K$70,0),5),"") -> 10000 | D57: =IFERROR(INDEX(Equipment!$A$64:$J$70,MATCH('Equipment List'!$B$57,Equipment!$K$64:$K$70,0),6),"") -> 0.2455409292 | E57: =IFERROR(INDEX(Equipment!$A$64:$J$70,MATCH('Equipment List'!$B$57,Equipment!$K$64:$K$70,0),9),"") -> 41.13696504 | F57: =IFERROR(ROUNDDOWN(INDEX(Equipment!$A$64:$J$70,MATCH('Equipment List'!$B$57,Equipment!$K$64:$K$70,0),10),0),"") -> 154
A58: =IFERROR(INDEX(Equipment!$A$64:$J$70,MATCH('Equipment List'!$B$58,Equipment!$K$64:$K$70,0),1),"") -> Tetra Pak S05 (Max. 30 GPH) | B58: =IF(SMALL(Equipment!$K$64:$K$70,1),SMALL(Equipment!$K$64:$K$70,5),Equipment!$T$13) -> 15:34:03.404 | C58: =IFERROR(INDEX(Equipment!$A$64:$J$70,MATCH('Equipment List'!$B$58,Equipment!$K$64:$K$70,0),5),"") -> 81910 | D58: =IFERROR(INDEX(Equipment!$A$64:$J$70,MATCH('Equipment List'!$B$58,Equipment!$K$64:$K$70,0),6),"") -> 0.648650512 | E58: =IFERROR(INDEX(Equipment!$A$64:$J$70,MATCH('Equipment List'!$B$58,Equipment!$K$64:$K$70,0),9),"") -> 7.251853432 | F58: =IFERROR(ROUNDDOWN(INDEX(Equipment!$A$64:$J$70,MATCH('Equipment List'!$B$58,Equipment!$K$64:$K$70,0),10),0),"") -> 27
A59: =IFERROR(INDEX(Equipment!$A$64:$J$70,MATCH('Equipment List'!$B$59,Equipment!$K$64:$K$70,0),1),"") -> Tetra Pak S05 (Avg. 22.50 GPH) | B59: =IF(SMALL(Equipment!$K$64:$K$70,1),SMALL(Equipment!$K$64:$K$70,6),Equipment!$T$13) -> 20:45:24.539 | C59: =IFERROR(INDEX(Equipment!$A$64:$J$70,MATCH('Equipment List'!$B$59,Equipment!$K$64:$K$70,0),5),"") -> 81910 | D59: =IFERROR(INDEX(Equipment!$A$64:$J$70,MATCH('Equipment List'!$B$59,Equipment!$K$64:$K$70,0),6),"") -> 0.8648673493 | E59: =IFERROR(INDEX(Equipment!$A$64:$J$70,MATCH('Equipment List'!$B$59,Equipment!$K$64:$K$70,0),9),"") -> 2.091853432 | F59: =IFERROR(ROUNDDOWN(INDEX(Equipment!$A$64:$J$70,MATCH('Equipment List'!$B$59,Equipment!$K$64:$K$70,0),10),0),"") -> 7
A60: =IFERROR(INDEX(Equipment!$A$64:$J$70,MATCH('Equipment List'!$B$60,Equipment!$K$64:$K$70,0),1),"") -> Tetra Pak S05 (Min. 15 GPH) | B60: =IF(SMALL(Equipment!$K$64:$K$70,1),SMALL(Equipment!$K$64:$K$70,7),Equipment!$T$13) -> 1900-01-01T07:08:06.808 | C60: =IFERROR(INDEX(Equipment!$A$64:$J$70,MATCH('Equipment List'!$B$60,Equipment!$K$64:$K$70,0),5),"") -> 81910 | D60: =IFERROR(INDEX(Equipment!$A$64:$J$70,MATCH('Equipment List'!$B$60,Equipment!$K$64:$K$70,0),6),"") -> 1.297301024 | E60: =IFERROR(INDEX(Equipment!$A$64:$J$70,MATCH('Equipment List'!$B$60,Equipment!$K$64:$K$70,0),9),"") -> -3.068146568 | F60: =IFERROR(ROUNDDOWN(INDEX(Equipment!$A$64:$J$70,MATCH('Equipment List'!$B$60,Equipment!$K$64:$K$70,0),10),0),"") -> -11
A63: Bottlers: Filler + Capper
B64: Total Run Time | C64: Equipment Cost | D64: Capacity Utilized | E64: Extra Capacity | F64: Extra Capacity
A65: =IFERROR(INDEX(Equipment!$A$75:$J$81,MATCH('Equipment List'!$B$65,Equipment!$K$75:$K$81,0),1),"") -> Federal 309 Gravity Filler (Max. Capacity for 1 gal) | B65: =IF(SMALL(Equipment!$K$75:$K$81,1),SMALL(Equipment!$K$75:$K$81,1),Equipment!$T$13) -> 00:03:53.514 | C65: =IFERROR(INDEX(Equipment!$A$75:$J$81,MATCH('Equipment List'!$B$65,Equipment!$K$75:$K$81,0),5),"") -> 600000 | D65: =IFERROR(INDEX(Equipment!$A$75:$J$81,MATCH('Equipment List'!$B$65,Equipment!$K$75:$K$81,0),6),"") -> 0.002702710467 | E65: =IFERROR(INDEX(Equipment!$A$75:$J$81,MATCH('Equipment List'!$B$65,Equipment!$K$75:$K$81,0),9),"") -> 4940.211853 | F65: =IFERROR(ROUNDDOWN(INDEX(Equipment!$A$75:$J$81,MATCH('Equipment List'!$B$65,Equipment!$K$75:$K$81,0),10),0),"") -> 18525
A66: =IFERROR(INDEX(Equipment!$A$75:$J$81,MATCH('Equipment List'!$B$66,Equipment!$K$75:$K$81,0),1),"") -> Federal 309 Gravity Filler (Avg. Capacity for 1 gal) | B66: =IF(SMALL(Equipment!$K$75:$K$81,1),SMALL(Equipment!$K$75:$K$81,2),Equipment!$T$13) -> 00:04:10.194 | C66: =IFERROR(INDEX(Equipment!$A$75:$J$81,MATCH('Equipment List'!$B$66,Equipment!$K$75:$K$81,0),5),"") -> 600000 | D66: =IFERROR(INDEX(Equipment!$A$75:$J$81,MATCH('Equipment List'!$B$66,Equipment!$K$75:$K$81,0),6),"") -> 0.002895761214 | E66: =IFERROR(INDEX(Equipment!$A$75:$J$81,MATCH('Equipment List'!$B$66,Equipment!$K$75:$K$81,0),9),"") -> 4609.971853 | F66: =IFERROR(ROUND(INDEX(Equipment!$A$75:$J$81,MATCH('Equipment List'!$B$66,Equipment!$K$75:$K$81,0),10),0),"") -> 17287
A67: =IFERROR(INDEX(Equipment!$A$75:$J$81,MATCH('Equipment List'!$B$67,Equipment!$K$75:$K$81,0),1),"") -> Federal 309 Gravity Filler (Min. Capacity for 1 gal) | B67: =IF(SMALL(Equipment!$K$75:$K$81,1),SMALL(Equipment!$K$75:$K$81,3),Equipment!$T$13) -> 00:04:26.873 | C67: =IFERROR(INDEX(Equipment!$A$75:$J$81,MATCH('Equipment List'!$B$67,Equipment!$K$75:$K$81,0),5),"") -> 600000 | D67: =IFERROR(INDEX(Equipment!$A$75:$J$81,MATCH('Equipment List'!$B$67,Equipment!$K$75:$K$81,0),6),"") -> 0.003088811962 | E67: =IFERROR(INDEX(Equipment!$A$75:$J$81,MATCH('Equipment List'!$B$67,Equipment!$K$75:$K$81,0),9),"") -> 4321.011853 | F67: =IFERROR(ROUNDDOWN(INDEX(Equipment!$A$75:$J$81,MATCH('Equipment List'!$B$67,Equipment!$K$75:$K$81,0),10),0),"") -> 16203
A68: =IFERROR(INDEX(Equipment!$A$75:$J$81,MATCH('Equipment List'!$B$68,Equipment!$K$75:$K$81,0),1),"") -> Federal 309 Gravity Filler (Max. Capacity for 0.5 gal) | B68: =IF(SMALL(Equipment!$K$75:$K$81,1),SMALL(Equipment!$K$75:$K$81,4),Equipment!$T$13) -> 00:05:50.271 | C68: =IFERROR(INDEX(Equipment!$A$75:$J$81,MATCH('Equipment List'!$B$68,Equipment!$K$75:$K$81,0),5),"") -> 600000 | D68: =IFERROR(INDEX(Equipment!$A$75:$J$81,MATCH('Equipment List'!$B$68,Equipment!$K$75:$K$81,0),6),"") -> 0.00202703285 | E68: =IFERROR(INDEX(Equipment!$A$75:$J$81,MATCH('Equipment List'!$B$68,Equipment!$K$75:$K$81,0),9),"") -> 6591.411853 | F68: =IFERROR(ROUNDDOWN(INDEX(Equipment!$A$75:$J$81,MATCH('Equipment List'!$B$68,Equipment!$K$75:$K$81,0),10),0),"") -> 24717
A69: =IFERROR(INDEX(Equipment!$A$75:$J$81,MATCH('Equipment List'!$B$69,Equipment!$K$75:$K$81,0),1),"") -> Federal 309 Gravity Filler (Avg. Capacity for 0.5 gal) | B69: =IF(SMALL(Equipment!$K$75:$K$81,1),SMALL(Equipment!$K$75:$K$81,5),Equipment!$T$13) -> 00:06:29.190 | C69: =IFERROR(INDEX(Equipment!$A$75:$J$81,MATCH('Equipment List'!$B$69,Equipment!$K$75:$K$81,0),5),"") -> 600000 | D69: =IFERROR(INDEX(Equipment!$A$75:$J$81,MATCH('Equipment List'!$B$69,Equipment!$K$75:$K$81,0),6),"") -> 0.002252258722 | E69: =IFERROR(INDEX(Equipment!$A$75:$J$81,MATCH('Equipment List'!$B$69,Equipment!$K$75:$K$81,0),9),"") -> 5930.931853 | F69: =IFERROR(ROUNDDOWN(INDEX(Equipment!$A$75:$J$81,MATCH('Equipment List'!$B$69,Equipment!$K$75:$K$81,0),10),0),"") -> 22240
A70: =IFERROR(INDEX(Equipment!$A$75:$J$81,MATCH('Equipment List'!$B$70,Equipment!$K$75:$K$81,0),1),"") -> Federal 309 Gravity Filler (Min. Capacity for 0.5 gal) | B70: =IF(SMALL(Equipment!$K$75:$K$81,1),SMALL(Equipment!$K$75:$K$81,6),Equipment!$T$13) -> 00:07:17.839 | C70: =IFERROR(INDEX(Equipment!$A$75:$J$81,MATCH('Equipment List'!$B$70,Equipment!$K$75:$K$81,0),5),"") -> 600000 | D70: =IFERROR(INDEX(Equipment!$A$75:$J$81,MATCH('Equipment List'!$B$70,Equipment!$K$75:$K$81,0),6),"") -> 0.002533791063 | E70: =IFERROR(INDEX(Equipment!$A$75:$J$81,MATCH('Equipment List'!$B$70,Equipment!$K$75:$K$81,0),9),"") -> 5270.451853 | F70: =IFERROR(ROUNDDOWN(INDEX(Equipment!$A$75:$J$81,MATCH('Equipment List'!$B$70,Equipment!$K$75:$K$81,0),10),0),"") -> 19764
A71: =IFERROR(INDEX(Equipment!$A$75:$J$81,MATCH('Equipment List'!$B$71,Equipment!$K$75:$K$81,0),1),"") -> Quoted Bottler | B71: =IF(SMALL(Equipment!$K$75:$K$81,1),SMALL(Equipment!$K$75:$K$81,7),Equipment!$T$13) -> 15:34:03.404 | C71: =IFERROR(INDEX(Equipment!$A$75:$J$81,MATCH('Equipment List'!$B$71,Equipment!$K$75:$K$81,0),5),"") -> 36000 | D71: =IFERROR(INDEX(Equipment!$A$75:$J$81,MATCH('Equipment List'!$B$71,Equipment!$K$75:$K$81,0),6),"") -> 0.648650512 | E71: =IFERROR(INDEX(Equipment!$A$75:$J$81,MATCH('Equipment List'!$B$71,Equipment!$K$75:$K$81,0),9),"") -> 7.251853432 | F71: =IFERROR(ROUNDDOWN(INDEX(Equipment!$A$75:$J$81,MATCH('Equipment List'!$B$71,Equipment!$K$75:$K$81,0),10),0),"") -> 27
A79: Click the button below to return to the instructions sheet.

Sheet Equipment (hidden)
A1: Inputs | X1: Numbers from SDBII Grant Quotes | Y1: Equipment Item | Z1: Item Category | AA1: Sum | AB1: Count | AC1: Average Quote Cost | AN1: 1
A2: Herdsize - All Cows | B2: =Inputs!B5 -> 300 | F2: right now, do for 24 hour period | Y2: butter churn | Z2: butter | AA2: 61805.56 | AB2: 2 | AC2: 30902.78 | AN2: 2
A3: Average production per cow | B3: =Inputs!B6 -> 80 | Y3: other butter | Z3: butter | AA3: 600 | AB3: 2 | AC3: 300 | AN3: 3
A4: Average fat% | B4: =Inputs!B7 -> 0.0405 | Y4: Total Butter | AA4: =AA2+AA3 -> 62405.56 | AB4: =AB2+AB3 -> 4 | AC4: =AA4/AB4 -> 15601.39 | AN4: 4
A5: Average protein % | B5: =Inputs!B8 -> 0.038 | Y5: cheese brine tank | Z5: cheese | AA5: 44794 | AB5: 3 | AC5: 14931.33333 | AN5: 5
A6: How many months do you milk each year | B6: =Inputs!B9 -> 12 | Y6: cheese drain table | Z6: cheese | AA6: 194970.48 | AB6: 9 | AC6: 21663.38667 | AN6: 6
A7: What percentage of your herd do you intend to process milk from? | B7: =Inputs!B10 -> 0.2 | Y7: cheese machine accessories | Z7: cheese | AA7: 24884.41 | AB7: 4 | AC7: 6221.1025 | AN7: 7
Y8: cheese molds | Z8: cheese | AA8: 59669.8 | AB8: 12 | AC8: 4972.483333 | AN8: 8
Y9: cheese press | Z9: cheese | AA9: 48482.27 | AB9: 4 | AC9: 12120.5675 | AN9: 9
A10: Outputs | D10: Total Herd Ouput | Y10: cheese slicer | Z10: cheese | AA10: 82101.12 | AB10: 8 | AC10: 10262.64 | AN10: 10
A11: lbs per year | B11: =(((B3*305)*(B2*B7))/365.25)*(B6*30.5) -> 1467006.16 | D11: =(((B3*305)*(B2))/365.25)*(B6*30.5) -> 7335030.801 | Y11: cheese tools | Z11: cheese | AA11: 277.9696 | AB11: 3 | AC11: 92.65653333 | AN11: 11
A12: lbs per day | B12: =B11/365.25 -> 4016.44397 | Y12: cheese vat | Z12: cheese | AA12: 155033 | AB12: 3 | AC12: 51677.66667 | AN12: 12
A13: gal per year | B13: =B11/8.6 -> 170582.1116 | T13: No more options with less than 8 hours of total pastuerization time | Y13: cheese vat accessories | Z13: cheese | AA13: 3875 | AB13: 2 | AC13: 1937.5
A14: gal per day | B14: =B13/365.25 -> 467.0283686 | F14: Capacity Utilization = (Actual Output / Maximum Potential Output) x 100 | Y14: curd distribution tank | Z14: cheese | AA14: 3079 | AB14: 2 | AC14: 1539.5
A15: kg per year | B15: =B16*365.25 -> 665308.9162 | Y15: env control aging | Z15: cheese | AA15: 9439.36 | AB15: 3 | AC15: 3146.453333
A16: kg per day | B16: =B12/2.205 -> 1821.51654 | Y16: specialty cheese | Z16: cheese | AA16: 240883 | AB16: 4 | AC16: 60220.75
A17: liter per year | B17: =CONVERT(B13,"l","gal") -> 45063.02653 | Y17: Total Cheese | AA17: =SUM(AA5:AA16) -> 867489.4096 | AB17: =SUM(AB5:AB16) -> 57 | AC17: =AA17/AB17 -> 15219.11245
A18: liter per day | B18: =B17/365.25 -> 123.3758427 | Y18: air flow & cooling | Z18: general | AA18: 27120.45 | AB18: 4 | AC18: 6780.1125 | AD18: =AA18+AA20+AA21+AA22+AA23+AA24+AA26+AA31+AA32+AA34+AA35+AA36 -> 1236240.833 | AE18: =AB18+AB20+AB21+AB22+AB23+AB24+AB26+AB31+AB32+AB34+AB35+AB36 -> 115 | AF18: =AD18/AE18 -> 10749.92029
A19: *total pasteurization time is 45 min to warm, 30 min to pasteurize, 45 min to cool | Y19: bulk tank | Z19: general | AA19: 295910 | AB19: 7 | AC19: 42272.85714
A20: Pasteurizers | D20: take off dollar per hour and look based on total past time per hour (on 6 hr basis). Would we factor in bottle times? | Y20: chart & temp recorder | Z20: general | AA20: 27561.3 | AB20: 14 | AC20: 1968.664286
A21: Vat Pasteurizers | B21: Gallons per hour | C21: Runs/Day | D21: Hours Needed | E21: Equipment $ | F21: Capacity Utilized | G21: Percent Left to Use | H21: extra lbs that can be processed to maximize equip | I21: lbs extra per animal | J21: extra animals | K21: Time Needed to Complete | L21: max capacity in lbs | Y21: chiller | Z21: general | AA21: 225151.6 | AB21: 10 | AC21: 22515.16
A22: MicroDairy Designs (4 gal. capacity) | B22: 4 | C22: =$B$14/B22 -> 116.7570922 | D22: =(C22*2)/24 -> 9.72975768 | E22: =IF(AND(A22=Inputs!$B$50,Inputs!$C$50<>""),Inputs!$C$50,5500) -> 5500 | F22: =($B$14/(B22*(24/2))) -> 9.72975768 | G22: =1-F22 -> -8.72975768 | H22: =((12*B22)*(G22))*8.6 -> -3603.64397 | I22: =H22/$B$2 -> -12.01214657 | J22: =H22/$B$3 -> -45.04554963 | K22: =D22 -> 1900-01-09T17:30:51.064 | L22: =B22*12*8.6 -> 412.8 | Y22: cleaning | Z22: general | AA22: 254606.36 | AB22: 16 | AC22: 15912.8975
A23: MicroDairy Designs (15 gal. capacity) | B23: 15 | C23: =$B$14/B23 -> 31.13522458 | D23: 2.594602048 | E23: =IF(AND(A23=Inputs!$B$50,Inputs!$C$50<>""),Inputs!$C$50,7000) -> 7000 | F23: =($B$14/(B23*(24/2))) -> 2.594602048 | G23: =1-F23 -> -1.594602048 | H23: =((12*B23)*(G23))*8.6 -> -2468.44397 | I23: -8.228146568 | J23: -30.85554963 | K23: 1900-01-02T14:16:13.617 | L23: =B23*12*8.6 -> 1548 | Y23: compressor/condenser | Z23: general | AA23: 130983.8 | AB23: 4 | AC23: 32745.95
A24: MicroDairy Designs (30 gal. capacity) | B24: 30 | C24: 15.56761229 | D24: 1.297301024 | E24: =IF(AND(A24=Inputs!$B$50,Inputs!$C$50<>""),Inputs!$C$50,10000) -> 10000 | F24: 1.297301024 | G24: -0.297301024 | H24: -920.4439703 | I24: -3.068146568 | J24: -11.50554963 | K24: 1900-01-01T07:08:06.808 | L24: 3096 | Y24: env heater | Z24: general | AA24: 7825 | AB24: 3 | AC24: 2608.333333
A25: MicroDairy Designs (45 gal. capacity) | B25: 45 | C25: 10.37840819 | D25: 0.8648673493 | E25: =IF(AND(A25=Inputs!$B$50,Inputs!$C$50<>""),Inputs!$C$50,13000) -> 13000 | F25: 0.8648673493 | G25: 0.1351326507 | H25: 627.5560297 | I25: 2.091853432 | J25: 7.844450371 | K25: 20:45:24.539 | L25: 4644 | Y25: fridge | Z25: general | AA25: 354610.19 | AB25: 17 | AC25: 20859.42294
A26: MicroDairy Designs (60 gal. capacity) | B26: 60 | C26: 7.783806144 | D26: 0.648650512 | E26: =IF(AND(A26=Inputs!$B$50,Inputs!$C$50<>""),Inputs!$C$50,16000) -> 16000 | F26: 0.648650512 | G26: 0.351349488 | H26: 2175.55603 | I26: 7.251853432 | J26: 27.19445037 | K26: 15:34:03.404 | L26: 6192 | Y26: heater | Z26: general | AA26: 13465 | AB26: 1 | AC26: 13465
A27: MicroDairy Designs (99 gal. capacity) | B27: 99 | C27: 4.717458269 | D27: 0.3931215224 | E27: =IF(AND(A27=Inputs!$B$50,Inputs!$C$50<>""),Inputs!$C$50,18000) -> 18000 | F27: 0.3931215224 | G27: 0.6068784776 | H27: 6200.35603 | I27: 20.66785343 | J27: 77.50445037 | K27: 09:26:05.700 | L27: 10216.8 | Y27: holding tank | Z27: general | AA27: 107733.2 | AB27: 3 | AC27: 35911.06667
A28: ANCO Equipment (200 gal. capacity) | B28: 200 | C28: 2.335141843 | D28: 0.1945951536 | E28: =IF(AND(A28=Inputs!$B$50,Inputs!$C$50<>""),Inputs!$C$50,18000) -> 18000 | F28: 0.1945951536 | G28: 0.8054048464 | H28: 16623.55603 | I28: 55.41185343 | J28: 207.7944504 | K28: 04:40:13.021 | L28: 20640 | Y28: ice maker | Z28: general | AA28: 13145 | AB28: 2 | AC28: 6572.5
A29: ANCO Equipment (300 gal. capacity) | B29: 300 | C29: 1.556761229 | D29: 0.1297301024 | E29: =IF(AND(A29=Inputs!$B$50,Inputs!$C$50<>""),Inputs!$C$50,20000) -> 20000 | F29: 0.1297301024 | G29: 0.8702698976 | H29: 26943.55603 | I29: 89.81185343 | J29: 336.7944504 | K29: 03:06:48.681 | L29: 30960 | Y29: ingredients | Z29: general | AA29: 6085.7975 | AB29: 2 | AC29: 3042.89875
A30: ANCO Equipment (400 gal. capacity) | B30: 400 | C30: 1.167570922 | D30: 0.0972975768 | E30: =IF(AND(A30=Inputs!$B$50,Inputs!$C$50<>""),Inputs!$C$50,24000) -> 24000 | F30: 0.0972975768 | G30: 0.9027024232 | H30: 37263.55603 | I30: 124.2118534 | J30: 465.7944504 | K30: 02:20:06.511 | L30: 41280 | Y30: mixer | Z30: general | AA30: 78939.75 | AB30: 2 | AC30: 39469.875
A31: ANCO Equipment (500 gal. capcity) | B31: 500 | C31: 0.9340567373 | D31: 0.07783806144 | E31: =IF(AND(A31=Inputs!$B$50,Inputs!$C$50<>""),Inputs!$C$50,26500) -> 26500 | F31: 0.07783806144 | G31: 0.9221619386 | H31: 47583.55603 | I31: 158.6118534 | J31: 594.7944504 | K31: 01:52:05.209 | L31: 51600 | Y31: pump | Z31: general | AA31: 176905.4 | AB31: 23 | AC31: 7691.53913
A32: ANCO Equipment (600 gal. capacity) | B32: 600 | C32: 0.7783806144 | D32: 0.0648650512 | E32: =IF(AND(A32=Inputs!$B$50,Inputs!$C$50<>""),Inputs!$C$50,28500) -> 28500 | F32: 0.0648650512 | G32: 0.9351349488 | H32: 57903.55603 | I32: 193.0118534 | J32: 723.7944504 | K32: 01:33:24.340 | L32: 61920 | Y32: supplemental | Z32: general | AA32: 110354.2733 | AB32: 19 | AC32: 5808.119649
A33: ANCO Equipment (800 gal. capacity) | B33: 800 | C33: 0.5837854608 | D33: 0.0486487884 | E33: =IF(AND(A33=Inputs!$B$50,Inputs!$C$50<>""),Inputs!$C$50,32000) -> 32000 | F33: 0.0486487884 | G33: 0.9513512116 | H33: 78543.55603 | I33: 261.8118534 | J33: 981.7944504 | K33: 01:10:03.255 | L33: 82560
A34: ANCO Equipment (1000 gal. capacity) | B34: 1000 | C34: 0.4670283686 | D34: 0.03891903072 | E34: =IF(AND(A34=Inputs!$B$50,Inputs!$C$50<>""),Inputs!$C$50,39500) -> 39500 | F34: 0.03891903072 | G34: 0.9610809693 | H34: 99183.55603 | I34: 330.6118534 | J34: 1239.79445 | K34: 00:56:02.604 | L34: 103200 | Y34: water conditioner | Z34: general | AA34: 8000 | AB34: 1 | AC34: 8000
A35: ANCO Equipment (1200 gal. capacity) | B35: 1200 | C35: 0.3891903072 | D35: 0.0324325256 | E35: =IF(AND(A35=Inputs!$B$50,Inputs!$C$50<>""),Inputs!$C$50,45500) -> 45500 | F35: 0.0324325256 | G35: 0.9675674744 | H35: 119823.556 | I35: 399.4118534 | J35: 1497.79445 | K35: 00:46:42.170 | L35: 123840 | O35: **pick one level above what you need to ensure room to grow** | Y35: water heater | Z35: general | AA35: 244607.6 | AB35: 13 | AC35: 18815.96923
A36: ANCO Equipment (1500 gal. capacity) | B36: 1500 | C36: 0.3113522458 | D36: 0.02594602048 | E36: =IF(AND(A36=Inputs!$B$50,Inputs!$C$50<>""),Inputs!$C$50,49500) -> 49500 | F36: 0.02594602048 | G36: 0.9740539795 | H36: 150783.556 | I36: 502.6118534 | J36: 1884.79445 | K36: 00:37:21.736 | L36: 154800 | Y36: work tables | Z36: general | AA36: 9660.05 | AB36: 7 | AC36: 1380.007143
A37: ANCO Equipment (2000 gal. capacity) | B37: 2000 | C37: 0.2335141843 | D37: 0.01945951536 | E37: =IF(AND(A37=Inputs!$B$50,Inputs!$C$50<>""),Inputs!$C$50,56000) -> 56000 | F37: 0.01945951536 | G37: 0.9805404846 | H37: 202383.556 | I37: 674.6118534 | J37: 2529.79445 | K37: 00:28:01.302 | L37: 206400 | Y37: Total General | AA37: =SUM(AA18:AA36) -> 2092664.771 | AB37: =SUM(AB18:AB36) -> 148 | AC37: =AA37/AB37 -> 14139.62683
A38: Quoted Vat Pasteurizer | B38: =IF(Inputs!B50="Quoted Vat Pasteurizer",Inputs!D50,0) -> 201 | C38: =IF(B38=0,210240,$B$14/B38) -> 2.323524222 | D38: 0.1936270185 | E38: =IF(A38=Inputs!$B$50,Inputs!$C$50,0) -> 28000 | F38: =IF(B38=0,0,($B$14/(B38*(24/2)))) -> 0.1936270185 | G38: 0.8063729815 | H38: 16726.75603 | I38: 55.75585343 | J38: 209.0844504 | K38: 04:38:49.374 | L38: 20743.2 | Y38: continuous freezer | Z38: ice cream | AA38: 350819.51 | AB38: 6 | AC38: 58469.91833
A39: Not Applicable | B39: 0 | C39: 0 | D39: 0 | E39: 0 | F39: 0 | G39: 0 | H39: 0 | I39: 0 | J39: 0 | K39: 00:00:00
A40: HTST/UHT (Gal./hr) | C40: Runs/Day | D40: Hours Needed | E40: Equipment Cost | F40: Capacity Utilized | G40: Percent Left to Use | H40: extra lbs that can be processed to maximize equip | I40: lbs extra per animal | J40: extra animals | K40: Time Needed to Complete | Y40: freezer | Z40: ice cream | AA40: 428802.88 | AB40: 17 | AC40: 25223.69882
A41: In-line Pasteurizer 100 gal/hr | B41: 100 | C41: =$B$14/B41 -> 4.670283686 | D41: =C41/24 -> 0.1945951536 | E41: =IF(AND(A41=Inputs!$B$51,Inputs!$C$51<>""),Inputs!$C$51,120000) -> 120000 | F41: =($B$14/(B41*(24))) -> 0.1945951536 | G41: =1-F41 -> 0.8054048464 | H41: =((24*B41)*(G41))*8.6 -> 16623.55603 | I41: =H41/$B$2 -> 55.41185343 | J41: =H41/$B$3 -> 207.7944504 | K41: =D41 -> 04:40:13.021 | L41: =B41*24*8.6 -> 20640 | Y41: ice cream cone maker | Z41: ice cream | AA41: 2918.34 | AB41: 3 | AC41: 972.78
A42: In-line Pasteurizer 200 gal/hr | B42: 200 | C42: 2.335141843 | D42: 0.0972975768 | E42: =IF(AND(A42=Inputs!$B$51,Inputs!$C$51<>""),Inputs!$C$51,120000) -> 120000 | F42: 0.0972975768 | G42: 0.9027024232 | H42: 37263.55603 | I42: 124.2118534 | J42: 465.7944504 | K42: 02:20:06.511 | L42: 41280 | Y42: ingredient freezer | Z42: ice cream | AA42: 45677.5 | AB42: 1 | AC42: 45677.5
A43: In-line Pasteurizer 500 gal/hr | B43: 500 | C43: 0.9340567373 | D43: 0.03891903072 | E43: =IF(AND(A43=Inputs!$B$51,Inputs!$C$51<>""),Inputs!$C$51,120000) -> 120000 | F43: 0.03891903072 | G43: 0.9610809693 | H43: 99183.55603 | I43: 330.6118534 | J43: 1239.79445 | K43: 00:56:02.604 | L43: 103200 | Y43: mixing | Z43: ice cream | AA43: 1080 | AB43: 1 | AC43: 1080
A44: In-line Pasteurizer 1000 gal/hr | B44: 1000 | C44: 0.4670283686 | D44: 0.01945951536 | E44: =IF(AND(A44=Inputs!$B$51,Inputs!$C$51<>""),Inputs!$C$51,120000) -> 120000 | F44: 0.01945951536 | G44: 0.9805404846 | H44: 202383.556 | I44: 674.6118534 | J44: 2529.79445 | K44: 00:28:01.302 | L44: 206400 | Y44: topping storage | Z44: ice cream | AA44: 1105 | AB44: 2 | AC44: 552.5
A45: In-line Pasteurizer 1500 gal/hr | B45: 1500 | C45: 0.3113522458 | D45: 0.01297301024 | E45: =IF(AND(A45=Inputs!$B$51,Inputs!$C$51<>""),Inputs!$C$51,120000) -> 120000 | F45: 0.01297301024 | G45: 0.9870269898 | H45: 305583.556 | I45: 1018.611853 | J45: 3819.79445 | K45: 00:18:40.868 | L45: 309600
A46: In-line Pasteurizer 2000 gal/hr | B46: 2000 | C46: 0.2335141843 | D46: 0.00972975768 | E46: =IF(AND(A46=Inputs!$B$51,Inputs!$C$51<>""),Inputs!$C$51,120000) -> 120000 | F46: 0.00972975768 | G46: 0.9902702423 | H46: 408783.556 | I46: 1362.611853 | J46: 5109.79445 | K46: 00:14:00.651 | L46: 412800
A47: In-line Pasteurizer 2500 gal/hr | B47: 2500 | C47: 0.1868113475 | D47: 0.007783806144 | E47: =IF(AND(A47=Inputs!$B$51,Inputs!$C$51<>""),Inputs!$C$51,120000) -> 120000 | F47: 0.007783806144 | G47: 0.9922161939 | H47: 511983.556 | I47: 1706.611853 | J47: 6399.79445 | K47: 00:11:12.521 | L47: 516000 | Y47: Total Ice Cream | AA47: =SUM(AA38:AA44) -> 830403.23 | AB47: =SUM(AB38:AB44) -> 30 | AC47: =AA47/AB47 -> 27680.10767
A48: In-line Pasteurizer 3000 gal/hr | B48: 3000 | C48: 0.1556761229 | D48: 0.00648650512 | E48: =IF(AND(A48=Inputs!$B$51,Inputs!$C$51<>""),Inputs!$C$51,120000) -> 120000 | F48: 0.00648650512 | G48: 0.9935134949 | H48: 615183.556 | I48: 2050.611853 | J48: 7689.79445 | K48: 00:09:20.434 | L48: 619200 | Y48: pasteurizer | Z48: milk | AA48: 448664.69 | AB48: 16 | AC48: 28041.54313
A49: In-line Pasteurizer 3500 gal/hr | B49: 3500 | C49: 0.1334366768 | D49: 0.005559861531 | E49: =IF(AND(A49=Inputs!$B$51,Inputs!$C$51<>""),Inputs!$C$51,120000) -> 120000 | F49: 0.005559861531 | G49: 0.9944401385 | H49: 718383.556 | I49: 2394.611853 | J49: 8979.79445 | K49: 00:08:00.372 | L49: 722400 | M49: **small side one bottle basic tech capper tech…not high speed | Y49: separator | Z49: milk | AA49: 283542.28 | AB49: 5 | AC49: 56708.456
A50: Quoted In-Line Pasteurizer | B50: =IF(Inputs!B51="Quoted In-Line Pasteurizer",Inputs!D51,0) -> 0 | C50: =IF(B50=0,210240,$B$14/B50) -> 210240 | D50: 8760 | E50: =IF(A50=Inputs!$B$51,Inputs!$C$51,0) -> 0 | F50: =IF(B50=0,0,($B$14/(B50*(24)))) -> 0 | G50: 1 | H50: 0 | I50: 0 | J50: 0 | K50: 1923-12-25 | L50: 0 | M50: 400000 | O50: start | Y50: Total Milk | AA50: =AA48+AA49 -> 732206.97 | AB50: =AB48+AB49 -> 21 | AC50: =AA50/AB50 -> 34866.99857
A51: Not Applicable | B51: 0 | C51: 0 | D51: 0 | E51: 0 | F51: 0 | G51: 0 | H51: 0 | I51: 0 | J51: 0 | K51: 00:00:00
Y52: install | Z52: other | AA52: 108359.97 | AB52: 13 | AC52: 8335.382308
A53: Separators (L/h) | C53: Runs/Day | D53: Hours Needed | E53: Equipment $ | F53: Capacity Utilized | G53: Percent Left to Use | H53: extra lbs that can be processed to maximize equip | I53: lbs extra per animal | J53: extra animals | K53: Time Needed to Complete | Y53: install and ship/handle | Z53: other | AA53: 44846.2 | AB53: 7 | AC53: 6406.6
A54: Tetra Pak H10 Hot Milk (Min. Capacity 7,000 L/h) | B54: =CONVERT(7000,"l","gal") -> 1849.204367 | C54: =$B$14/B54 -> 0.2525563843 | D54: =C54/24 -> 0.01052318268 | E54: =IF(AND(A54=Inputs!$B$52,Inputs!$C$52<>""),Inputs!$C$52,160000) -> 160000 | F54: =($B$14/(B54*(24))) -> 0.01052318268 | G54: =1-F54 -> 0.9894768173 | H54: =((24*B54)*(G54))*8.6 -> 377659.3373 | I54: =H54/$B$2 -> 1258.864458 | J54: =H54/$B$3 -> 4720.741716 | K54: =D54 -> 00:15:09.203 | L54: =B54*24*8.6 -> 381675.7812 | Y54: maintenance | Z54: other | AA54: 14948.55 | AB54: 1 | AC54: 14948.55
A55: Tetra Pak H10 Hot Milk (Avg. Capacity 41,000 L/h) | B55: =CONVERT(41000,"l","gal") -> 10831.05415 | C55: =$B$14/B55 -> 0.04311938269 | D55: =C55/24 -> 0.001796640945 | E55: =IF(AND(A55=Inputs!$B$52,Inputs!$C$52<>""),Inputs!$C$52,160000) -> 160000 | F55: =($B$14/(B55*(24))) -> 0.001796640945 | G55: =1-F55 -> 0.9982033591 | H55: =((24*B55)*(G55))*8.6 -> 2231513.132 | I55: =H55/$B$2 -> 7438.377106 | J55: =H55/$B$3 -> 27893.91415 | K55: =D55 -> 00:02:35.230 | L55: 2235529.576 | Y55: marketing | Z55: other | AA55: 29271.55 | AB55: 6 | AC55: 4878.591667
A56: Tetra Pak H10 Hot Milk (Max. Capacity 75,000 L/h) | B56: =CONVERT(75000,"l","gal") -> 19812.90393 | C56: 0.0235719292 | D56: 0.0009821637167 | E56: =IF(AND(A56=Inputs!$B$52,Inputs!$C$52<>""),Inputs!$C$52,160000) -> 160000 | F56: 0.0009821637167 | G56: 0.9990178363 | H56: 4085366.927 | I56: 13617.88976 | J56: 51067.08658 | K56: 00:01:24.859 | L56: 4089383.371 | P56: model block: filler and capper | Y56: mq&product testing | Z56: other | AA56: 13894.5625 | AB56: 4 | AC56: 3473.640625
A57: Tetra Pak C10 Cold Milk (Min. Capacity 10,000 L/h) | B57: =CONVERT(10000,"l","gal") -> 2641.720524 | C57: 0.176789469 | D57: 0.007366227876 | E57: =IF(AND(A57=Inputs!$B$52,Inputs!$C$52<>""),Inputs!$C$52,190000) -> 190000 | F57: 0.007366227876 | G57: 0.9926337721 | H57: 541234.6721 | I57: 1804.115574 | J57: 6765.433401 | K57: 00:10:36.442 | L57: 545251.1161 | Y57: professionals | Z57: other | AA57: 232757.75 | AB57: 11 | AC57: 21159.79545
A58: Tetra Pak C10 Cold Milk (Avg. Capacity 30,000 L/h) | B58: =CONVERT(30000,"l","gal") -> 7925.161571 | C58: 0.058929823 | D58: 0.002455409292 | E58: =IF(AND(A58=Inputs!$B$52,Inputs!$C$52<>""),Inputs!$C$52,190000) -> 190000 | F58: 0.002455409292 | G58: 0.9975445907 | H58: 1631736.904 | I58: 5439.123014 | J58: 20396.7113 | K58: 00:03:32.147 | L58: 1635753.348 | Y58: retail | Z58: other | AA58: 4051.09 | AB58: 4 | AC58: 1012.7725
A59: Tetra Pak C10 Cold Milk (Max. Capacity 50,000 L/h) | B59: =CONVERT(50000,"l","gal") -> 13208.60262 | C59: 0.0353578938 | D59: 0.001473245575 | E59: =IF(AND(A59=Inputs!$B$52,Inputs!$C$52<>""),Inputs!$C$52,190000) -> 190000 | F59: 0.001473245575 | G59: 0.9985267544 | H59: 2722239.136 | I59: 9074.130455 | J59: 34027.9892 | K59: 00:02:07.288 | L59: 2726255.58 | Y59: ship/handle | Z59: other | AA59: 104970.12 | AB59: 20 | AC59: 5248.506
A60: Quoted Separator | B60: =IF(Inputs!B52="Quoted Separator",CONVERT(Inputs!D52,"l","gal"),0) -> 79.25161571 | C60: =IF(B60=0,210240,$B$14/B60) -> 5.8929823 | D60: 0.2455409292 | E60: =IF(A60=Inputs!$B$52,Inputs!$C$52,0) -> 56500 | F60: =IF(B60=0,0,($B$14/(B60*(24)))) -> 0.2455409292 | G60: 0.7544590708 | H60: 12341.08951 | I60: 41.13696504 | J60: 154.2636189 | K60: 05:53:34.736 | L60: 16357.53348 | Y60: software | Z60: other | AA60: 32820.34 | AB60: 4 | AC60: 8205.085
A61: Not Applicable | B61: 0 | C61: 0 | D61: 0 | E61: 0 | F61: 0 | G61: 0 | H61: 0 | I61: 0 | J61: 0 | K61: 00:00:00
Y62: training | Z62: other | AA62: 14569.4 | AB62: 2 | AC62: 7284.7
A63: Homogenizers (L/h) | C63: Runs/Day | D63: Hours Needed | E63: Equipment $ | F63: Capacity Utilized | G63: Percent Left to Use | H63: extra lbs that can be processed to maximize equip | I63: lbs extra per animal | J63: extra animals | K63: Time Needed to Complete | Y63: Total Other | AA63: =SUM(AA51:AA62) -> 600489.5325 | AB63: =SUM(AB51:AB62) -> 72 | AC63: =AA63/AB63 -> 8340.132396
A64: Tetra Pak S05 (Min. 15 GPH) | B64: 15 | C64: =$B$14/B64 -> 31.13522458 | D64: =C64/24 -> 1.297301024 | E64: =IF(AND(A64=Inputs!$B$53,Inputs!$C$53<>""),Inputs!$C$53,81910) -> 81910 | F64: =($B$14/(B64*(24))) -> 1.297301024 | G64: =1-F64 -> -0.297301024 | H64: =((24*B64)*(G64))*8.6 -> -920.4439703 | I64: =H64/$B$2 -> -3.068146568 | J64: =H64/$B$3 -> -11.50554963 | K64: =D64 -> 1900-01-01T07:08:06.808 | L64: 3096
A65: Tetra Pak S05 (Avg. 22.50 GPH) | B65: 22.5 | C65: =$B$14/B65 -> 20.75681638 | D65: =C65/24 -> 0.8648673493 | E65: =IF(AND(A65=Inputs!$B$53,Inputs!$C$53<>""),Inputs!$C$53,81910) -> 81910 | F65: =($B$14/(B65*(24))) -> 0.8648673493 | G65: =1-F65 -> 0.1351326507 | H65: =((24*B65)*(G65))*8.6 -> 627.5560297 | I65: =H65/$B$2 -> 2.091853432 | J65: =H65/$B$3 -> 7.844450371 | K65: =D65 -> 20:45:24.539 | L65: 4644 | Y65: bottler/packager | Z65: packaging | AA65: 795011.13 | AB65: 22 | AC65: 36136.86955
A66: Tetra Pak S05 (Max. 30 GPH) | B66: 30 | C66: 15.56761229 | D66: 0.648650512 | E66: =IF(AND(A66=Inputs!$B$53,Inputs!$C$53<>""),Inputs!$C$53,81910) -> 81910 | F66: 0.648650512 | G66: 0.351349488 | H66: 2175.55603 | I66: 7.251853432 | J66: 27.19445037 | K66: 15:34:03.404 | L66: 6192 | Q66: pints | R66: 15000 | Y66: labeler | Z66: packaging | AA66: 154260.92 | AB66: 6 | AC66: 25710.15333
A67: Tetra Pak 250 (Min. 3,500 L/h) | B67: =CONVERT(3500,"l","gal") -> 924.6021833 | C67: 0.5051127686 | D67: 0.02104636536 | E67: =IF(AND(A67=Inputs!$B$53,Inputs!$C$53<>""),Inputs!$C$53,152640) -> 152640 | F67: 0.02104636536 | G67: 0.9789536346 | H67: 186821.4467 | I67: 622.7381555 | J67: 2335.268083 | K67: 00:30:18.406 | L67: 190837.8906 | Q67: gallons | R67: 4 | Y67: labeler accessories | Z67: packaging | AA67: 34000 | AB67: 6 | AC67: 5666.666667
A68: Tetra Pak 250 (Avg. 5,250 L/h) | B68: =CONVERT(5250,"l","gal") -> 1386.903275 | C68: 0.3367418457 | D68: 0.01403091024 | E68: =IF(AND(A68=Inputs!$B$53,Inputs!$C$53<>""),Inputs!$C$53,152640) -> 152640 | F68: 0.01403091024 | G68: 0.9859690898 | H68: 282240.392 | I68: 940.8013065 | J68: 3528.0049 | K68: 00:20:12.271 | L68: 286256.8359 | Q68: gallon to liter | R68: =CONVERT(R67,"gal","l") -> 15.14164714 | Y68: packaging | Z68: packaging | AA68: 108804.607 | AB68: 38 | AC68: 2863.27913
A69: Tetra Pak 250 (Max. 7,000 L/h) | B69: =CONVERT(7000,"l","gal") -> 1849.204367 | C69: 0.2525563843 | D69: 0.01052318268 | E69: =IF(AND(A69=Inputs!$B$53,Inputs!$C$53<>""),Inputs!$C$53,152640) -> 152640 | F69: 0.01052318268 | G69: 0.9894768173 | H69: 377659.3373 | I69: 1258.864458 | J69: 4720.741716 | K69: 00:15:09.203 | L69: 381675.7812 | Q69: pints to liters | R69: =CONVERT(R66,"us_pt","l") -> 7097.647095 | Y69: packaging machine | Z69: packaging | AA69: 282713 | AB69: 8 | AC69: 35339.125
A70: Quoted Homogenizer | B70: =IF(Inputs!B53="Quoted Homogenizer",CONVERT(Inputs!D53,"l","gal"),0) -> 79.25161571 | C70: =IF(B70=0,210240,$B$14/B70) -> 5.8929823 | D70: 0.2455409292 | E70: =IF(A70=Inputs!$B$53,Inputs!$C$53,0) -> 10000 | F70: =IF(B70=0,0,($B$14/(B70*(24)))) -> 0.2455409292 | G70: 0.7544590708 | H70: 12341.08951 | I70: 41.13696504 | J70: 154.2636189 | K70: 05:53:34.736 | L70: 16357.53348 | Y70: Total Packaging | AA70: =SUM(AA65:AA69) -> 1374789.657 | AB70: =SUM(AB65:AB69) -> 80 | AC70: =AA70/AB70 -> 17184.87071
A71: Not Applicable | B71: 0 | C71: 0 | D71: 0 | E71: 0 | F71: 0 | G71: 0 | H71: 0 | I71: 0 | J71: 0 | K71: 00:00:00
Y72: milk testing | Z72: prep | AA72: 14076.72 | AB72: 1 | AC72: 14076.72
A73: Bottlers: Filler Capper | C73: Runs/Day | D73: Hours Needed | E73: Equipment $ | F73: Capacity Utilized | G73: Percent Left to Use | H73: extra lbs that can be processed to maximize equip | I73: lbs extra per animal | J73: extra animals | K73: Time Needed to Complete
A74: Federal Dairy Gravity Filling Systems
A75: Federal 309 Gravity Filler (Min. Capacity for 1 gal) | B75: 6300 | C75: =B14/B75 -> 0.07413148709 | D75: =C75/24 -> 0.003088811962 | E75: =IF(AND(A75=Inputs!$B$50,Inputs!$C$54<>""),Inputs!$C$54,600000) -> 600000 | F75: =($B$14/(B75*(24))) -> 0.003088811962 | G75: =1-F75 -> 0.996911188 | H75: =((24*B75)*(G75))*8.6 -> 1296303.556 | I75: =H75/$B$2 -> 4321.011853 | J75: =H75/$B$3 -> 16203.79445 | K75: =D75 -> 00:04:26.873 | L75: 1300320 | R75: =32706/2 -> 16353 | Y75: scc testing | Z75: prep | AA75: 3900 | AB75: 1 | AC75: 3900
A76: Federal 309 Gravity Filler (Avg. Capacity for 1 gal) | B76: 6720 | C76: =B14/B76 -> 0.06949826914 | D76: 0.002895761214 | E76: =IF(AND(A76=Inputs!$B$50,Inputs!$C$54<>""),Inputs!$C$54,600000) -> 600000 | F76: =($B$14/(B76*(24))) -> 0.002895761214 | G76: =1-F76 -> 0.9971042388 | H76: =((24*B76)*(G76))*8.6 -> 1382991.556 | I76: 4609.971853 | J76: 17287.39445 | K76: 00:04:10.194 | L76: 1387008
A77: Federal 309 Gravity Filler (Max. Capacity for 1 gal) | B77: 7200 | C77: =B14/B77 -> 0.0648650512 | D77: 0.002702710467 | E77: =IF(AND(A77=Inputs!$B$50,Inputs!$C$54<>""),Inputs!$C$54,600000) -> 600000 | F77: 0.002702710467 | G77: 0.9972972895 | H77: 1482063.556 | I77: 4940.211853 | J77: 18525.79445 | K77: 00:03:53.514 | L77: 1486080
A78: Federal 309 Gravity Filler (Min. Capacity for 0.5 gal) | B78: 7680 | C78: =(B14*2)/B78 -> 0.121621971 | D78: 0.005067582125 | E78: =IF(AND(A78=Inputs!$B$50,Inputs!$C$54<>""),Inputs!$C$54,600000) -> 600000 | F78: 0.002533791063 | G78: 0.9974662089 | H78: 1581135.556 | I78: 5270.451853 | J78: 19764.19445 | K78: 00:07:17.839 | L78: 1585152 | Y78: Total Prep | AA78: =SUM(AA71:AA75) -> 17976.72 | AB78: =AB71+AB72+AB75 -> 2 | AC78: =AA78/AB78 -> 8988.36
A79: Federal 309 Gravity Filler (Avg. Capacity for 0.5 gal) | B79: 8640 | C79: =(B14*2)/B79 -> 0.1081084187 | D79: 0.004504517444 | E79: =IF(AND(A79=Inputs!$B$50,Inputs!$C$54<>""),Inputs!$C$54,600000) -> 600000 | F79: 0.002252258722 | G79: 0.9977477413 | H79: 1779279.556 | I79: 5930.931853 | J79: 22240.99445 | K79: 00:06:29.190 | L79: 1783296
A80: Federal 309 Gravity Filler (Max. Capacity for 0.5 gal) | B80: 9600 | C80: =(B14*2)/B80 -> 0.0972975768 | D80: 0.0040540657 | E80: =IF(AND(A80=Inputs!$B$50,Inputs!$C$54<>""),Inputs!$C$54,600000) -> 600000 | F80: 0.00202703285 | G80: 0.9979729671 | H80: 1977423.556 | I80: 6591.411853 | J80: 24717.79445 | K80: 00:05:50.271 | L80: 1981440
A81: Quoted Bottler | B81: =IF(Inputs!B54="Quoted Bottler",Inputs!D54,0) -> 30 | C81: =IF(B81=0,210240,B14/B81) -> 15.56761229 | D81: 0.648650512 | E81: =IF(A81=Inputs!$B$54,Inputs!$C$54,0) -> 36000 | F81: =IF(B81=0,0,($B$14/(B81*(24)))) -> 0.648650512 | G81: 0.351349488 | H81: 2175.55603 | I81: 7.251853432 | J81: 27.19445037 | K81: 15:34:03.404 | L81: 6192 | Y81: soap aging | Z81: soap | AA81: 1967.16 | AB81: 2 | AC81: 983.58
A82: Not Applicable | B82: 0 | C82: 0 | D82: 0 | E82: 0 | F82: 0 | G82: 0 | H82: 0 | I82: 0 | J82: 0 | K82: 00:00:00
Y83: soap holding tank | Z83: soap | AA83: 3360 | AB83: 2 | AC83: 1680
A84: Pasteurizers | C84: Runs/Day | D84: Hours Needed | E84: Equipment $ | F84: Capacity Utilized | G84: Percent Left to Use | H84: extra lbs that can be processed to maximize equip | I84: lbs extra per animal | J84: extra animals | K84: Time Needed to Complete | Y84: soap measuring | Z84: soap | AA84: 454.97 | AB84: 2 | AC84: 227.485
A85: =A22 -> MicroDairy Designs (4 gal. capacity) | B85: 4 | C85: 116.7570922 | D85: 9.72975768 | E85: 5500 | F85: 9.72975768 | G85: -8.72975768 | H85: -3603.64397 | I85: -12.01214657 | J85: -45.04554963 | K85: 1900-01-09T17:30:51.064 | L85: 412.8 | Y85: soap mixing | Z85: soap | AA85: 1403.02 | AB85: 3 | AC85: 467.6733333
A86: =A23 -> MicroDairy Designs (15 gal. capacity) | B86: 15 | C86: 31.13522458 | D86: 2.594602048 | E86: 7000 | F86: 2.594602048 | G86: -1.594602048 | H86: -2468.44397 | I86: -8.228146568 | J86: -30.85554963 | K86: 1900-01-02T14:16:13.617 | L86: 1548 | Y86: soap molds | Z86: soap | AA86: 1045 | AB86: 1 | AC86: 1045
A87: =A24 -> MicroDairy Designs (30 gal. capacity) | B87: 30 | C87: 15.56761229 | D87: 1.297301024 | E87: 10000 | F87: 1.297301024 | G87: -0.297301024 | H87: -920.4439703 | I87: -3.068146568 | J87: -11.50554963 | K87: 1900-01-01T07:08:06.808 | L87: 3096 | Y87: soap msc supplies | Z87: soap | AA87: 509.95 | AB87: 4 | AC87: 127.4875
A88: =A25 -> MicroDairy Designs (45 gal. capacity) | B88: 45 | C88: 10.37840819 | D88: 0.8648673493 | E88: 13000 | F88: 0.8648673493 | G88: 0.1351326507 | H88: 627.5560297 | I88: 2.091853432 | J88: 7.844450371 | K88: 20:45:24.539 | L88: 4644 | Y88: soap pourer | Z88: soap | AA88: 1200 | AB88: 1 | AC88: 1200
A89: =A26 -> MicroDairy Designs (60 gal. capacity) | B89: 60 | C89: 7.783806144 | D89: 0.648650512 | E89: 16000 | F89: 0.648650512 | G89: 0.351349488 | H89: 2175.55603 | I89: 7.251853432 | J89: 27.19445037 | K89: 15:34:03.404 | L89: 6192 | Y89: Total Soap | AA89: =SUM(AA81:AA88) -> 9940.1 | AB89: =SUM(AB81:AB88) -> 15 | AC89: =AA89/AB89 -> 662.6733333
A90: =A27 -> MicroDairy Designs (99 gal. capacity) | B90: 99 | C90: 4.717458269 | D90: 0.3931215224 | E90: 18000 | F90: 0.3931215224 | G90: 0.6068784776 | H90: 6200.35603 | I90: 20.66785343 | J90: 77.50445037 | K90: 09:26:05.700 | L90: 10216.8
A91: =A28 -> ANCO Equipment (200 gal. capacity) | B91: 200 | C91: 2.335141843 | D91: 0.1945951536 | E91: 18000 | F91: 0.1945951536 | G91: 0.8054048464 | H91: 16623.55603 | I91: 55.41185343 | J91: 207.7944504 | K91: 04:40:13.021 | L91: 20640
A92: =A29 -> ANCO Equipment (300 gal. capacity) | B92: 300 | C92: 1.556761229 | D92: 0.1297301024 | E92: 20000 | F92: 0.1297301024 | G92: 0.8702698976 | H92: 26943.55603 | I92: 89.81185343 | J92: 336.7944504 | K92: 03:06:48.681 | L92: 30960
A93: =A30 -> ANCO Equipment (400 gal. capacity) | B93: 400 | C93: 1.167570922 | D93: 0.0972975768 | E93: 24000 | F93: 0.0972975768 | G93: 0.9027024232 | H93: 37263.55603 | I93: 124.2118534 | J93: 465.7944504 | K93: 02:20:06.511 | L93: 41280
A94: =A31 -> ANCO Equipment (500 gal. capcity) | B94: 500 | C94: 0.9340567373 | D94: 0.07783806144 | E94: 26500 | F94: 0.07783806144 | G94: 0.9221619386 | H94: 47583.55603 | I94: 158.6118534 | J94: 594.7944504 | K94: 01:52:05.209 | L94: 51600
A95: =A32 -> ANCO Equipment (600 gal. capacity) | B95: 600 | C95: 0.7783806144 | D95: 0.0648650512 | E95: 28500 | F95: 0.0648650512 | G95: 0.9351349488 | H95: 57903.55603 | I95: 193.0118534 | J95: 723.7944504 | K95: 01:33:24.340 | L95: 61920
A96: =A33 -> ANCO Equipment (800 gal. capacity) | B96: 800 | C96: 0.5837854608 | D96: 0.0486487884 | E96: 32000 | F96: 0.0486487884 | G96: 0.9513512116 | H96: 78543.55603 | I96: 261.8118534 | J96: 981.7944504 | K96: 01:10:03.255 | L96: 82560
A97: =A34 -> ANCO Equipment (1000 gal. capacity) | B97: 1000 | C97: 0.4670283686 | D97: 0.03891903072 | E97: 39500 | F97: 0.03891903072 | G97: 0.9610809693 | H97: 99183.55603 | I97: 330.6118534 | J97: 1239.79445 | K97: 00:56:02.604 | L97: 103200
A98: =A35 -> ANCO Equipment (1200 gal. capacity) | B98: 1200 | C98: 0.3891903072 | D98: 0.0324325256 | E98: 45500 | F98: 0.0324325256 | G98: 0.9675674744 | H98: 119823.556 | I98: 399.4118534 | J98: 1497.79445 | K98: 00:46:42.170 | L98: 123840
A99: =A36 -> ANCO Equipment (1500 gal. capacity) | B99: 1500 | C99: 0.3113522458 | D99: 0.02594602048 | E99: 49500 | F99: 0.02594602048 | G99: 0.9740539795 | H99: 150783.556 | I99: 502.6118534 | J99: 1884.79445 | K99: 00:37:21.736 | L99: 154800
A100: =A37 -> ANCO Equipment (2000 gal. capacity) | B100: 2000 | C100: 0.2335141843 | D100: 0.01945951536 | E100: 56000 | F100: 0.01945951536 | G100: 0.9805404846 | H100: 202383.556 | I100: 674.6118534 | J100: 2529.79445 | K100: 00:28:01.302 | L100: 206400
A101: =A38 -> Quoted Vat Pasteurizer | B101: 201 | C101: 2.323524222 | D101: 0.1936270185 | E101: 28000 | F101: 0.1936270185 | G101: 0.8063729815 | H101: 16726.75603 | I101: 55.75585343 | J101: 209.0844504 | K101: 04:38:49.374 | L101: 20743.2
A102: =A41 -> In-line Pasteurizer 100 gal/hr | B102: 100 | C102: 4.670283686 | D102: 0.1945951536 | E102: 120000 | F102: 0.1945951536 | G102: 0.8054048464 | H102: 16623.55603 | I102: 55.41185343 | J102: 207.7944504 | K102: 04:40:13.021 | L102: 20640
A103: =A42 -> In-line Pasteurizer 200 gal/hr | B103: 200 | C103: 2.335141843 | D103: 0.0972975768 | E103: 120000 | F103: 0.0972975768 | G103: 0.9027024232 | H103: 37263.55603 | I103: 124.2118534 | J103: 465.7944504 | K103: 02:20:06.511 | L103: 41280
A104: In-line Pasteurizer 500 gal/hr | B104: 500 | C104: 0.9340567373 | D104: 0.03891903072 | E104: 120000 | F104: 0.03891903072 | G104: 0.9610809693 | H104: 99183.55603 | I104: 330.6118534 | J104: 1239.79445 | K104: 00:56:02.604 | L104: 103200
A105: In-line Pasteurizer 1000 gal/hr | B105: 1000 | C105: 0.4670283686 | D105: 0.01945951536 | E105: 120000 | F105: 0.01945951536 | G105: 0.9805404846 | H105: 202383.556 | I105: 674.6118534 | J105: 2529.79445 | K105: 00:28:01.302 | L105: 206400
A106: In-line Pasteurizer 1500 gal/hr | B106: 1500 | C106: 0.3113522458 | D106: 0.01297301024 | E106: 120000 | F106: 0.01297301024 | G106: 0.9870269898 | H106: 305583.556 | I106: 1018.611853 | J106: 3819.79445 | K106: 00:18:40.868 | L106: 309600
A107: In-line Pasteurizer 2000 gal/hr | B107: 2000 | C107: 0.2335141843 | D107: 0.00972975768 | E107: 120000 | F107: 0.00972975768 | G107: 0.9902702423 | H107: 408783.556 | I107: 1362.611853 | J107: 5109.79445 | K107: 00:14:00.651 | L107: 412800
A108: In-line Pasteurizer 2500 gal/hr | B108: 2500 | C108: 0.1868113475 | D108: 0.007783806144 | E108: 120000 | F108: 0.007783806144 | G108: 0.9922161939 | H108: 511983.556 | I108: 1706.611853 | J108: 6399.79445 | K108: 00:11:12.521 | L108: 516000
A109: In-line Pasteurizer 3000 gal/hr | B109: 3000 | C109: 0.1556761229 | D109: 0.00648650512 | E109: 120000 | F109: 0.00648650512 | G109: 0.9935134949 | H109: 615183.556 | I109: 2050.611853 | J109: 7689.79445 | K109: 00:09:20.434 | L109: 619200
A110: In-line Pasteurizer 3500 gal/hr | B110: 3500 | C110: 0.1334366768 | D110: 0.005559861531 | E110: 120000 | F110: 0.005559861531 | G110: 0.9944401385 | H110: 718383.556 | I110: 2394.611853 | J110: 8979.79445 | K110: 00:08:00.372 | L110: 722400
A111: Quoted In-Line Pasteurizer | B111: 0 | C111: 210240 | D111: 8760 | E111: 0 | F111: 0 | G111: 1 | H111: 0 | I111: 0 | J111: 0 | K111: 1923-12-25 | L111: 0
A120: ANCO Equipment (400 gal. capacity)
A121: Federal 309 Gravity Filler (Min. Capacity for 1 gal)
A122: Tetra Pak 250 (Max. 7,000 L/h)
A123: Tetra Pak H10 Hot Milk (Avg. Capacity 41,000 L/h)
A126: Total Cost: 936640 | Total Hours: 84.49

Sheet Standardized Milk (hidden)
B1: Volume in L/d | C1: Volume in gal/d | D1: Fat Percent
A2: Total Raw Product | B2: =Equipment!B18 -> 123.3758427 | C2: =Equipment!B14 -> 467.0283686 | D2: =Inputs!B7 -> 0.0405
A3: Total Raw Product designated for standardized milks | B3: =B2*B9 -> 61.68792133 | C3: =C2*B9 -> 233.5141843
A4: Cream designated for standardized milks | B4: =G8 -> 6.176512774 | C4: =K8 -> 23.38064424 | D4: =Inputs!D6 -> 0.4 | E4: this does not include creamline %
A5: Skim designated for standardized milks | B5: =H8 -> 55.51140855 | C5: =L8 -> 210.1335401 | D5: =Inputs!D7 -> 0.0005
F6: Liters | J6: Gallons
B7: Desired % | C7: Target fat % | D7: Cream fat % | E7: Skim fat % | F7: Target mass | G7: Cream mass | H7: Skim mass | I7: Check Value | J7: Target mass | K7: Cream mass | L7: Skim mass | M7: Check Value
A8: Parts of Raw | B8: =Inputs!B21 -> 0.5 | C8: =C9 -> 0.0405 | D8: =$D$4 -> 0.4 | E8: =$D$5 -> 0.0005 | F8: =$B$2*B8 -> 61.68792133 | G8: =((C8-E8)*F8)/(D8-E8) -> 6.176512774 | H8: =F8-G8 -> 55.51140855 | J8: =$C$2*B8 -> 233.5141843 | K8: =((C8-E8)*J8)/(D8-E8) -> 23.38064424 | L8: =J8-K8 -> 210.1335401
A9: Creamline Milk | B9: =Inputs!B19 -> 0.5 | C9: =D2 -> 0.0405 | D9: =$D$4 -> 0.4 | E9: =$D$5 -> 0.0005 | F9: =$B$2*B9 -> 61.68792133 | G9: - | H9: - | J9: =$C$2*B9 -> 233.5141843 | K9: - | L9: -
A10: Skim Milk Calculated | B10: =Inputs!B18 -> 0.25 | C10: 0.005 | D10: 0.4 | E10: 0.0005 | F10: =$B$2*B10 -> 30.84396066 | G10: =((C10-E10)*F10)/(D10-E10) -> 0.3474288435 | H10: =F10-G10 -> 30.49653182 | J10: =$C$2*B10 -> 116.7570922 | K10: =((C10-E10)*J10)/(D10-E10) -> 1.315161238 | L10: =J10-K10 -> 115.4419309
A11: Amounts left over after skim | G11: =$G$8-G10 -> 5.82908393 | H11: =$H$8-H10 -> 25.01487673 | K11: =$K$8-K10 -> 22.065483 | L11: =$L$8-L10 -> 94.69160916
A12: Lowfat Milk Calculated | B12: =Inputs!B17 -> 0 | C12: 0.0125 | D12: 0.4 | E12: 0.0005 | F12: =$B$2*B12 -> 0 | G12: =((C12-E12)*F12)/(D12-E12) -> 0 | H12: =F12-G12 -> 0 | J12: =$C$2*B12 -> 0 | K12: =((C12-E12)*J12)/(D12-E12) -> 0 | L12: =J12-K12 -> 0
A13: Actual amount lowfat based on limiting | B13: =Inputs!B17 -> 0 | C13: 0.0125 | D13: 0.4 | E13: 0.0005 | F13: =J31 -> 0 | G13: =J33 -> 0 | H13: =J32 -> 0 | J13: =J42 -> 0 | K13: =J44 -> 0 | L13: =J43 -> 0
A14: Amounts left over after lowfat | G14: =G11-G13 -> 5.82908393 | H14: =H11-H13 -> 25.01487673 | K14: =K11-K13 -> 22.065483 | L14: =L11-L13 -> 94.69160916
A15: Reduced Fat Milk Calculated | B15: =Inputs!B16 -> 0 | C15: 0.0225 | D15: 0.4 | E15: 0.0005 | F15: =$B$2*B15 -> 0 | G15: =((C15-E15)*F15)/(D15-E15) -> 0 | H15: =F15-G15 -> 0 | J15: =$C$2*B15 -> 0 | K15: =((C15-E15)*J15)/(D15-E15) -> 0 | L15: =J15-K15 -> 0
A16: Actual amount reduced fat based on limiting | B16: =Inputs!B16 -> 0 | C16: 0.0225 | D16: 0.4 | E16: 0.0005 | F16: =I31 -> 0 | G16: =I33 -> 0 | H16: =I32 -> 0 | J16: =I42 -> 0 | K16: =I44 -> 0 | L16: =I43 -> 0
A17: Amounts left over after reduced fat | G17: =G14-G16 -> 5.82908393 | H17: =H14-H16 -> 25.01487673 | K17: =K14-K16 -> 22.065483 | L17: =L14-L16 -> 94.69160916
A18: Whole Milk Calculated | B18: =Inputs!B15 -> 0.25 | C18: 0.0325 | D18: =$D$4 -> 0.4 | E18: =$D$5 -> 0.0005 | F18: =$B$2*B18 -> 30.84396066 | G18: =((C18-E18)*F18)/(D18-E18) -> 2.470605109 | H18: =F18-G18 -> 28.37335555 | J18: =$C$2*B18 -> 116.7570922 | K18: =((C18-E18)*J18)/(D18-E18) -> 9.352257695 | L18: =J18-K18 -> 107.4048345
A19: Actual amount whole based on limiting | B19: =Inputs!B15 -> 0.25 | C19: 0.0325 | D19: =$D$4 -> 0.4 | E19: =$D$5 -> 0.0005 | F19: =H31 -> 27.19304287 | G19: =H33 -> 2.178166137 | H19: =H32 -> 25.01487673 | J19: =H42 -> 102.9368649 | K19: =H44 -> 8.245255764 | L19: =H43 -> 94.69160916
A20: Amounts left over after whole | G20: =G17-G19 -> 3.650917793 | H20: =H17-H19 -> 0 | K20: =K17-K19 -> 13.82022724 | L20: =L17-L19 -> 0
A21: Parts left over if done based on volume percent | F21: =F8-F10-F12-F15-F18 -> 0 | G21: =G8-G10-G12-G15-G18 -> 3.358478821 | H21: -3.358478821 | J21: =J8-J10-J12-J15-J18 -> 0 | K21: =K8-K10-K12-K15-K18 -> 12.7132253 | L21: -12.7132253
A22: Parts left over if done based on amount had | F22: =F8-F10-F13-F16-F19 -> 3.650917793 | G22: =G8-G10-G13-G16-G19 -> 3.650917793 | H22: 0 | J22: =J8-J10-J13-J16-J19 -> 13.82022724 | K22: =K8-K10-K13-K16-K19 -> 13.82022724 | L22: 0
A23: check | B23: =B9+B10+B12+B15+B18 -> 1
B26: Volume | C26: Packaging Capacity | D26: Volume Utilized in Gallons | E26: Remaining Amount | G26: Liters
A27: Fluid Milk Volume in gallons | B27: =J9+J10+J13+J16+J19 -> 453.2081414 | H27: whole milk | I27: reduced fat milk | J27: lowfat milk | K27: skim | L27: creamline | M27: extra cream | N27: extra skim
A28: Gallons | B28: =$B$27*Inputs!B27 -> 113.3020354 | C28: =INT(B28) -> 113 | D28: =C28*1 -> 113 | E28: =B27-D28 -> 340.2081414 | G28: target fat | H28: =C19 -> 0.0325 | I28: =C15 -> 0.0225 | J28: =C12 -> 0.0125
A29: Half Gallons | B29: =$B$27*Inputs!B28 -> 113.3020354 | C29: =INT(MIN(E28,B29)/0.5) -> 226 | D29: =C29*0.5 -> 113 | E29: =E28-D29 -> 227.2081414 | G29: skim per unit | H29: =1-(($C$19-$E$19)/($D$19-$E$19)) -> 0.9198998748 | I29: =1-(($C$16-$E$16)/($D$16-$E$16)) -> 0.944931164 | J29: =1-(($C$12-$E$12)/($D$12-$E$12)) -> 0.9699624531
A30: Quarts | B30: =$B$27*Inputs!B29 -> 113.3020354 | C30: =INT(MIN(E29,B30)/0.25) -> 453 | D30: =C30*0.25 -> 113.25 | E30: =E29-D30 -> 113.9581414 | G30: available skim | H30: =H17 -> 25.01487673 | I30: =H14 -> 25.01487673 | J30: =H11 -> 25.01487673
A31: Pints | B31: =$B$27*Inputs!B30 -> 113.3020354 | C31: =INT(MIN(E30,B31)/0.125) -> 906 | D31: =C31*0.125 -> 113.25 | E31: =E30-D31 -> 0.7081414081 | G31: product mass | H31: =MIN(H30/H29,F18) -> 27.19304287 | I31: =MIN(I30/I29,F15) -> 0 | J31: =MIN(J30/J29,F12) -> 0
A32: Extra pints beyond desired amount | C32: =E31/0.125 -> 5.665131264 | D32: =C32*0.125 -> 0.7081414081 | E32: =MOD(C32,1) -> 0.6651312644 | G32: skim used | H32: =H31*H29 -> 25.01487673 | I32: =I31*I29 -> 0 | J32: 0
A33: Check | D33: =SUM(D28:D32) -> 453.2081414 | G33: cream used | H33: =H31-H32 -> 2.178166137 | I33: =I31-I32 -> 0 | J33: 0
A34: Cream Volume in gallons | B34: =K22 -> 13.82022724 | G34: skim remaining | H34: =H30-H32 -> 0 | I34: =I30-I32 -> 25.01487673 | J34: 25.01487673
A35: Quarts | B35: =B34*0.5 -> 6.910113618 | C35: =INT(B35/0.25) -> 27 | D35: =C35*0.25 -> 6.75 | E35: =B34-D35 -> 7.070227235 | G35: actual % breakdown of products | H35: =H31/$B$2 -> 0.2204081633 | I35: =I31/$B$2 -> 0 | J35: =J31/$B$2 -> 0 | K35: =F10/$B$2 -> 0.25 | L35: =F9/$B$2 -> 0.5 | M35: =G20/$B$2 -> 0.02959183673 | N35: =H20/$B$2 -> 0
A36: Pints | B36: =B34*0.5 -> 6.910113618 | C36: =INT(B36/0.125) -> 55 | D36: =C36*0.125 -> 6.875 | E36: =E35-D36 -> 0.1952272354
A37: Check | D37: =SUM(D35:D36) -> 13.625 | G37: Gallons
D38: extra cream pints | E38: =E36/0.125 -> 1.561817883 | H38: whole milk | I38: reduced fat milk | J38: lowfat milk | K38: skim | L38: creamline | M38: extra cream | N38: extra skim
G39: target fat | H39: =C19 -> 0.0325 | I39: =C15 -> 0.0225 | J39: =C12 -> 0.0125
E40: =MOD(E38,1) -> 0.5618178829 | G40: skim per unit | H40: =1-(($C$19-$E$19)/($D$19-$E$19)) -> 0.9198998748 | I40: =1-(($C$16-$E$16)/($D$16-$E$16)) -> 0.944931164 | J40: =1-(($C$12-$E$12)/($D$12-$E$12)) -> 0.9699624531
G41: available skim | H41: =L17 -> 94.69160916 | I41: =L14 -> 94.69160916 | J41: =L11 -> 94.69160916
G42: product mass | H42: =MIN(H41/H40,J18) -> 102.9368649 | I42: =MIN(I41/I40,J15) -> 0 | J42: =MIN(J41/J40,J12) -> 0
G43: skim used | H43: =H42*H40 -> 94.69160916 | I43: =I42*I40 -> 0 | J43: =J42*J40 -> 0
G44: cream used | H44: =H42-H43 -> 8.245255764 | I44: =I42-I43 -> 0 | J44: =J42-J43 -> 0
G45: skim remaining | H45: =H41-H43 -> 0 | I45: =I41-I43 -> 94.69160916 | J45: 94.69160916
G46: actual % breakdown of products | H46: =H42/$C$2 -> 0.2204081633 | I46: =I42/$C$2 -> 0 | J46: =J42/$C$2 -> 0 | K46: =J10/$C$2 -> 0.25 | L46: =J9/$C$2 -> 0.5 | M46: =K20/$C$2 -> 0.02959183673 | N46: =L20/$C$2 -> 0
I50: ERROR! Make sure your desired amounts do not exceed 100%
I51: You have not used all your raw product. You can still use:
I52: All your raw product has been used
I55: Yes
I56: No

Sheet EmployeeCost
A1: Employee | B1: Name | C1: Hourly Wage ($) | D1: Hours per Week
A2: 0 | B2: Test Employee | C2: 0 | D2: 0

Sheet Milk Pricing (hidden)
D1: Whole Milk | H1: Reduced Fat Milk | L1: Lowfat Milk | P1: Skim Milk | T1: Cream | X1: Butter | AA1: Walmart | AB1: 365 by Whole Foods | AC1: 21 stores
A2: Store | B2: Brand | C2: Specialty | D2: Gallons | E2: Half Gallons | F2: Quarts | G2: Pints | H2: Gallons | I2: Half Gallons | J2: Quarts | K2: Pints | L2: Gallons | M2: Half Gallons | N2: Quarts | O2: Pints | P2: Gallons | Q2: Half Gallons | R2: Quarts | S2: Pints | T2: Gallons | U2: Half Gallons | V2: Quarts | W2: Pints | X2: 8 oz | Y2: 16 oz | AA2: Kroger | AB2: A2 | AC2: 73 brands
A3: Krog. | B3: A2 | E3: 5.29 | I3: 5.29 | AA3: Costco | AB3: Alexandre Family Farms
A4: Krog. | B4: Challenge | X4: 5.49 | Y4: 5.49 | AA4: Albertson | AB4: Banner
A5: Krog. | B5: Country Crock | W5: 4.19 | AA5: Publix | AB5: Borden
A6: Krog. | B6: Dairy Pure | J6: 2.69 | V6: 8.49 | W6: 5.99 | AA6: Trader Joe's | AB6: Cabot
A7: Krog. | B7: Fairlife | E7: 5.49 | I7: 5.49 | Q7: 5.49 | AA7: ALDI | AB7: Central Market Organics
A8: Krog. | B8: Horizon Organic | E8: 6.99 | I8: 6.99 | W8: 6.29 | AA8: H-E-B | AB8: Challenge
A9: Krog. | B9: Horizon Organic | C9: DHA and Omega-3 | E9: 6.99 | Q9: 6.99 | AA9: Whole Foods Market | AB9: Chaney Dairy Barn
A10: Krog. | B10: Horizon Organic | C10: Grassfed | E10: 6.99 | AA10: Wegmans | AB10: Country Crock
A11: Krog. | B11: Horizon Organic | C11: Growing Years | E11: 6.99 | I11: 7.49 | AA11: Fresh Market | AB11: Countryside Creamery
A12: Krog. | B12: Kerrygold | X12: 5.29 | Y12: 5.29 | AA12: Independent Farmstead Creameries | AB12: Cruze Farms
A13: Krog. | B13: Kroger | D13: 3.19 | E13: 2.29 | F13: 2.19 | G13: 1.49 | H13: 3.19 | I13: 2.29 | J13: 2.19 | K13: 1.49 | L13: 3.19 | M13: 2.29 | N13: 2.19 | P13: 3.19 | Q13: 2.29 | R13: 2.19 | S13: 1.49 | V13: 5.99 | W13: 3.69 | X13: 4.29 | Y13: 4.29 | AA13: Ingles | AB13: Culinary Tours
A14: Krog. | B14: Land O Lakes | W14: 4.19 | X14: 5.49 | Y14: 5.49 | AA14: Food City | AB14: Dairy Pure
A15: Krog. | B15: Maple Hill Creamery | E15: 7.99 | I15: 7.99 | AB15: Danish Creamery
A16: Krog. | B16: Mayfield | D16: 4.99 | E16: 3.89 | G16: 1.89 | H16: 4.99 | I16: 3.89 | J16: 2.99 | L16: 4.99 | M16: 3.89 | P16: 4.99 | Q16: 3.89 | AB16: Darigold
A17: Krog. | B17: Organic Valley | E17: 5.99 | I17: 5.99 | AB17: Fairlife
A18: Krog. | B18: Organic Valley | C18: DHA and Omega-3 | E18: 5.79 | AB18: Family Farmstead
A19: Krog. | B19: Simple Truth Organic | D19: 6.99 | E19: 4.49 | H19: 6.99 | I19: 4.49 | Q19: 4.49 | AB19: Ferndale Organic A2/A2
A20: Krog. | B20: Simple Truth Organic | C20: 100% Grassfed | E20: 6.29 | I20: 6.29 | AB20: Food City, Fresh!
A21: Krog. | B21: Simple Truth Organic | C21: VitD with DHA and Omega-3 | E21: 4.69 | I21: 4.69 | AB21: Food Club
A22: Krog. | B22: Vital Farms | X22: 5.49 | Y22: 5.49 | AB22: Fresh Market
A23: Wal. | B23: Challenge | X23: 5.34 | Y23: 5.34 | AB23: Friendly Farms
A24: Wal. | B24: Country Crock | X24: 3.98 | Y24: 3.98 | AB24: Great Value
A25: Wal. | B25: Dairy Pure | V25: 8.47 | AB25: Greenwise
A26: Wal. | B26: Danish Creamery | X26: 6.88 | Y26: 6.88 | AB26: Harvest Farms
A27: Wal. | B27: Great Value | D27: 2.33 | E27: 2.18 | H27: 2.33 | I27: 2.18 | L27: 2.33 | U27: 10.37 | V27: 5.69 | W27: 3.37 | X27: 3.96 | Y27: 3.96 | AB27: Hatcher Family Dairy
A28: Wal. | B28: Horizon Organic | W28: 5.54 | AB28: HEB
A29: Wal. | B29: Kerrygold | X29: 5.24 | Y29: 5.24 | AB29: Hill Country Fare
A30: Wal. | B30: Land O Lakes | V30: 6.87 | X30: 4.96 | Y30: 4.96 | AB30: Homestead Creamery
A31: Wal. | B31: Mayfield | D31: 4.64 | E31: 3.14 | H31: 4.64 | AB31: Horizon Organic
A32: Cost. | B32: Kirkland | D32: 2.71 | H32: 2.71 | P32: 2.71 | AB32: Horizon Organic
A33: Albe. | B33: A2 | E33: 4.99 | I33: 4.99 | AB33: Isigny Ste Mere
A34: Albe. | B34: Challenge | X34: 7.49 | Y34: 7.49 | AB34: Ivy's Reserve
A35: Albe. | B35: Darigold | E35: 3.99 | G35: 2 | I35: 4.59 | M35: 3.99 | Q35: 3.99 | X35: 6.49 | Y35: 6.49 | AB35: JD Country Milk
A36: Albe. | B36: Fairlife | E36: 5.49 | I36: 5.49 | Q36: 5.49 | AB36: Kerrygold
A37: Albe. | B37: Horizon Organic | E37: 6.49 | I37: 6.49 | M37: 6.49 | Q37: 6.49 | W37: 6.99 | AB37: Kirkland
A38: Albe. | B38: Horizon Organic | C38: Grassfed | E38: 7.49 | AB38: Kroger
A39: Albe. | B39: Kerrygold | X39: 10.99 | Y39: 10.99 | AB39: Land O Lakes
A40: Albe. | B40: Land O Lakes | X40: 5.99 | Y40: 5.99 | AB40: Laura Lynn
A41: Albe. | B41: lucerene | D41: 3.59 | E41: 2.19 | H41: 3.59 | I41: 2.19 | L41: 3.59 | M41: 2.19 | P41: 3.59 | Q41: 2.19 | V41: 5.99 | X41: 4.49 | Y41: 4.49 | AB41: Lewis Road Creamery
A42: Albe. | B42: Maple Hill Creamery | E42: 8.99 | AB42: lucerene
A43: Albe. | B43: Meadow Gold | D43: 4.59 | E43: 2.49 | H43: 4.39 | I43: 2.49 | J43: 1.99 | L43: 4.29 | M43: 2.49 | P43: 4.19 | Q43: 2.49 | AB43: Maola Local Dairies
A44: Albe. | B44: O Organics Milk | D44: 6.99 | E44: 4.99 | I44: 4.99 | L44: 6.99 | M44: 4.99 | P44: 6.99 | Q44: 4.99 | V44: 7.99 | W44: 4.49 | X44: 7.49 | Y44: 7.49 | AB44: Maple Hill Creamery
A45: Albe. | B45: Organic Valley | E45: 5.99 | I45: 5.99 | W45: 6.99 | AB45: Mayfield
A46: Albe. | B46: Organic Valley | C46: Grassfed | E46: 7.49 | AB46: Meadow Gold
A47: Albe. | B47: Parmalat Milk | F47: 5.69 | AB47: Minerva Dairy
A48: Albe. | B48: Tillamook | X48: 6.49 | Y48: 6.49 | AB48: Nancys Yogurt
A49: Albe. | B49: Value Corner | D49: 3.29 | H49: 3.29 | L49: 3.29 | P49: 3.29 | AB49: Nellie's
A50: HEB | B50: A2 | E50: 4.36 | I50: 4.36 | AB50: O Organics Milk
A51: HEB | B51: A2 | C51: Grassfed | E51: 5.98 | I51: 5.98 | AB51: Organic Valley
A52: HEB | B52: Borden | D52: 5.28 | E52: 3.68 | H52: 5.28 | I52: 3.68 | AB52: Park Manor
A53: HEB | B53: Central Market Organics | D53: 7.17 | E53: 4.12 | H53: 7.17 | I53: 4.12 | L53: 7.17 | M53: 4.12 | P53: 7.17 | Q53: 4.12 | V53: 5.26 | W53: 4.28 | X53: 5.98 | Y53: 5.98 | AB53: Parmalat Milk
A54: HEB | B54: Central Market Organics | C54: DHA | E54: 4.58 | AB54: Plugra
A55: HEB | B55: Challenge | X55: 5.34 | Y55: 5.34 | AB55: President
A56: HEB | B56: Country Crock | X56: 3.98 | Y56: 3.98 | AB56: Publix
A57: HEB | B57: Danish Creamery | X57: 6.88 | Y57: 6.88 | AB57: RanLew Dairy
A58: HEB | B58: Fairlife | E58: 4.97 | I58: 4.97 | Q58: 4.97 | AB58: Sealtest
A59: HEB | B59: HEB | D59: 3.23 | E59: 1.76 | F59: 1.38 | G59: 1 | H59: 3.23 | I59: 1.76 | J59: 1.38 | K59: 1 | L59: 3.23 | M59: 1.76 | N59: 1.38 | O59: 1 | P59: 3.23 | Q59: 1.76 | R59: 1.38 | S59: 1 | W59: 3.26 | X59: 4.88 | Y59: 4.88 | AB59: Shamrock farms
A60: HEB | B60: Hill Country Fare | D60: 2.93 | E60: 1.46 | H60: 2.93 | I60: 1.46 | L60: 2.93 | M60: 1.46 | P60: 2.93 | Q60: 1.46 | AB60: Simple Truth Organic
A61: HEB | B61: Horizon Organic | D61: 8.28 | E61: 5.96 | H61: 8.28 | I61: 5.96 | M61: 5.96 | Q61: 5.96 | W61: 5.54 | AB61: Simply Natural Creamery
A62: HEB | B62: Horizon Organic | C62: DHA and Omega-3 | E62: 6.46 | I62: 6.46 | AB62: Simply Nature
A63: HEB | B63: Horizon Organic | C63: Grassfed | E63: 5.98 | I63: 5.98 | AB63: Stooksbury Dairy Creamery
A64: HEB | B64: Horizon Organic | C64: Growing Years | E64: 6.46 | I64: 6.46 | AB64: That's Smart!
A65: HEB | B65: Kerrygold | X65: 10.48 | Y65: 10.48 | AB65: Tillamook
A66: HEB | B66: Land O Lakes | W66: 4.38 | X66: 4.96 | Y66: 4.96 | AB66: Trader Joes
A67: HEB | B67: Park Manor | D67: 2.43 | L67: 2.43 | AB67: Truly Grassfed
A68: Pub. | B68: A2 | E68: 4.99 | I68: 4.99 | AB68: Value Corner
A69: Pub. | B69: A2 | C69: Grassfed | E69: 7.09 | I69: 7.09 | AB69: Vermont Creamery
A70: Pub. | B70: Cabot | Y70: 6.99 | AB70: Vital Farms
A71: Pub. | B71: Fairlife | E71: 5.38 | I71: 5.38 | Q71: 5.38 | AB71: Wegmans
A72: Pub. | B72: Greenwise | D72: 7.59 | E72: 4.2 | I72: 4.2 | M72: 4.2 | Q72: 4.2 | AB72: Working Cows Dairy
A73: Pub. | B73: Horizon Organic | E73: 6.19 | I73: 6.19 | M73: 6.19 | Q73: 6.19 | W73: 6.29 | AB73: Zeal Creamery
A74: Pub. | B74: Horizon Organic | C74: DHA and Omega-3 | E74: 5.99 | I74: 5.99
A75: Pub. | B75: Horizon Organic | C75: Growing Years | E75: 5.99 | I75: 5.99
A76: Pub. | B76: Kerrygold | X76: 4.89 | Y76: 11.29
A77: Pub. | B77: Land O Lakes | Y77: 5.38
A78: Pub. | B78: Maple Hill Creamery | E78: 7.59 | I78: 7.59
A79: Pub. | B79: Mayfield | D79: 4.99 | E79: 4.29 | F79: 2.79 | G79: 1.69 | H79: 4.99 | I79: 4.29 | J79: 2.79 | K79: 1.69 | L79: 4.99 | M79: 4.29 | N79: 2.79 | O79: 1.69 | P79: 4.99 | Q79: 4.29 | R79: 2.79 | S79: 1.69
A80: Pub. | B80: Minerva Dairy | Y80: 3.59
A81: Pub. | B81: Organic Valley | E81: 5.65 | I81: 5.65 | W81: 7.15 | Y81: 5.99
A82: Pub. | B82: Organic Valley | C82: Grassfed | E82: 6.85 | I82: 6.85 | Q82: 6.85
A83: Pub. | B83: Plugra | Y83: 4.99
A84: Pub. | B84: President | Y84: 5.29
A85: Pub. | B85: Publix | D85: 3.75 | E85: 3.06 | F85: 2.57 | G85: 1.4 | H85: 3.75 | I85: 3.06 | J85: 2.57 | K85: 1.4 | L85: 3.75 | M85: 3.06 | N85: 2.57 | O85: 1.4 | P85: 3.75 | Q85: 3.06 | R85: 2.57 | S85: 1.4 | V85: 5.87 | W85: 3.15 | X85: 3.99 | Y85: 4.2
A86: Pub. | B86: Tillamook | Y86: 6.99
A87: Pub. | B87: Truly Grassfed | X87: 3.69 | Y87: 11.99
A88: Pub. | B88: Vital Farms | Y88: 4.99
A89: TJ | B89: Kerrygold | X89: 4.49
A90: TJ | B90: Trader Joes | D90: 4.19 | E90: 2.79 | F90: 2.29 | H90: 4.19 | I90: 2.79 | J90: 2.29 | M90: 2.79 | Q90: 2.59 | W90: 3.99 | Y90: 3.99
A91: TJ | B91: Trader Joes | C91: Cultured | Y91: 4.99
A92: TJ | B92: Trader Joes | C92: Grassfed | E92: 6.49 | I92: 6.49
A93: TJ | B93: Trader Joes | C93: Organic | D93: 6.99 | E93: 3.99 | H93: 6.99 | I93: 3.99 | L93: 6.99 | M93: 3.99 | P93: 6.99 | Q93: 3.99 | W93: 4.49 | Y93: 6.29
A94: Ald. | B94: Countryside Creamery | X94: 3.49 | Y94: 3.49
A95: Ald. | B95: Countryside Creamery | C95: Irish Butter | X95: 4.29 | Y95: 4.29
A96: Ald. | B96: Friendly Farms | D96: 3.09 | E96: 1.89 | H96: 3.09 | I96: 1.89 | L96: 3.09 | M96: 1.89 | Q96: 1.89 | V96: 5.85
A97: Ald. | B97: Simply Nature | E97: 4.29 | X97: 6.85 | Y97: 6.85
A98: Ald. | B98: Simply Nature | C98: Omega-3 | E98: 4.75
A99: Ald. | B99: Simply Nature | C99: Organic | I99: 4.29
A100: WF | B100: 365 by Whole Foods | D100: 5.89 | E100: 3.09 | H100: 5.89 | I100: 3.09 | L100: 5.89 | M100: 3.09 | P100: 5.89 | Q100: 3.09 | Y100: 4.29
A101: WF | B101: 365 by Whole Foods | C101: Organic | D101: 7.29 | E101: 4.19 | F101: 2.79 | H101: 7.29 | I101: 4.19 | J101: 2.79 | L101: 7.29 | M101: 4.19 | N101: 2.79 | P101: 7.29 | Q101: 4.19 | R101: 2.79 | W101: 4.99 | Y101: 7.49
A102: WF | B102: A2 | I102: 5.49
A103: WF | B103: A2 | C103: Grassfed | E103: 5.99
A104: WF | B104: Alexandre Family Farms | E104: 6.99 | I104: 6.99
A105: WF | B105: Banner | X105: 4.99
A106: WF | B106: Cruze Farms | D106: 7.39 | E106: 4.99 | G106: 2.49 | P106: 7.39 | Q106: 4.99 | S106: 2.49
A107: WF | B107: Horizon Organic | I107: 5.99 | W107: 5.79 | Y107: 9.99
A108: WF | B108: Horizon Organic | C108: Grassfed | E108: 6.99
A109: WF | B109: Horizon Organic | C109: Growing Years | E109: 6.49
A110: WF | B110: Isigny Ste Mere | X110: 6.99
A111: WF | B111: Ivy's Reserve | X111: 6.99
A112: WF | B112: Kerrygold | X112: 5.29 | Y112: 9.99
A113: WF | B113: Lewis Road Creamery | X113: 5.99
A114: WF | B114: Maple Hill Creamery | E114: 7.59 | I114: 7.59 | X114: 5.49
A115: WF | B115: Nancys Yogurt | X115: 6.49
A116: WF | B116: Nellie's | X116: 3.99
A117: WF | B117: Organic Valley | D117: 9.79 | E117: 6.29 | H117: 9.79 | I117: 6.29 | L117: 9.79 | M117: 6.29 | P117: 9.79 | Q117: 6.29 | W117: 6.19 | Y117: 7.74
A118: WF | B118: Organic Valley | C118: DHA and Omega-3 | E118: 6.99
A119: WF | B119: Organic Valley | C119: Grassfed | E119: 6.27 | I119: 7.29 | M119: 7.29 | W119: 6.99
A120: WF | B120: Vital Farms | X120: 4.99 | Y120: 9.49
A121: WF | B121: Working Cows Dairy | D121: 9.79
A122: WF | B122: Zeal Creamery | E122: 8.99 | X122: 6.99
A123: Weg. | B123: A2 | E123: 4.99 | I123: 4.99
A124: Weg. | B124: Fairlife | E124: 4.99 | I124: 4.99 | Q124: 4.99
A125: Weg. | B125: Family Farmstead | E125: 7.49 | F125: 4.49
A126: Weg. | B126: Horizon Organic | E126: 5.99 | I126: 5.99 | M126: 5.99 | Q126: 5.99
A127: Weg. | B127: Horizon Organic | C127: DHA and Omega-3 | E127: 6.29
A128: Weg. | B128: Horizon Organic | C128: Growing Years | E128: 6.99 | I128: 6.99
A129: Weg. | B129: Kerrygold | X129: 4.99 | Y129: 8.99
A130: Weg. | B130: Land O Lakes | Y130: 5.49
A131: Weg. | B131: Maola Local Dairies | D131: 3.89 | E131: 3.39 | F131: 2.29 | H131: 3.89 | I131: 3.39 | J131: 2.29 | L131: 3.69 | P131: 3.69
A132: Weg. | B132: Organic Valley | D132: 9.99 | E132: 5.49 | H132: 9.99 | I132: 5.49 | L132: 5.99 | M132: 5.49 | P132: 5.99 | Q132: 5.49 | W132: 5.99 | Y132: 8.99
A133: Weg. | B133: Organic Valley | C133: DHA and Omega-3 | E133: 6.29 | I133: 6.29
A134: Weg. | B134: Organic Valley | C134: Grassfed | E134: 6.99 | I134: 6.99
A135: Weg. | B135: President | X135: 4.29
A136: Weg. | B136: Shamrock farms | V136: 6.99
A137: Weg. | B137: Vermont Creamery | X137: 4.49
A138: Weg. | B138: Wegmans | D138: 2.89 | E138: 2.69 | H138: 2.89 | I138: 2.69 | L138: 2.79 | M138: 2.59 | P138: 2.79 | Q138: 2.59 | V138: 5.49 | W138: 3.49 | Y138: 3.59
A139: Weg. | B139: Wegmans | C139: Light Cream | V139: 4.49
A140: Weg. | B140: Wegmans | C140: Organic | D140: 5.99 | E140: 3.99 | H140: 5.99 | I140: 3.99 | L140: 5.99 | P140: 5.99 | Y140: 5.99
A141: 1 | B141: Chaney Dairy Barn | C141: Whole & 2% | D141: 4.99 | E141: 3.49 | G141: 1.79 | H141: 4.99 | I141: 3.49 | K141: 1.79
A142: 2 | B142: Cruze Farms | C142: Whole and Light Milks - Farm Store | D142: 7.25 | E142: 4.85 | G142: 2.25 | P142: 7.25 | Q142: 4.85 | S142: 2.25
A143: 3 | B143: Hatcher Family Dairy | D143: 6.29 | E143: 4.49 | H143: 6.29 | I143: 4.49 | K143: 1.69 | Q143: 4.49 | W143: 4.59
A144: 4 | B144: JD Country Milk | E144: 4.29 | F144: 2.69 | G144: 1.69 | I144: 4.29 | P144: 6.29 | Q144: 4.29 | V144: 9.99
A145: 5 | B145: RanLew Dairy | D145: 6.99 | G145: 1.59
A146: 6 | B146: Simply Natural Creamery | D146: 4.69 | E146: 2.99 | F146: 1.89 | G146: 1.23 | L146: 4.69 | M146: 2.99 | P146: 4.69 | Q146: 2.99 | U146: 9.75 | W146: 2.93 | Y146: 6
A147: 7 | B147: Stooksbury Dairy Creamery | D147: 5.5 | E147: 3.5 | G147: 1.5
A148: 8 | B148: Working Cows Dairy | D148: 8.5 | E148: 4.75 | H148: 8.5 | I148: 4.75 | W148: 4.25 | X148: 7.5
A149: Ing. | B149: A2 | E149: 4.98 | I149: 4.98
A150: Ing. | B150: A2 | C150: Grassfed | E150: 5.98 | I150: 5.98
A151: Ing. | B151: Country Crock | Y151: 5.98
A152: Ing. | B152: Fairlife | E152: 5.78 | I152: 5.78 | Q152: 5.78
A153: Ing. | B153: Harvest Farms | C153: Organic | D153: 6.68 | E153: 4.98 | H153: 6.68 | I153: 4.98 | L153: 6.68 | M153: 4.98 | P153: 6.68 | Q153: 4.98
A154: Ing. | B154: Homestead Creamery | F154: 4.98 | J154: 4.98
A155: Ing. | B155: Horizon Organic | E155: 7.58 | I155: 7.58 | Q155: 7.58
A156: Ing. | B156: Kerrygold | X156: 5.58
A157: Ing. | B157: Land O Lakes | V157: 8.58 | W157: 5.18 | X157: 3.28 | Y157: 5.98
A158: Ing. | B158: Laura Lynn | D158: 2.42 | E158: 2.58 | H158: 2.42 | I158: 2.58 | L158: 2.42 | M158: 2.58 | P158: 2.42 | Q158: 2.58 | Y158: 4.38
A159: Ing. | B159: Mayfield | D159: 4.99 | E159: 4.48 | H159: 4.99 | I159: 4.48 | L159: 4.99 | M159: 4.48 | P159: 4.99
A160: Ing. | B160: Organic Valley | E160: 5.98 | I160: 5.98 | Q160: 5.98 | W160: 5.98 | Y160: 8.98
A161: Ing. | B161: Organic Valley | C161: Grassfed | E161: 6.78 | I161: 6.78
A162: Ing. | B162: Organic Valley | C162: DHA and Omega-3 | E162: 6.78 | I162: 6.78
A163: Ing. | B163: Plugra | X163: 3.98
A164: Ing. | B164: Sealtest | F164: 2.48 | G164: 1.68 | J164: 2.48 | R164: 2.48
A165: Ing. | B165: Tillamook | Y165: 6.38
A166: Ing. | B166: Vital Farms | X166: 4.98
A167: FC | B167: Country Crock | Y167: 5.49
A168: FC | B168: Culinary Tours | X168: 4.99 | Y168: 8.99
A169: FC | B169: Dairy Pure | V169: 8.29 | W169: 4.69
A170: FC | B170: Fairlife | E170: 5.29 | I170: 5.29 | Q170: 5.29
A171: FC | B171: Food City, Fresh! | D171: 3.99 | E171: 2.19 | H171: 3.99 | I171: 1.99 | L171: 3.99 | M171: 1.99 | P171: 3.99 | Q171: 1.99
A172: FC | B172: Food Club | V172: 6.49 | W172: 3.59 | X172: 2.99 | Y172: 4.49
A173: FC | B173: Horizon Organic | W173: 6.79
A174: FC | B174: Kerrygold | X174: 5.99
A175: FC | B175: Land O Lakes | Y175: 5.49
A176: FC | B176: Mayfield | D176: 4.99 | E176: 3.99 | F176: 2.99 | G176: 1.89 | H176: 4.99 | I176: 3.99 | K176: 1.89 | L176: 4.99 | M176: 3.99 | Q176: 3.99
A177: FC | B177: Sealtest | F177: 1.79 | J177: 1.79
A178: FC | B178: That's Smart! | D178: 3.69 | H178: 3.49 | L178: 3.29 | P178: 3.19 | Y178: 3.99
A179: FC | B179: Tillamook | Y179: 5.99
A180: FM | B180: A2 | E180: 5.49 | I180: 5.49
A181: FM | B181: Ferndale Organic A2/A2 | E181: 7.29 | I181: 7.29
A182: FM | B182: Fresh Market | E182: 2.99 | I182: 2.99 | Q182: 2.99 | W182: 4.49 | Y182: 6.49
A183: FM | B183: Fresh Market | C183: Jersey Milk | F183: 3.99 | J183: 3.99
A184: FM | B184: Homestead Creamery | E184: 5.99 | F184: 4.99 | I184: 5.99 | J184: 4.99 | V184: 13.99
A185: FM | B185: Kerrygold | X185: 5.99 | Y185: 6.39
A186: FM | B186: Land O Lakes | Y186: 7.99
A187: FM | B187: Maple Hill Creamery | E187: 6.99 | I187: 6.99
A188: FM | B188: Organic Valley | D188: 9.99 | E188: 5.79 | F188: 3.99 | H188: 9.99 | I188: 5.79 | J188: 3.99 | M188: 5.79 | Q188: 5.79 | W188: 6.49 | Y188: 10.99
A189: FM | B189: Organic Valley | C189: DHA and Omega-3 | E189: 6.79 | I189: 6.79
A190: FM | B190: Organic Valley | C190: Grassfed | E190: 6.99 | I190: 6.99
A191: FM | B191: Plugra | X191: 4.99
A192: FM | B192: Vital Farms | X192: 4.99
A193: FM | B193: Zeal Creamery | E193: 7.99
D194: Whole Milk | H194: Reduced Fat Milk | L194: Lowfat Milk | P194: Skim Milk | T194: Cream | X194: Butter
C195: Average Price | D195: =AVERAGE(D3:D193) -> 5.491111111 | E195: 5.325363636 | F195: 3.126111111 | G195: 1.705333333 | H195: 5.224444444 | I195: 5.158571429 | J195: 2.886875 | K195: 1.564285714 | L195: 4.680344828 | M195: 3.9928125 | N195: 2.344 | O195: 1.363333333 | P195: 5.045862069 | Q195: 4.397659574 | R195: 2.366666667 | S195: 1.72 | U195: 10.06 | V195: 7.265555556 | W195: 5.048 | X195: 5.486785714 | Y195: 6.318405797
C196: Standard Deviation | D196: =_xlfn.STDEV.S(D3:D193) -> 2.203448972 | E196: 1.667747851 | F196: 1.251710072 | G196: 0.3774135032 | H196: 2.191791758 | I196: 1.595863104 | J196: 1.066100175 | K196: 0.2998809288 | L196: 1.849524037 | M196: 1.599280553 | N196: 0.5920135134 | O196: 0.3464582707 | P196: 1.884975402 | Q196: 1.556976184 | R196: 0.5324158775 | S196: 0.5564889936 | U196: 0.4384062043 | V196: 2.226749734 | W196: 1.271513225 | X196: 1.51668551 | Y196: 2.078737331
C197: Minimum | D197: =MIN(D3:D193) -> 2.33 | E197: 1.46 | F197: 1.38 | G197: 1 | H197: 2.33 | I197: 1.46 | J197: 1.38 | K197: 1 | L197: 2.33 | M197: 1.46 | N197: 1.38 | O197: 1 | P197: 2.42 | Q197: 1.46 | R197: 1.38 | S197: 1 | T197: 0 | U197: 9.75 | V197: 4.49 | W197: 2.93 | X197: 2.99 | Y197: 3.49
C198: Maximum | D198: =MEDIAN(D3:D193) -> 4.99 | E198: 5.49 | F198: 2.74 | G198: 1.69 | H198: 4.99 | I198: 5.49 | J198: 2.63 | K198: 1.69 | L198: 4.29 | M198: 3.99 | N198: 2.57 | O198: 1.4 | P198: 4.99 | Q198: 4.49 | R198: 2.525 | S198: 1.59 | U198: 10.06 | V198: 6.68 | W198: 4.69 | X198: 5.265 | Y198: 5.98
C199: Median | D199: =MAX(D3:D193) -> 9.99 | E199: 8.99 | F199: 5.69 | G199: 2.49 | H199: 9.99 | I199: 7.99 | J199: 4.99 | K199: 1.89 | L199: 9.79 | M199: 7.29 | N199: 2.79 | O199: 1.69 | P199: 9.79 | Q199: 7.58 | R199: 2.79 | S199: 2.49 | T199: 0 | U199: 10.37 | V199: 13.99 | W199: 7.15 | X199: 10.99 | Y199: 11.99
C200: Count | D200: =COUNT(D3:D193) -> 45 | E200: 110 | F200: 18 | G200: 15 | H200: 36 | I200: 91 | J200: 16 | K200: 7 | L200: 29 | M200: 32 | N200: 5 | O200: 3 | P200: 29 | Q200: 47 | R200: 6 | S200: 6 | T200: 0 | U200: 2 | V200: 18 | W200: 35 | X200: 56 | Y200: 69
... 10 more rows

Sheet NPV_own (hidden)
G1: Year 0 (investment year) | H1: Year 1 | I1: Year 2 | J1: Year 3 | K1: Year 4 | L1: Year 5 | M1: Year 6 | N1: Year 7 | O1: Year 8 | P1: Year 9 | Q1: Year 10 | R1: Year 11 | S1: Year 12 | T1: Year 13 | U1: Year 14 | V1: Year 15 | W1: Year 16 | X1: Year 17 | Y1: Year 18 | Z1: Year 19 | AA1: Year 20
A2: equipment cost | B2: ='Suggested Equipment'!B20+'Suggested Equipment'!B21 -> 220600 | F2: Change in Revenue
A3: cost to build | B3: =Inputs!B36 -> 220857 | F3: Product sold (in gallons) | H3: =B47*365.25 -> 165503.9062 | I3: =H3 -> 165503.9062 | J3: =I3 -> 165503.9062 | K3: 165503.9062 | L3: 165503.9062 | M3: 165503.9062 | N3: 165503.9062 | O3: 165503.9062 | P3: 165503.9062 | Q3: 165503.9062 | R3: 165503.9062 | S3: 165503.9062 | T3: 165503.9062 | U3: 165503.9062 | V3: 165503.9062 | W3: 165503.9062 | X3: 165503.9062 | Y3: 165503.9062 | Z3: =Y3 -> 165503.9062 | AA3: 165503.9062
F4: Product revenue ($/unit) | H4: =(SUM(D41:D44)*365.25) -> 1639654.732 | I4: =H4 -> 1639654.732 | J4: 1639654.732 | K4: 1639654.732 | L4: 1639654.732 | M4: 1639654.732 | N4: 1639654.732 | O4: 1639654.732 | P4: 1639654.732 | Q4: 1639654.732 | R4: 1639654.732 | S4: 1639654.732 | T4: 1639654.732 | U4: 1639654.732 | V4: 1639654.732 | W4: 1639654.732 | X4: 1639654.732 | Y4: 1639654.732 | Z4: 1639654.732 | AA4: 1639654.732
A5: total investment | B5: =SUM(B2:B3) -> 441457 | F5: Opportunity cost of raw product ($/cwt)
F6: Value of remaining raw product ($/cwt) | H6: =B22 -> 1363142.124 | I6: =H6 -> 1363142.124 | J6: =I6 -> 1363142.124 | K6: 1363142.124 | L6: 1363142.124 | M6: 1363142.124 | N6: 1363142.124 | O6: 1363142.124 | P6: 1363142.124 | Q6: 1363142.124 | R6: 1363142.124 | S6: 1363142.124 | T6: 1363142.124 | U6: 1363142.124 | V6: 1363142.124 | W6: 1363142.124 | X6: 1363142.124 | Y6: 1363142.124 | Z6: =Y6 -> 1363142.124 | AA6: 1363142.124
A7: Terminal value of equipment | B7: 0.1 | F7: Cost of Farmstead Milk Lost | H7: =-((H4*B38)+(D45*365.25)+(SUM(E63:E65))) -> -379015.7818 | I7: =H7 -> -379015.7818 | J7: -379015.7818 | K7: -379015.7818 | L7: -379015.7818 | M7: -379015.7818 | N7: -379015.7818 | O7: -379015.7818 | P7: -379015.7818 | Q7: -379015.7818 | R7: -379015.7818 | S7: -379015.7818 | T7: -379015.7818 | U7: -379015.7818 | V7: -379015.7818 | W7: -379015.7818 | X7: -379015.7818 | Y7: -379015.7818 | Z7: -379015.7818 | AA7: -379015.7818
A8: Terminal value of building | B8: 0.05 | F8: Total annual change in Revenue | H8: =SUM(H4:H7) -> 2623781.075 | I8: =SUM(I4:I7) -> 2623781.075 | J8: 2623781.075 | K8: 2623781.075 | L8: 2623781.075 | M8: 2623781.075 | N8: 2623781.075 | O8: 2623781.075 | P8: 2623781.075 | Q8: 2623781.075 | R8: 2623781.075 | S8: 2623781.075 | T8: 2623781.075 | U8: 2623781.075 | V8: 2623781.075 | W8: 2623781.075 | X8: 2623781.075 | Y8: 2623781.075 | Z8: 2623781.075 | AA8: 2623781.075
F9: Change in Costs
F10: Labor ($/year) | H10: =B16 -> 39755.86694 | I10: =H10 -> 39755.86694 | J10: 39755.86694 | K10: 39755.86694 | L10: 39755.86694 | M10: 39755.86694 | N10: 39755.86694 | O10: 39755.86694 | P10: 39755.86694 | Q10: 39755.86694 | R10: 39755.86694 | S10: 39755.86694 | T10: 39755.86694 | U10: 39755.86694 | V10: 39755.86694 | W10: 39755.86694 | X10: 39755.86694 | Y10: =X10 -> 39755.86694 | Z10: 39755.86694 | AA10: 39755.86694
F11: Utilities (electric, water, sewage, gas) | H11: =B14 -> 40438 | I11: 40438 | J11: 40438 | K11: 40438 | L11: 40438 | M11: 40438 | N11: 40438 | O11: 40438 | P11: 40438 | Q11: 40438 | R11: 40438 | S11: 40438 | T11: 40438 | U11: 40438 | V11: 40438 | W11: 40438 | X11: 40438 | Y11: 40438 | Z11: 40438 | AA11: 40438
C12: Total cwt | D12: =Equipment!D11/100 -> 73350.30801 | F12: Supplies ((trash, packaging, cleaning, processing, other) | H12: =B15 -> 61899 | I12: 61899 | J12: 61899 | K12: 61899 | L12: 61899 | M12: 61899 | N12: 61899 | O12: 61899 | P12: 61899 | Q12: 61899 | R12: 61899 | S12: 61899 | T12: 61899 | U12: 61899 | V12: 61899 | W12: 61899 | X12: 61899 | Y12: 61899 | Z12: 61899 | AA12: 61899
C13: cwt processed | D13: =Equipment!B11/100 -> 14670.0616 | F13: Farm Cost (per CWT) | H13: =D12*B25 -> 1883635.91 | I13: =H13 -> 1883635.91 | J13: 1883635.91 | K13: 1883635.91 | L13: 1883635.91 | M13: 1883635.91 | N13: 1883635.91 | O13: 1883635.91 | P13: 1883635.91 | Q13: 1883635.91 | R13: 1883635.91 | S13: 1883635.91 | T13: 1883635.91 | U13: 1883635.91 | V13: 1883635.91 | W13: 1883635.91 | X13: 1883635.91 | Y13: 1883635.91 | Z13: 1883635.91 | AA13: 1883635.91
A14: Utilities | B14: =Inputs!B37 -> 40438 | C14: cwt conventional | D14: =D12-D13 -> 58680.24641 | F14: Annual Debt Repayment | H14: 0 | I14: =H14 -> 0 | J14: 0 | K14: 0 | L14: 0 | M14: 0 | N14: 0 | O14: 0 | P14: 0 | Q14: 0 | R14: 0 | S14: 0 | T14: 0 | U14: 0 | V14: 0 | W14: 0 | X14: 0 | Y14: 0 | Z14: 0 | AA14: 0
A15: Others Costs of Production | B15: =Inputs!B38 -> 61899 | F15: Total annual increase in costs | H15: =SUM(H10:H14) -> 2025728.777 | I15: =SUM(I10:I14) -> 2025728.777 | J15: 2025728.777 | K15: 2025728.777 | L15: 2025728.777 | M15: 2025728.777 | N15: 2025728.777 | O15: 2025728.777 | P15: 2025728.777 | Q15: 2025728.777 | R15: 2025728.777 | S15: 2025728.777 | T15: 2025728.777 | U15: 2025728.777 | V15: 2025728.777 | W15: 2025728.777 | X15: 2025728.777 | Y15: 2025728.777 | Z15: 2025728.777 | AA15: 2025728.777
A16: labor cost | B16: =(Inputs!B35)*D13 -> 39755.86694 | F16: Revenue from raw milk | H16: =$B$21 -> 1703927.655 | I16: =$B$21 -> 1703927.655 | J16: 1703927.655 | K16: 1703927.655 | L16: 1703927.655 | M16: 1703927.655 | N16: 1703927.655 | O16: 1703927.655 | P16: 1703927.655 | Q16: 1703927.655 | R16: 1703927.655 | S16: 1703927.655 | T16: 1703927.655 | U16: 1703927.655 | V16: 1703927.655 | W16: 1703927.655 | X16: 1703927.655 | Y16: 1703927.655 | Z16: 1703927.655 | AA16: 1703927.655
F17: cost of producing raw milk | H17: =H13 -> 1883635.91 | I17: =I13 -> 1883635.91 | J17: 1883635.91 | K17: 1883635.91 | L17: 1883635.91 | M17: 1883635.91 | N17: 1883635.91 | O17: 1883635.91 | P17: 1883635.91 | Q17: 1883635.91 | R17: 1883635.91 | S17: 1883635.91 | T17: 1883635.91 | U17: 1883635.91 | V17: 1883635.91 | W17: 1883635.91 | X17: 1883635.91 | Y17: 1883635.91 | Z17: 1883635.91 | AA17: 1883635.91
A18: yearly cost added | B18: =SUM(B15:B16) -> 101654.8669 | F18: Opportunity cost of raw product ($/cwt) | H18: =IF(H16-H17>0,H16-H17,0) -> 0 | I18: =IF(I16-I17>0,I16-I17,0) -> 0 | J18: 0 | K18: 0 | L18: 0 | M18: 0 | N18: 0 | O18: 0 | P18: 0 | Q18: 0 | R18: 0 | S18: 0 | T18: 0 | U18: 0 | V18: 0 | W18: 0 | X18: 0 | Y18: 0 | Z18: 0 | AA18: 0
F19: Gross Annual Increase in Income | H19: =H8 -> 2623781.075 | I19: 2623781.075 | J19: 2623781.075 | K19: 2623781.075 | L19: 2623781.075 | M19: 2623781.075 | N19: 2623781.075 | O19: 2623781.075 | P19: 2623781.075 | Q19: 2623781.075 | R19: 2623781.075 | S19: 2623781.075 | T19: 2623781.075 | U19: 2623781.075 | V19: 2623781.075 | W19: 2623781.075 | X19: 2623781.075 | Y19: 2623781.075 | Z19: 2623781.075 | AA19: 2623781.075
A20: Value of product sold (bottled milk in gallons) | B20: =IF(Inputs!B45="",3.43,Inputs!B45) -> 1.64 | F20: Net Annual Increase in Income | H20: =H19-H15-H18 -> 598052.2981 | I20: =I19-I15-I18 -> 598052.2981 | J20: 598052.2981 | K20: 598052.2981 | L20: 598052.2981 | M20: 598052.2981 | N20: 598052.2981 | O20: 598052.2981 | P20: 598052.2981 | Q20: 598052.2981 | R20: 598052.2981 | S20: 598052.2981 | T20: 598052.2981 | U20: 598052.2981 | V20: 598052.2981 | W20: 598052.2981 | X20: 598052.2981 | Y20: 598052.2981 | Z20: 598052.2981 | AA20: 598052.2981
A21: Starting value of all raw product (milk price) | B21: =D12*B24 -> 1703927.655 | F21: Terminal Value | G21: =(B2*B7)+(B3*B8) -> 33102.85
A22: Remaining value of raw fluid product (milk price) | B22: =(D12-D13)*B24 -> 1363142.124 | F22: Total Cash Inflow | H22: =H19 -> 2623781.075 | I22: =I19 -> 2623781.075 | J22: =J19 -> 2623781.075 | K22: 2623781.075 | L22: 2623781.075 | M22: 2623781.075 | N22: 2623781.075 | O22: 2623781.075 | P22: 2623781.075 | Q22: 2623781.075 | R22: 2623781.075 | S22: 2623781.075 | T22: 2623781.075 | U22: 2623781.075 | V22: 2623781.075 | W22: 2623781.075 | X22: 2623781.075 | Y22: 2623781.075 | Z22: 2623781.075 | AA22: 2623781.075
A23: Discount rate | B23: =B28+0.04 -> 0.125 | F23: Total Cash Outflow | G23: =IF(ISERROR(B32),(B5),B32+B33) -> 441457 | H23: =H15 -> 2025728.777 | I23: 2025728.777 | J23: 2025728.777 | K23: 2025728.777 | L23: 2025728.777 | M23: 2025728.777 | N23: 2025728.777 | O23: 2025728.777 | P23: 2025728.777 | Q23: 2025728.777 | R23: 2025728.777 | S23: 2025728.777 | T23: 2025728.777 | U23: 2025728.777 | V23: 2025728.777 | W23: 2025728.777 | X23: 2025728.777 | Y23: 2025728.777 | Z23: 2025728.777 | AA23: 2025728.777
A24: Milk price (avg for tn based on dairy gauge) | B24: =Inputs!B41 -> 23.23 | F24: Net Cash Flow | G24: =-G23 -> -441457 | H24: =H22-H23 -> 598052.2981 | I24: =I22-I23 -> 598052.2981 | J24: =J22-J23 -> 598052.2981 | K24: 598052.2981 | L24: 598052.2981 | M24: 598052.2981 | N24: 598052.2981 | O24: 598052.2981 | P24: 598052.2981 | Q24: 598052.2981 | R24: 598052.2981 | S24: 598052.2981 | T24: 598052.2981 | U24: 598052.2981 | V24: 598052.2981 | W24: 598052.2981 | X24: 598052.2981 | Y24: 598052.2981 | Z24: 598052.2981 | AA24: 598052.2981
A25: Cost to Produce Raw Milk | B25: =Inputs!B39 -> 25.68 | F25: Present Value | G25: =G24 -> -441457 | H25: =H24/(1+($B$23))^1 -> 531602.0428 | I25: =I24/(1+($B$23))^2 -> 472535.1491 | J25: =J24/(1+($B$23))^3 -> 420031.2437 | K25: =K24/(1+($B$23))^4 -> 373361.1055 | L25: =L24/(1+($B$23))^5 -> 331876.5382 | M25: =M24/(1+($B$23))^6 -> 295001.3673 | N25: =N24/(1+($B$23))^7 -> 262223.4376 | O25: =O24/(1+($B$23))^8 -> 233087.5001 | P25: =P24/(1+($B$23))^9 -> 207188.889 | Q25: =Q24/(1+($B$23))^10 -> 184167.9013 | R25: =R24/(1+($B$23))^11 -> 163704.8012 | S25: =S24/(1+($B$23))^12 -> 145515.3788 | T25: =T24/(1+($B$23))^13 -> 129347.0034 | U25: =U24/(1+($B$23))^14 -> 114975.1141 | V25: =V24/(1+($B$23))^15 -> 102200.1014 | W25: =W24/(1+($B$23))^16 -> 90844.53461 | X25: =X24/(1+($B$23))^17 -> 80750.69743 | Y25: =Y24/(1+($B$23))^18 -> 71778.39772 | Z25: =Z24/(1+($B$23))^19 -> 63803.02019 | AA25: =AA24/(1+($B$23))^20 -> 56713.79573
A27: Debt Variables | D27: IRR | E27: =IFERROR(IRR(G24:AA24),"No Positive Values") -> 1.354723736 | F27: Investment Length | G27: =Inputs!B11 -> 20
A28: Interest Rate | B28: =Inputs!B82 -> 0.085 | F28: Net Present Value | G28: =IF(G27=1,SUM(G25:H25),IF(G27=2,SUM(G25:I25),IF(G27=3,SUM(G25:J25),IF(G27=4,SUM(G25:K25),IF(G27=5,SUM(G25:L25),IF(G27=6,SUM(G25:M25),H28)))))) -> 3889251.019 | H28: =IF(G27=7,SUM(G25:N25),IF(G27=8,SUM(G25:O25),IF(G27=9,SUM(G25:P25),IF(G27=10,SUM(G25:Q25),IF(G27=11,SUM(G25:R25),IF(G27=12,SUM(G25:S25),I28)))))) -> 3889251.019 | I28: =IF(G27=13,SUM(G25:T25),IF(G27=14,SUM(G25:U25),IF(G27=15,SUM(G25:V25),IF(G27=16,SUM(G25:W25),IF(G27=17,SUM(G25:X25),J28))))) -> 3889251.019 | J28: =IF(G27=18,SUM(G25:Y25),IF(G27=19,SUM(G25:Z25),IF(G27=20,SUM(G25:AA25)))) -> 3889251.019
A29: Duration of Loan in Years | B29: =Inputs!B83 -> 20
A30: Amount Financed in % | B30: =Inputs!B85 -> 0.8 | F30: Years to Break Even | G30: =IF(ISERROR(F59),"n/a",IF(F59>1,(F57+(F58/F59)),21)) -> 0.8304275839
A31: Down Payment Percent | B31: =Inputs!B84 -> 0.2
A32: Down Payment Amount | B32: =(B2+B3)*B31 -> 88291.4
A33: Actual Amount Financed | B33: =(B2+B3)-B32 -> 353165.6 | E33: Cash Flow
A34: Monthly Payment | B34: =-PMT(B28,B29,B33,) -> 37319.35306 | E34: Year | F34: Cash Flow | G34: Cumulative Cash Flow | H34: Absolute Value of Cumulative Cash Flow
A35: Total Interest | B35: =B36-B33 -> 393221.4612 | E35: 0 | F35: =G25 -> -441457 | G35: =SUM(F35) -> -441457 | H35: =ABS(G35) -> 441457
A36: Total Amount Payed | B36: =B34*B29 -> 746387.0612 | E36: 1 | F36: =H25 -> 531602.0428 | G36: =SUM(F35:F36) -> 90145.04278 | H36: =ABS(G36) -> 90145.04278
E37: 2 | F37: =I25 -> 472535.1491 | G37: =SUM(F35:F37) -> 562680.1919 | H37: =ABS(G37) -> 562680.1919
A38: Percent Lost in Production | B38: 0.123089 | E38: 3 | F38: =J25 -> 420031.2437 | G38: =SUM(F35:F38) -> 982711.4356 | H38: 982711.4356
E39: 4 | F39: =K25 -> 373361.1055 | G39: =SUM(F35:F39) -> 1356072.541 | H39: 1356072.541
A40: Value of Milk Sizes | B40: Qty | C40: Price | D40: Total Daily Revenue | E40: 5 | F40: =L25 -> 331876.5382 | G40: =SUM(F35:F40) -> 1687949.079 | H40: 1687949.079
A41: Gallons | B41: =Outputs!B17 -> 113 | C41: =Inputs!B42 -> 5.16 | D41: =C41*B41 -> 583.08 | E41: 6 | F41: =M25 -> 295001.3673 | G41: =SUM(F35:F41) -> 1982950.447 | H41: 1982950.447
A42: Half Gallons | B42: =Outputs!B18 -> 226 | C42: =Inputs!B43 -> 4.96 | D42: =C42*B42 -> 1120.96 | E42: 7 | F42: =N25 -> 262223.4376 | G42: =SUM(F35:F42) -> 2245173.884 | H42: 2245173.884
A43: Quarts | B43: =Outputs!B19 -> 453 | C43: =Inputs!B44 -> 2.85 | D43: 1291.05 | E43: 8 | F43: =O25 -> 233087.5001 | G43: =SUM(F35:F43) -> 2478261.384 | H43: 2478261.384
A44: Pints | B44: =Outputs!B20+Outputs!B21 -> 911 | C44: =Inputs!B45 -> 1.64 | D44: 1494.04 | E44: 9 | F44: =P25 -> 207188.889 | G44: =SUM(F35:F44) -> 2685450.273 | H44: 2685450.273
A45: Leftover Milk | B45: ='Standardized Milk'!E32 -> 0.6651312644 | C45: =C41 -> 5.16 | D45: =C45*B45 -> 3.432077324 | E45: 10 | F45: =Q25 -> 184167.9013 | G45: =SUM(F35:F45) -> 2869618.175 | H45: 2869618.175
A46: Total Gallons | B46: =B41+(B42*0.5)+(B43*0.25)+(B44*0.125)+(B45*0.125) -> 453.2081414 | E46: 11 | F46: =R25 -> 163704.8012 | G46: =SUM(F35:F46) -> 3033322.976 | H46: 3033322.976
A47: Total gallons minus leftover | B47: =B46-B45*0.125 -> 453.125 | E47: 12 | F47: =S25 -> 145515.3788 | G47: =SUM(F35:F47) -> 3178838.355 | H47: 3178838.355 | M47: =H3/2 -> 82751.95312
E48: 13 | F48: =T25 -> 129347.0034 | G48: =SUM(F35:F48) -> 3308185.358 | H48: 3308185.358
E49: 14 | F49: =U25 -> 114975.1141 | G49: =SUM(F35:F49) -> 3423160.472 | H49: 3423160.472
E50: 15 | F50: =V25 -> 102200.1014 | G50: =SUM(F35:F50) -> 3525360.573 | H50: 3525360.573
E51: 16 | F51: =W25 -> 90844.53461 | G51: =SUM(F35:F51) -> 3616205.108 | H51: 3616205.108
E52: 17 | F52: =X25 -> 80750.69743 | G52: =SUM(F35:F52) -> 3696955.806 | H52: 3696955.806
E53: 18 | F53: =Y25 -> 71778.39772 | G53: =SUM(F35:F53) -> 3768734.203 | H53: 3768734.203
E54: 19 | F54: =Z25 -> 63803.02019 | G54: =SUM(F35:F54) -> 3832537.223 | H54: 3832537.223
E55: 20 | F55: =AA25 -> 56713.79573 | G55: =SUM(F35:F55) -> 3889251.019 | H55: 3889251.019
E57: A(last negative period) | F57: =IF(G55<0,E55,IF(G54<0,E54,IF(G53<0,E53,IF(G52<0,E52,IF(G51<0,E51,IF(G50<0,E50,IF(G49<0,E49,G57))))))) -> 0 | G57: =IF(G48<0,E48,IF(G47<0,E47,IF(G46<0,E46,IF(G45<0,E45,IF(G44<0,E44,IF(G43<0,E43,IF(G42<0,E42,H57))))))) -> 0 | H57: =IF(G41<0,E41,IF(G40<0,E40,IF(G39<0,E39,IF(G38<0,E38,IF(G37<0,E37,IF(G36<0,E36,IF(G35<0,E35,))))))) -> 0
E58: B(absolute value cumulative value period based on A) | F58: =IF(F57=0,H35,IF(F57=1,H36,IF(F57=2,H37,IF(F57=3,H38,IF(F57=4,H39,IF(F57=5,H40,IF(F57=6,H41,G58))))))) -> 441457 | G58: =IF(F57=7,H42,IF(F57=8,H43,IF(F57=9,H44,IF(F57=10,H45,IF(F57=11,H46,IF(F57=12,H47,IF(F57=13,H48,H58))))))) -> FALSE | H58: =IF(F57=14,H49,IF(F57=15,H50,IF(F57=16,H51,IF(F57=17,H52,IF(F58=18,H53,IF(F58=19,H54,IF(F58=20,H55))))))) -> FALSE
E59: C(actual cash flow period after A) | F59: =IF(F57=0,F36,IF(F57=1,F37,IF(F57=2,F38,IF(F57=3,F39,IF(F57=4,F40,IF(F57=5,F41,IF(F57=6,F42,G59))))))) -> 531602.0428 | G59: =IF(F57=7,F43,IF(F57=8,F44,IF(F57=9,F45,IF(F57=10,F46,IF(F57=11,F47,IF(F57=12,F48,IF(F57=13,F49,H59))))))) -> FALSE | H59: =IF(F57=14,F50,IF(F57=15,F51,IF(F57=16,F52,IF(F57=17,F53,IF(F57=18,F54,IF(F57=19,F55,IF(F57=20,F56))))))) -> FALSE
A62: Extra income from Cream per day | B62: Qty | C62: Price | D62: Total Daily Revenue | E62: Yearly
A63: Quarts | B63: ='Standardized Milk'!C35 -> 27 | C63: ='Milk Pricing'!J204 -> 7.265555556 | D63: =C63*B63 -> 196.17 | E63: =D63*365.25 -> 71651.0925
A64: Pints | B64: =Outputs!C20+Outputs!C21 -> 56 | C64: ='Milk Pricing'!K204 -> 5.048 | D64: =C64*B64 -> 282.688 | E64: =D64*365.25 -> 103251.792
A65: Lost Income from Unused Product too smal to bottle: | B65: ='Standardized Milk'!E40 -> 0.5618178829 | C65: =C64 -> 5.048 | D65: =B65*C65 -> 2.836056673 | E65: 1035.8697

Sheet NPV_eff (hidden)
G1: Year 0 (investment year) | H1: Year 1 | I1: Year 2 | J1: Year 3 | K1: Year 4 | L1: Year 5 | M1: Year 6 | N1: Year 7 | O1: Year 8 | P1: Year 9 | Q1: Year 10 | R1: Year 11 | S1: Year 12 | T1: Year 13 | U1: Year 14 | V1: Year 15 | W1: Year 16 | X1: Year 17 | Y1: Year 18 | Z1: Year 19 | AA1: Year 20
A2: equipment cost | B2: ='Suggested Equipment'!B32+'Suggested Equipment'!B33 -> 1122740 | F2: Change in Revenue
A3: cost to build | B3: =Inputs!B36 -> 220857 | F3: Product sold (in gallons) | H3: =B47*365.25 -> 165503.9062 | I3: =H3 -> 165503.9062 | J3: =I3 -> 165503.9062 | K3: 165503.9062 | L3: 165503.9062 | M3: 165503.9062 | N3: 165503.9062 | O3: 165503.9062 | P3: 165503.9062 | Q3: 165503.9062 | R3: 165503.9062 | S3: 165503.9062 | T3: 165503.9062 | U3: 165503.9062 | V3: 165503.9062 | W3: 165503.9062 | X3: 165503.9062 | Y3: 165503.9062 | Z3: =Y3 -> 165503.9062 | AA3: 165503.9062
F4: Product revenue ($/unit) | H4: =(SUM(D41:D44)*365.25) -> 1639654.732 | I4: =H4 -> 1639654.732 | J4: 1639654.732 | K4: 1639654.732 | L4: 1639654.732 | M4: 1639654.732 | N4: 1639654.732 | O4: 1639654.732 | P4: 1639654.732 | Q4: 1639654.732 | R4: 1639654.732 | S4: 1639654.732 | T4: 1639654.732 | U4: 1639654.732 | V4: 1639654.732 | W4: 1639654.732 | X4: 1639654.732 | Y4: 1639654.732 | Z4: 1639654.732 | AA4: 1639654.732
A5: total investment | B5: =SUM(B2:B3) -> 1343597 | F5: Opportunity cost of raw product ($/cwt)
F6: Value of remaining raw product ($/cwt) | H6: =B22 -> 1363142.124 | I6: =H6 -> 1363142.124 | J6: =I6 -> 1363142.124 | K6: 1363142.124 | L6: 1363142.124 | M6: 1363142.124 | N6: 1363142.124 | O6: 1363142.124 | P6: 1363142.124 | Q6: 1363142.124 | R6: 1363142.124 | S6: 1363142.124 | T6: 1363142.124 | U6: 1363142.124 | V6: 1363142.124 | W6: 1363142.124 | X6: 1363142.124 | Y6: 1363142.124 | Z6: =Y6 -> 1363142.124 | AA6: 1363142.124
A7: Terminal value of equipment | B7: 0.1 | F7: Cost of Farmstead Milk Lost | H7: =-((H4*B38)+(D45*365.25)+(SUM(E63:E65))) -> -379015.7818 | I7: =H7 -> -379015.7818 | J7: -379015.7818 | K7: -379015.7818 | L7: -379015.7818 | M7: -379015.7818 | N7: -379015.7818 | O7: -379015.7818 | P7: -379015.7818 | Q7: -379015.7818 | R7: -379015.7818 | S7: -379015.7818 | T7: -379015.7818 | U7: -379015.7818 | V7: -379015.7818 | W7: -379015.7818 | X7: -379015.7818 | Y7: -379015.7818 | Z7: -379015.7818 | AA7: -379015.7818
A8: Terminal value of building | B8: 0.05 | F8: Total annual change in Revenue | H8: =SUM(H4:H7) -> 2623781.075 | I8: =SUM(I4:I7) -> 2623781.075 | J8: 2623781.075 | K8: 2623781.075 | L8: 2623781.075 | M8: 2623781.075 | N8: 2623781.075 | O8: 2623781.075 | P8: 2623781.075 | Q8: 2623781.075 | R8: 2623781.075 | S8: 2623781.075 | T8: 2623781.075 | U8: 2623781.075 | V8: 2623781.075 | W8: 2623781.075 | X8: 2623781.075 | Y8: 2623781.075 | Z8: 2623781.075 | AA8: 2623781.075
F9: Change in Costs
F10: Labor ($/year) | H10: =B16 -> 39755.86694 | I10: =H10 -> 39755.86694 | J10: 39755.86694 | K10: 39755.86694 | L10: 39755.86694 | M10: 39755.86694 | N10: 39755.86694 | O10: 39755.86694 | P10: 39755.86694 | Q10: 39755.86694 | R10: 39755.86694 | S10: 39755.86694 | T10: 39755.86694 | U10: 39755.86694 | V10: 39755.86694 | W10: 39755.86694 | X10: 39755.86694 | Y10: =X10 -> 39755.86694 | Z10: 39755.86694 | AA10: 39755.86694
F11: Utilities (electric, water, sewage, gas) | H11: =B14 -> 40438 | I11: 40438 | J11: 40438 | K11: 40438 | L11: 40438 | M11: 40438 | N11: 40438 | O11: 40438 | P11: 40438 | Q11: 40438 | R11: 40438 | S11: 40438 | T11: 40438 | U11: 40438 | V11: 40438 | W11: 40438 | X11: 40438 | Y11: 40438 | Z11: 40438 | AA11: 40438
C12: Total cwt | D12: =Equipment!D11/100 -> 73350.30801 | F12: Supplies ((trash, packaging, cleaning, processing, other) | H12: =B15 -> 61899 | I12: 61899 | J12: 61899 | K12: 61899 | L12: 61899 | M12: 61899 | N12: 61899 | O12: 61899 | P12: 61899 | Q12: 61899 | R12: 61899 | S12: 61899 | T12: 61899 | U12: 61899 | V12: 61899 | W12: 61899 | X12: 61899 | Y12: 61899 | Z12: 61899 | AA12: 61899
C13: cwt processed | D13: =Equipment!B11/100 -> 14670.0616 | F13: Farm Cost (per CWT) | H13: =D12*B25 -> 1883635.91 | I13: =H13 -> 1883635.91 | J13: 1883635.91 | K13: 1883635.91 | L13: 1883635.91 | M13: 1883635.91 | N13: 1883635.91 | O13: 1883635.91 | P13: 1883635.91 | Q13: 1883635.91 | R13: 1883635.91 | S13: 1883635.91 | T13: 1883635.91 | U13: 1883635.91 | V13: 1883635.91 | W13: 1883635.91 | X13: 1883635.91 | Y13: 1883635.91 | Z13: 1883635.91 | AA13: 1883635.91
A14: Utilities | B14: =Inputs!B37 -> 40438 | C14: cwt conventional | D14: =D12-D13 -> 58680.24641 | F14: Annual Debt Repayment | H14: 0 | I14: =H14 -> 0 | J14: 0 | K14: 0 | L14: 0 | M14: 0 | N14: 0 | O14: 0 | P14: 0 | Q14: 0 | R14: 0 | S14: 0 | T14: 0 | U14: 0 | V14: 0 | W14: 0 | X14: 0 | Y14: 0 | Z14: 0 | AA14: 0
A15: Others Costs of Production | B15: =Inputs!B38 -> 61899 | F15: Total annual increase in costs | H15: =SUM(H10:H14) -> 2025728.777 | I15: =SUM(I10:I14) -> 2025728.777 | J15: 2025728.777 | K15: 2025728.777 | L15: 2025728.777 | M15: 2025728.777 | N15: 2025728.777 | O15: 2025728.777 | P15: 2025728.777 | Q15: 2025728.777 | R15: 2025728.777 | S15: 2025728.777 | T15: 2025728.777 | U15: 2025728.777 | V15: 2025728.777 | W15: 2025728.777 | X15: 2025728.777 | Y15: 2025728.777 | Z15: 2025728.777 | AA15: 2025728.777
A16: labor cost | B16: =(Inputs!B35)*D13 -> 39755.86694 | F16: Revenue from raw milk | H16: =$B$21 -> 1703927.655 | I16: =$B$21 -> 1703927.655 | J16: 1703927.655 | K16: 1703927.655 | L16: 1703927.655 | M16: 1703927.655 | N16: 1703927.655 | O16: 1703927.655 | P16: 1703927.655 | Q16: 1703927.655 | R16: 1703927.655 | S16: 1703927.655 | T16: 1703927.655 | U16: 1703927.655 | V16: 1703927.655 | W16: 1703927.655 | X16: 1703927.655 | Y16: 1703927.655 | Z16: 1703927.655 | AA16: 1703927.655
F17: cost of producing raw milk | H17: =H13 -> 1883635.91 | I17: =I13 -> 1883635.91 | J17: 1883635.91 | K17: 1883635.91 | L17: 1883635.91 | M17: 1883635.91 | N17: 1883635.91 | O17: 1883635.91 | P17: 1883635.91 | Q17: 1883635.91 | R17: 1883635.91 | S17: 1883635.91 | T17: 1883635.91 | U17: 1883635.91 | V17: 1883635.91 | W17: 1883635.91 | X17: 1883635.91 | Y17: 1883635.91 | Z17: 1883635.91 | AA17: 1883635.91
A18: yearly cost added | B18: =SUM(B15:B16) -> 101654.8669 | F18: Opportunity cost of raw product ($/cwt) | H18: =IF(H16-H17>0,H16-H17,0) -> 0 | I18: =IF(I16-I17>0,I16-I17,0) -> 0 | J18: 0 | K18: 0 | L18: 0 | M18: 0 | N18: 0 | O18: 0 | P18: 0 | Q18: 0 | R18: 0 | S18: 0 | T18: 0 | U18: 0 | V18: 0 | W18: 0 | X18: 0 | Y18: 0 | Z18: 0 | AA18: 0
F19: Gross Annual Increase in Income | H19: =H8 -> 2623781.075 | I19: 2623781.075 | J19: 2623781.075 | K19: 2623781.075 | L19: 2623781.075 | M19: 2623781.075 | N19: 2623781.075 | O19: 2623781.075 | P19: 2623781.075 | Q19: 2623781.075 | R19: 2623781.075 | S19: 2623781.075 | T19: 2623781.075 | U19: 2623781.075 | V19: 2623781.075 | W19: 2623781.075 | X19: 2623781.075 | Y19: 2623781.075 | Z19: 2623781.075 | AA19: 2623781.075
A20: Value of product sold (bottled milk in gallons) | B20: =IF(Inputs!B45="",3.43,Inputs!B45) -> 1.64 | F20: Net Annual Increase in Income | H20: =H19-H15-H18 -> 598052.2981 | I20: =I19-I15-I18 -> 598052.2981 | J20: 598052.2981 | K20: 598052.2981 | L20: 598052.2981 | M20: 598052.2981 | N20: 598052.2981 | O20: 598052.2981 | P20: 598052.2981 | Q20: 598052.2981 | R20: 598052.2981 | S20: 598052.2981 | T20: 598052.2981 | U20: 598052.2981 | V20: 598052.2981 | W20: 598052.2981 | X20: 598052.2981 | Y20: 598052.2981 | Z20: 598052.2981 | AA20: 598052.2981
A21: Starting value of all raw product (milk price) | B21: =D12*B24 -> 1703927.655 | F21: Terminal Value | G21: =(B2*B7)+(B3*B8) -> 123316.85
A22: Remaining value of raw fluid product (milk price) | B22: =(D12-D13)*B24 -> 1363142.124 | F22: Total Cash Inflow | H22: =H19 -> 2623781.075 | I22: =I19 -> 2623781.075 | J22: =J19 -> 2623781.075 | K22: 2623781.075 | L22: 2623781.075 | M22: 2623781.075 | N22: 2623781.075 | O22: 2623781.075 | P22: 2623781.075 | Q22: 2623781.075 | R22: 2623781.075 | S22: 2623781.075 | T22: 2623781.075 | U22: 2623781.075 | V22: 2623781.075 | W22: 2623781.075 | X22: 2623781.075 | Y22: 2623781.075 | Z22: 2623781.075 | AA22: 2623781.075
A23: Discount rate | B23: =B28+0.04 -> 0.125 | F23: Total Cash Outflow | G23: =IF(ISERROR(B32),(B5),B32+B33) -> 1343597 | H23: =H15 -> 2025728.777 | I23: 2025728.777 | J23: 2025728.777 | K23: 2025728.777 | L23: 2025728.777 | M23: 2025728.777 | N23: 2025728.777 | O23: 2025728.777 | P23: 2025728.777 | Q23: 2025728.777 | R23: 2025728.777 | S23: 2025728.777 | T23: 2025728.777 | U23: 2025728.777 | V23: 2025728.777 | W23: 2025728.777 | X23: 2025728.777 | Y23: 2025728.777 | Z23: 2025728.777 | AA23: 2025728.777
A24: Milk price (avg for tn based on dairy gauge) | B24: =Inputs!B41 -> 23.23 | F24: Net Cash Flow | G24: =-G23 -> -1343597 | H24: =H22-H23 -> 598052.2981 | I24: =I22-I23 -> 598052.2981 | J24: =J22-J23 -> 598052.2981 | K24: 598052.2981 | L24: 598052.2981 | M24: 598052.2981 | N24: 598052.2981 | O24: 598052.2981 | P24: 598052.2981 | Q24: 598052.2981 | R24: 598052.2981 | S24: 598052.2981 | T24: 598052.2981 | U24: 598052.2981 | V24: 598052.2981 | W24: 598052.2981 | X24: 598052.2981 | Y24: 598052.2981 | Z24: 598052.2981 | AA24: 598052.2981
A25: Cost to Produce Raw Milk | B25: =Inputs!B39 -> 25.68 | F25: Present Value | G25: =G24 -> -1343597 | H25: =H24/(1+($B$23))^1 -> 531602.0428 | I25: =I24/(1+($B$23))^2 -> 472535.1491 | J25: =J24/(1+($B$23))^3 -> 420031.2437 | K25: =K24/(1+($B$23))^4 -> 373361.1055 | L25: =L24/(1+($B$23))^5 -> 331876.5382 | M25: =M24/(1+($B$23))^6 -> 295001.3673 | N25: =N24/(1+($B$23))^7 -> 262223.4376 | O25: =O24/(1+($B$23))^8 -> 233087.5001 | P25: =P24/(1+($B$23))^9 -> 207188.889 | Q25: =Q24/(1+($B$23))^10 -> 184167.9013 | R25: =R24/(1+($B$23))^11 -> 163704.8012 | S25: =S24/(1+($B$23))^12 -> 145515.3788 | T25: =T24/(1+($B$23))^13 -> 129347.0034 | U25: =U24/(1+($B$23))^14 -> 114975.1141 | V25: =V24/(1+($B$23))^15 -> 102200.1014 | W25: =W24/(1+($B$23))^16 -> 90844.53461 | X25: =X24/(1+($B$23))^17 -> 80750.69743 | Y25: =Y24/(1+($B$23))^18 -> 71778.39772 | Z25: =Z24/(1+($B$23))^19 -> 63803.02019 | AA25: =AA24/(1+($B$23))^20 -> 56713.79573
A27: Debt Variables | D27: IRR | E27: =IFERROR(IRR(G24:AA24),"No Positive Values") -> 0.4448296273 | F27: Investment Length | G27: =Inputs!B11 -> 20
A28: Interest Rate | B28: =Inputs!B82 -> 0.085 | F28: Net Present Value | G28: =IF(G27=1,SUM(G25:H25),IF(G27=2,SUM(G25:I25),IF(G27=3,SUM(G25:J25),IF(G27=4,SUM(G25:K25),IF(G27=5,SUM(G25:L25),IF(G27=6,SUM(G25:M25),H28)))))) -> 2987111.019 | H28: =IF(G27=7,SUM(G25:N25),IF(G27=8,SUM(G25:O25),IF(G27=9,SUM(G25:P25),IF(G27=10,SUM(G25:Q25),IF(G27=11,SUM(G25:R25),IF(G27=12,SUM(G25:S25),I28)))))) -> 2987111.019 | I28: =IF(G27=13,SUM(G25:T25),IF(G27=14,SUM(G25:U25),IF(G27=15,SUM(G25:V25),IF(G27=16,SUM(G25:W25),IF(G27=17,SUM(G25:X25),J28))))) -> 2987111.019 | J28: =IF(G27=18,SUM(G25:Y25),IF(G27=19,SUM(G25:Z25),IF(G27=20,SUM(G25:AA25)))) -> 2987111.019
A29: Duration of Loan in Years | B29: =Inputs!B83 -> 20
A30: Amount Financed in % | B30: =Inputs!B85 -> 0.8 | F30: Years to Break Even | G30: =IF(ISERROR(F59),"n/a",IF(F59>1,(F57+(F58/F59)),21)) -> 2.808177518
A31: Down Payment Percent | B31: =Inputs!B84 -> 0.2
A32: Down Payment Amount | B32: =(B2+B3)*B31 -> 268719.4
A33: Actual Amount Financed | B33: =(B2+B3)-B32 -> 1074877.6 | E33: Cash Flow
A34: Monthly Payment | B34: =-PMT(B28,B29,B33,) -> 113583.3633 | E34: Year | F34: Cash Flow | G34: Cumulative Cash Flow | H34: Absolute Value of Cumulative Cash Flow
A35: Total Interest | B35: =B36-B33 -> 1196789.666 | E35: 0 | F35: =G25 -> -1343597 | G35: =SUM(F35) -> -1343597 | H35: =ABS(G35) -> 1343597
A36: Total Amount Payed | B36: =B34*B29 -> 2271667.266 | E36: 1 | F36: =H25 -> 531602.0428 | G36: =SUM(F35:F36) -> -811994.9572 | H36: =ABS(G36) -> 811994.9572
E37: 2 | F37: =I25 -> 472535.1491 | G37: =SUM(F35:F37) -> -339459.8081 | H37: =ABS(G37) -> 339459.8081
A38: Percent Lost in Production | B38: 0.123089 | E38: 3 | F38: =J25 -> 420031.2437 | G38: =SUM(F35:F38) -> 80571.43558 | H38: 80571.43558
E39: 4 | F39: =K25 -> 373361.1055 | G39: =SUM(F35:F39) -> 453932.5411 | H39: 453932.5411
A40: Value of Milk Sizes | B40: Qty | C40: Price | D40: Total Daily Revenue | E40: 5 | F40: =L25 -> 331876.5382 | G40: =SUM(F35:F40) -> 785809.0793 | H40: 785809.0793
A41: Gallons | B41: =Outputs!B17 -> 113 | C41: =Inputs!B42 -> 5.16 | D41: =C41*B41 -> 583.08 | E41: 6 | F41: =M25 -> 295001.3673 | G41: =SUM(F35:F41) -> 1080810.447 | H41: 1080810.447
A42: Half Gallons | B42: =Outputs!B18 -> 226 | C42: =Inputs!B43 -> 4.96 | D42: =C42*B42 -> 1120.96 | E42: 7 | F42: =N25 -> 262223.4376 | G42: =SUM(F35:F42) -> 1343033.884 | H42: 1343033.884
A43: Quarts | B43: =Outputs!B19 -> 453 | C43: =Inputs!B44 -> 2.85 | D43: 1291.05 | E43: 8 | F43: =O25 -> 233087.5001 | G43: =SUM(F35:F43) -> 1576121.384 | H43: 1576121.384
A44: Pints | B44: =Outputs!B20+Outputs!B21 -> 911 | C44: =Inputs!B45 -> 1.64 | D44: 1494.04 | E44: 9 | F44: =P25 -> 207188.889 | G44: =SUM(F35:F44) -> 1783310.273 | H44: 1783310.273
A45: Leftover Milk | B45: ='Standardized Milk'!E32 -> 0.6651312644 | C45: =C41 -> 5.16 | D45: =C45*B45 -> 3.432077324 | E45: 10 | F45: =Q25 -> 184167.9013 | G45: =SUM(F35:F45) -> 1967478.175 | H45: 1967478.175
A46: Total Gallons | B46: =B41+(B42*0.5)+(B43*0.25)+(B44*0.125)+(B45*0.125) -> 453.2081414 | E46: 11 | F46: =R25 -> 163704.8012 | G46: =SUM(F35:F46) -> 2131182.976 | H46: 2131182.976
A47: Total gallons minus leftover | B47: =B46-B45*0.125 -> 453.125 | E47: 12 | F47: =S25 -> 145515.3788 | G47: =SUM(F35:F47) -> 2276698.355 | H47: 2276698.355 | M47: =H3/2 -> 82751.95312
E48: 13 | F48: =T25 -> 129347.0034 | G48: =SUM(F35:F48) -> 2406045.358 | H48: 2406045.358
E49: 14 | F49: =U25 -> 114975.1141 | G49: =SUM(F35:F49) -> 2521020.472 | H49: 2521020.472
E50: 15 | F50: =V25 -> 102200.1014 | G50: =SUM(F35:F50) -> 2623220.573 | H50: 2623220.573
E51: 16 | F51: =W25 -> 90844.53461 | G51: =SUM(F35:F51) -> 2714065.108 | H51: 2714065.108
E52: 17 | F52: =X25 -> 80750.69743 | G52: =SUM(F35:F52) -> 2794815.806 | H52: 2794815.806
E53: 18 | F53: =Y25 -> 71778.39772 | G53: =SUM(F35:F53) -> 2866594.203 | H53: 2866594.203
E54: 19 | F54: =Z25 -> 63803.02019 | G54: =SUM(F35:F54) -> 2930397.223 | H54: 2930397.223
E55: 20 | F55: =AA25 -> 56713.79573 | G55: =SUM(F35:F55) -> 2987111.019 | H55: 2987111.019
E57: A(last negative period) | F57: =IF(G55<0,E55,IF(G54<0,E54,IF(G53<0,E53,IF(G52<0,E52,IF(G51<0,E51,IF(G50<0,E50,IF(G49<0,E49,G57))))))) -> 2 | G57: =IF(G48<0,E48,IF(G47<0,E47,IF(G46<0,E46,IF(G45<0,E45,IF(G44<0,E44,IF(G43<0,E43,IF(G42<0,E42,H57))))))) -> 2 | H57: =IF(G41<0,E41,IF(G40<0,E40,IF(G39<0,E39,IF(G38<0,E38,IF(G37<0,E37,IF(G36<0,E36,IF(G35<0,E35,))))))) -> 2
E58: B(absolute value cumulative value period based on A) | F58: =IF(F57=0,H35,IF(F57=1,H36,IF(F57=2,H37,IF(F57=3,H38,IF(F57=4,H39,IF(F57=5,H40,IF(F57=6,H41,G58))))))) -> 339459.8081 | G58: =IF(F57=7,H42,IF(F57=8,H43,IF(F57=9,H44,IF(F57=10,H45,IF(F57=11,H46,IF(F57=12,H47,IF(F57=13,H48,H58))))))) -> FALSE | H58: =IF(F57=14,H49,IF(F57=15,H50,IF(F57=16,H51,IF(F57=17,H52,IF(F58=18,H53,IF(F58=19,H54,IF(F58=20,H55))))))) -> FALSE
E59: C(actual cash flow period after A) | F59: =IF(F57=0,F36,IF(F57=1,F37,IF(F57=2,F38,IF(F57=3,F39,IF(F57=4,F40,IF(F57=5,F41,IF(F57=6,F42,G59))))))) -> 420031.2437 | G59: =IF(F57=7,F43,IF(F57=8,F44,IF(F57=9,F45,IF(F57=10,F46,IF(F57=11,F47,IF(F57=12,F48,IF(F57=13,F49,H59))))))) -> FALSE | H59: =IF(F57=14,F50,IF(F57=15,F51,IF(F57=16,F52,IF(F57=17,F53,IF(F57=18,F54,IF(F57=19,F55,IF(F57=20,F56))))))) -> FALSE
A62: Extra income from Cream per day | B62: Qty | C62: Price | D62: Total Daily Revenue | E62: Yearly
A63: Quarts | B63: ='Standardized Milk'!C35 -> 27 | C63: ='Milk Pricing'!J204 -> 7.265555556 | D63: =C63*B63 -> 196.17 | E63: =D63*365.25 -> 71651.0925
A64: Pints | B64: =Outputs!C20+Outputs!C21 -> 56 | C64: ='Milk Pricing'!K204 -> 5.048 | D64: =C64*B64 -> 282.688 | E64: =D64*365.25 -> 103251.792
A65: Lost Income from Unused Product too smal to bottle: | B65: ='Standardized Milk'!E40 -> 0.5618178829 | C65: =C64 -> 5.048 | D65: =B65*C65 -> 2.836056673 | E65: 1035.8697

Sheet NPV_econ (hidden)
G1: Year 0 (investment year) | H1: Year 1 | I1: Year 2 | J1: Year 3 | K1: Year 4 | L1: Year 5 | M1: Year 6 | N1: Year 7 | O1: Year 8 | P1: Year 9 | Q1: Year 10 | R1: Year 11 | S1: Year 12 | T1: Year 13 | U1: Year 14 | V1: Year 15 | W1: Year 16 | X1: Year 17 | Y1: Year 18 | Z1: Year 19 | AA1: Year 20
A2: equipment cost | B2: ='Suggested Equipment'!B44+'Suggested Equipment'!B45 -> 1026740 | F2: Change in Revenue
A3: cost to build | B3: =Inputs!B36 -> 220857 | F3: Product sold (in gallons) | H3: =B47*365.25 -> 165503.9062 | I3: =H3 -> 165503.9062 | J3: =I3 -> 165503.9062 | K3: 165503.9062 | L3: 165503.9062 | M3: 165503.9062 | N3: 165503.9062 | O3: 165503.9062 | P3: 165503.9062 | Q3: 165503.9062 | R3: 165503.9062 | S3: 165503.9062 | T3: 165503.9062 | U3: 165503.9062 | V3: 165503.9062 | W3: 165503.9062 | X3: 165503.9062 | Y3: 165503.9062 | Z3: =Y3 -> 165503.9062 | AA3: 165503.9062
F4: Product revenue ($/unit) | H4: =SUM(D41:D44)*365.25 -> 1639654.732 | I4: =H4 -> 1639654.732 | J4: 1639654.732 | K4: 1639654.732 | L4: 1639654.732 | M4: 1639654.732 | N4: 1639654.732 | O4: 1639654.732 | P4: 1639654.732 | Q4: 1639654.732 | R4: 1639654.732 | S4: 1639654.732 | T4: 1639654.732 | U4: 1639654.732 | V4: 1639654.732 | W4: 1639654.732 | X4: 1639654.732 | Y4: 1639654.732 | Z4: 1639654.732 | AA4: 1639654.732
A5: total investment | B5: =SUM(B2:B3) -> 1247597 | F5: Opportunity cost of raw product ($/cwt)
F6: Value of remaining raw product ($/cwt) | H6: =B22 -> 1363142.124 | I6: =H6 -> 1363142.124 | J6: =I6 -> 1363142.124 | K6: 1363142.124 | L6: 1363142.124 | M6: 1363142.124 | N6: 1363142.124 | O6: 1363142.124 | P6: 1363142.124 | Q6: 1363142.124 | R6: 1363142.124 | S6: 1363142.124 | T6: 1363142.124 | U6: 1363142.124 | V6: 1363142.124 | W6: 1363142.124 | X6: 1363142.124 | Y6: 1363142.124 | Z6: =Y6 -> 1363142.124 | AA6: 1363142.124
A7: Terminal value of equipment | B7: 0.1 | F7: Cost of Farmstead Milk Lost | H7: =-((H4*B38)+(D45*365.25)+(SUM(E63:E65))) -> -379015.7818 | I7: =H7 -> -379015.7818 | J7: -379015.7818 | K7: -379015.7818 | L7: -379015.7818 | M7: -379015.7818 | N7: -379015.7818 | O7: -379015.7818 | P7: -379015.7818 | Q7: -379015.7818 | R7: -379015.7818 | S7: -379015.7818 | T7: -379015.7818 | U7: -379015.7818 | V7: -379015.7818 | W7: -379015.7818 | X7: -379015.7818 | Y7: -379015.7818 | Z7: -379015.7818 | AA7: -379015.7818
A8: Terminal value of building | B8: 0.05 | F8: Total annual change in Revenue | H8: =SUM(H4:H7) -> 2623781.075 | I8: =SUM(I4:I7) -> 2623781.075 | J8: 2623781.075 | K8: 2623781.075 | L8: 2623781.075 | M8: 2623781.075 | N8: 2623781.075 | O8: 2623781.075 | P8: 2623781.075 | Q8: 2623781.075 | R8: 2623781.075 | S8: 2623781.075 | T8: 2623781.075 | U8: 2623781.075 | V8: 2623781.075 | W8: 2623781.075 | X8: 2623781.075 | Y8: 2623781.075 | Z8: 2623781.075 | AA8: 2623781.075
F9: Change in Costs
F10: Labor ($/year) | H10: =B16 -> 39755.86694 | I10: =H10 -> 39755.86694 | J10: 39755.86694 | K10: 39755.86694 | L10: 39755.86694 | M10: 39755.86694 | N10: 39755.86694 | O10: 39755.86694 | P10: 39755.86694 | Q10: 39755.86694 | R10: 39755.86694 | S10: 39755.86694 | T10: 39755.86694 | U10: 39755.86694 | V10: 39755.86694 | W10: 39755.86694 | X10: 39755.86694 | Y10: =X10 -> 39755.86694 | Z10: 39755.86694 | AA10: 39755.86694
F11: Utilities (electric, water, sewage, gas) | H11: =B14 -> 40438 | I11: 40438 | J11: 40438 | K11: 40438 | L11: 40438 | M11: 40438 | N11: 40438 | O11: 40438 | P11: 40438 | Q11: 40438 | R11: 40438 | S11: 40438 | T11: 40438 | U11: 40438 | V11: 40438 | W11: 40438 | X11: 40438 | Y11: 40438 | Z11: 40438 | AA11: 40438
C12: Total cwt | D12: =Equipment!D11/100 -> 73350.30801 | F12: Supplies ((trash, packaging, cleaning, processing, other) | H12: =B15 -> 61899 | I12: 61899 | J12: 61899 | K12: 61899 | L12: 61899 | M12: 61899 | N12: 61899 | O12: 61899 | P12: 61899 | Q12: 61899 | R12: 61899 | S12: 61899 | T12: 61899 | U12: 61899 | V12: 61899 | W12: 61899 | X12: 61899 | Y12: 61899 | Z12: 61899 | AA12: 61899
C13: cwt processed | D13: =Equipment!B11/100 -> 14670.0616 | F13: Farm Cost (per CWT) | H13: =D12*B25 -> 1883635.91 | I13: =H13 -> 1883635.91 | J13: 1883635.91 | K13: 1883635.91 | L13: 1883635.91 | M13: 1883635.91 | N13: 1883635.91 | O13: 1883635.91 | P13: 1883635.91 | Q13: 1883635.91 | R13: 1883635.91 | S13: 1883635.91 | T13: 1883635.91 | U13: 1883635.91 | V13: 1883635.91 | W13: 1883635.91 | X13: 1883635.91 | Y13: 1883635.91 | Z13: 1883635.91 | AA13: 1883635.91
A14: Utilities | B14: =Inputs!B37 -> 40438 | C14: cwt conventional | D14: =D12-D13 -> 58680.24641 | F14: Annual Debt Repayment | H14: 0 | I14: =H14 -> 0 | J14: 0 | K14: 0 | L14: 0 | M14: 0 | N14: 0 | O14: 0 | P14: 0 | Q14: 0 | R14: 0 | S14: 0 | T14: 0 | U14: 0 | V14: 0 | W14: 0 | X14: 0 | Y14: 0 | Z14: 0 | AA14: 0
A15: Others Costs of Production | B15: =Inputs!B38 -> 61899 | F15: Total annual increase in costs | H15: =SUM(H10:H14) -> 2025728.777 | I15: =SUM(I10:I14) -> 2025728.777 | J15: 2025728.777 | K15: 2025728.777 | L15: 2025728.777 | M15: 2025728.777 | N15: 2025728.777 | O15: 2025728.777 | P15: 2025728.777 | Q15: 2025728.777 | R15: 2025728.777 | S15: 2025728.777 | T15: 2025728.777 | U15: 2025728.777 | V15: 2025728.777 | W15: 2025728.777 | X15: 2025728.777 | Y15: 2025728.777 | Z15: 2025728.777 | AA15: 2025728.777
A16: labor cost | B16: =(Inputs!B35)*D13 -> 39755.86694 | F16: Revenue from raw milk | H16: =$B$21 -> 1703927.655 | I16: =$B$21 -> 1703927.655 | J16: 1703927.655 | K16: 1703927.655 | L16: 1703927.655 | M16: 1703927.655 | N16: 1703927.655 | O16: 1703927.655 | P16: 1703927.655 | Q16: 1703927.655 | R16: 1703927.655 | S16: 1703927.655 | T16: 1703927.655 | U16: 1703927.655 | V16: 1703927.655 | W16: 1703927.655 | X16: 1703927.655 | Y16: 1703927.655 | Z16: 1703927.655 | AA16: 1703927.655
F17: cost of producing raw milk | H17: =H13 -> 1883635.91 | I17: =I13 -> 1883635.91 | J17: 1883635.91 | K17: 1883635.91 | L17: 1883635.91 | M17: 1883635.91 | N17: 1883635.91 | O17: 1883635.91 | P17: 1883635.91 | Q17: 1883635.91 | R17: 1883635.91 | S17: 1883635.91 | T17: 1883635.91 | U17: 1883635.91 | V17: 1883635.91 | W17: 1883635.91 | X17: 1883635.91 | Y17: 1883635.91 | Z17: 1883635.91 | AA17: 1883635.91
A18: yearly cost added | B18: =SUM(B15:B16) -> 101654.8669 | F18: Opportunity cost of raw product ($/cwt) | H18: =IF(H16-H17>0,H16-H17,0) -> 0 | I18: =IF(I16-I17>0,I16-I17,0) -> 0 | J18: 0 | K18: 0 | L18: 0 | M18: 0 | N18: 0 | O18: 0 | P18: 0 | Q18: 0 | R18: 0 | S18: 0 | T18: 0 | U18: 0 | V18: 0 | W18: 0 | X18: 0 | Y18: 0 | Z18: 0 | AA18: 0
F19: Gross Annual Increase in Income | H19: =H8 -> 2623781.075 | I19: 2623781.075 | J19: 2623781.075 | K19: 2623781.075 | L19: 2623781.075 | M19: 2623781.075 | N19: 2623781.075 | O19: 2623781.075 | P19: 2623781.075 | Q19: 2623781.075 | R19: 2623781.075 | S19: 2623781.075 | T19: 2623781.075 | U19: 2623781.075 | V19: 2623781.075 | W19: 2623781.075 | X19: 2623781.075 | Y19: 2623781.075 | Z19: 2623781.075 | AA19: 2623781.075
A20: Value of product sold (bottled milk in gallons) | B20: =IF(Inputs!B45="",3.43,Inputs!B45) -> 1.64 | F20: Net Annual Increase in Income | H20: =H19-H15-H18 -> 598052.2981 | I20: =I19-I15-I18 -> 598052.2981 | J20: 598052.2981 | K20: 598052.2981 | L20: 598052.2981 | M20: 598052.2981 | N20: 598052.2981 | O20: 598052.2981 | P20: 598052.2981 | Q20: 598052.2981 | R20: 598052.2981 | S20: 598052.2981 | T20: 598052.2981 | U20: 598052.2981 | V20: 598052.2981 | W20: 598052.2981 | X20: 598052.2981 | Y20: 598052.2981 | Z20: 598052.2981 | AA20: 598052.2981
A21: Starting value of all raw product (milk price) | B21: =D12*B24 -> 1703927.655 | F21: Terminal Value | G21: =(B2*B7)+(B3*B8) -> 113716.85
A22: Remaining value of raw fluid product (milk price) | B22: =(D12-D13)*B24 -> 1363142.124 | F22: Total Cash Inflow | H22: =H19 -> 2623781.075 | I22: =I19 -> 2623781.075 | J22: =J19 -> 2623781.075 | K22: 2623781.075 | L22: 2623781.075 | M22: 2623781.075 | N22: 2623781.075 | O22: 2623781.075 | P22: 2623781.075 | Q22: 2623781.075 | R22: 2623781.075 | S22: 2623781.075 | T22: 2623781.075 | U22: 2623781.075 | V22: 2623781.075 | W22: 2623781.075 | X22: 2623781.075 | Y22: 2623781.075 | Z22: 2623781.075 | AA22: 2623781.075
A23: Discount rate | B23: =B28+0.04 -> 0.125 | F23: Total Cash Outflow | G23: =IF(ISERROR(B32),(B5),B32+B33) -> 1247597 | H23: =H15 -> 2025728.777 | I23: 2025728.777 | J23: 2025728.777 | K23: 2025728.777 | L23: 2025728.777 | M23: 2025728.777 | N23: 2025728.777 | O23: 2025728.777 | P23: 2025728.777 | Q23: 2025728.777 | R23: 2025728.777 | S23: 2025728.777 | T23: 2025728.777 | U23: 2025728.777 | V23: 2025728.777 | W23: 2025728.777 | X23: 2025728.777 | Y23: 2025728.777 | Z23: 2025728.777 | AA23: 2025728.777
A24: Milk price (avg for tn based on dairy gauge) | B24: =Inputs!B41 -> 23.23 | F24: Net Cash Flow | G24: =-G23 -> -1247597 | H24: =H22-H23 -> 598052.2981 | I24: =I22-I23 -> 598052.2981 | J24: =J22-J23 -> 598052.2981 | K24: 598052.2981 | L24: 598052.2981 | M24: 598052.2981 | N24: 598052.2981 | O24: 598052.2981 | P24: 598052.2981 | Q24: 598052.2981 | R24: 598052.2981 | S24: 598052.2981 | T24: 598052.2981 | U24: 598052.2981 | V24: 598052.2981 | W24: 598052.2981 | X24: 598052.2981 | Y24: 598052.2981 | Z24: 598052.2981 | AA24: 598052.2981
A25: Cost to Produce Raw Milk | B25: =Inputs!B39 -> 25.68 | F25: Present Value | G25: =G24 -> -1247597 | H25: =H24/(1+($B$23))^1 -> 531602.0428 | I25: =I24/(1+($B$23))^2 -> 472535.1491 | J25: =J24/(1+($B$23))^3 -> 420031.2437 | K25: =K24/(1+($B$23))^4 -> 373361.1055 | L25: =L24/(1+($B$23))^5 -> 331876.5382 | M25: =M24/(1+($B$23))^6 -> 295001.3673 | N25: =N24/(1+($B$23))^7 -> 262223.4376 | O25: =O24/(1+($B$23))^8 -> 233087.5001 | P25: =P24/(1+($B$23))^9 -> 207188.889 | Q25: =Q24/(1+($B$23))^10 -> 184167.9013 | R25: =R24/(1+($B$23))^11 -> 163704.8012 | S25: =S24/(1+($B$23))^12 -> 145515.3788 | T25: =T24/(1+($B$23))^13 -> 129347.0034 | U25: =U24/(1+($B$23))^14 -> 114975.1141 | V25: =V24/(1+($B$23))^15 -> 102200.1014 | W25: =W24/(1+($B$23))^16 -> 90844.53461 | X25: =X24/(1+($B$23))^17 -> 80750.69743 | Y25: =Y24/(1+($B$23))^18 -> 71778.39772 | Z25: =Z24/(1+($B$23))^19 -> 63803.02019 | AA25: =AA24/(1+($B$23))^20 -> 56713.79573
A27: Debt Variables | D27: IRR | E27: =IFERROR(IRR(G24:AA24),"No Positive Values") -> 0.4791726945 | F27: Investment Length | G27: =Inputs!B11 -> 20
A28: Interest Rate | B28: =Inputs!B82 -> 0.085 | F28: Net Present Value | G28: =IF(G27=1,SUM(G25:H25),IF(G27=2,SUM(G25:I25),IF(G27=3,SUM(G25:J25),IF(G27=4,SUM(G25:K25),IF(G27=5,SUM(G25:L25),IF(G27=6,SUM(G25:M25),H28)))))) -> 3083111.019 | H28: =IF(G27=7,SUM(G25:N25),IF(G27=8,SUM(G25:O25),IF(G27=9,SUM(G25:P25),IF(G27=10,SUM(G25:Q25),IF(G27=11,SUM(G25:R25),IF(G27=12,SUM(G25:S25),I28)))))) -> 3083111.019 | I28: =IF(G27=13,SUM(G25:T25),IF(G27=14,SUM(G25:U25),IF(G27=15,SUM(G25:V25),IF(G27=16,SUM(G25:W25),IF(G27=17,SUM(G25:X25),J28))))) -> 3083111.019 | J28: =IF(G27=18,SUM(G25:Y25),IF(G27=19,SUM(G25:Z25),IF(G27=20,SUM(G25:AA25)))) -> 3083111.019
A29: Duration of Loan in Years | B29: =Inputs!B83 -> 20
A30: Amount Financed in % | B30: =Inputs!B85 -> 0.8 | F30: Years to Break Even | G30: =IF(ISERROR(F59),"n/a",IF(F59>1,(F57+(F58/F59)),21)) -> 2.579623092
A31: Down Payment Percent | B31: =Inputs!B84 -> 0.2
A32: Down Payment Amount | B32: =(B2+B3)*B31 -> 249519.4
A33: Actual Amount Financed | B33: =(B2+B3)-B32 -> 998077.6 | E33: Cash Flow
A34: Monthly Payment | B34: =-PMT(B28,B29,B33,) -> 105467.8325 | E34: Year | F34: Cash Flow | G34: Cumulative Cash Flow | H34: Absolute Value of Cumulative Cash Flow
A35: Total Interest | B35: =B36-B33 -> 1111279.05 | E35: 0 | F35: =G25 -> -1247597 | G35: =SUM(F35) -> -1247597 | H35: =ABS(G35) -> 1247597
A36: Total Amount Payed | B36: =B34*B29 -> 2109356.65 | E36: 1 | F36: =H25 -> 531602.0428 | G36: =SUM(F35:F36) -> -715994.9572 | H36: =ABS(G36) -> 715994.9572
E37: 2 | F37: =I25 -> 472535.1491 | G37: =SUM(F35:F37) -> -243459.8081 | H37: =ABS(G37) -> 243459.8081
A38: Percent Lost in Production | B38: 0.123089 | E38: 3 | F38: =J25 -> 420031.2437 | G38: =SUM(F35:F38) -> 176571.4356 | H38: 176571.4356
E39: 4 | F39: =K25 -> 373361.1055 | G39: =SUM(F35:F39) -> 549932.5411 | H39: 549932.5411
A40: Value of Milk Sizes | B40: Qty | C40: Price | D40: Total Daily Revenue | E40: 5 | F40: =L25 -> 331876.5382 | G40: =SUM(F35:F40) -> 881809.0793 | H40: 881809.0793
A41: Gallons | B41: =Outputs!B17 -> 113 | C41: =Inputs!B42 -> 5.16 | D41: =C41*B41 -> 583.08 | E41: 6 | F41: =M25 -> 295001.3673 | G41: =SUM(F35:F41) -> 1176810.447 | H41: 1176810.447
A42: Half Gallons | B42: =Outputs!B18 -> 226 | C42: =Inputs!B43 -> 4.96 | D42: =C42*B42 -> 1120.96 | E42: 7 | F42: =N25 -> 262223.4376 | G42: =SUM(F35:F42) -> 1439033.884 | H42: 1439033.884
A43: Quarts | B43: =Outputs!B19 -> 453 | C43: =Inputs!B44 -> 2.85 | D43: 1291.05 | E43: 8 | F43: =O25 -> 233087.5001 | G43: =SUM(F35:F43) -> 1672121.384 | H43: 1672121.384
A44: Pints | B44: =Outputs!B20+Outputs!B21 -> 911 | C44: =Inputs!B45 -> 1.64 | D44: 1494.04 | E44: 9 | F44: =P25 -> 207188.889 | G44: =SUM(F35:F44) -> 1879310.273 | H44: 1879310.273
A45: Leftover Milk | B45: ='Standardized Milk'!E32 -> 0.6651312644 | C45: =C41 -> 5.16 | D45: =C45*B45 -> 3.432077324 | E45: 10 | F45: =Q25 -> 184167.9013 | G45: =SUM(F35:F45) -> 2063478.175 | H45: 2063478.175
A46: Total Gallons | B46: =B41+(B42*0.5)+(B43*0.25)+(B44*0.125)+(B45*0.125) -> 453.2081414 | E46: 11 | F46: =R25 -> 163704.8012 | G46: =SUM(F35:F46) -> 2227182.976 | H46: 2227182.976
A47: Total gallons minus leftover | B47: =B46-B45*0.125 -> 453.125 | E47: 12 | F47: =S25 -> 145515.3788 | G47: =SUM(F35:F47) -> 2372698.355 | H47: 2372698.355 | M47: =H3/2 -> 82751.95312
E48: 13 | F48: =T25 -> 129347.0034 | G48: =SUM(F35:F48) -> 2502045.358 | H48: 2502045.358
E49: 14 | F49: =U25 -> 114975.1141 | G49: =SUM(F35:F49) -> 2617020.472 | H49: 2617020.472
E50: 15 | F50: =V25 -> 102200.1014 | G50: =SUM(F35:F50) -> 2719220.573 | H50: 2719220.573
E51: 16 | F51: =W25 -> 90844.53461 | G51: =SUM(F35:F51) -> 2810065.108 | H51: 2810065.108
E52: 17 | F52: =X25 -> 80750.69743 | G52: =SUM(F35:F52) -> 2890815.806 | H52: 2890815.806
E53: 18 | F53: =Y25 -> 71778.39772 | G53: =SUM(F35:F53) -> 2962594.203 | H53: 2962594.203
E54: 19 | F54: =Z25 -> 63803.02019 | G54: =SUM(F35:F54) -> 3026397.223 | H54: 3026397.223
E55: 20 | F55: =AA25 -> 56713.79573 | G55: =SUM(F35:F55) -> 3083111.019 | H55: 3083111.019
E57: A(last negative period) | F57: =IF(G55<0,E55,IF(G54<0,E54,IF(G53<0,E53,IF(G52<0,E52,IF(G51<0,E51,IF(G50<0,E50,IF(G49<0,E49,G57))))))) -> 2 | G57: =IF(G48<0,E48,IF(G47<0,E47,IF(G46<0,E46,IF(G45<0,E45,IF(G44<0,E44,IF(G43<0,E43,IF(G42<0,E42,H57))))))) -> 2 | H57: =IF(G41<0,E41,IF(G40<0,E40,IF(G39<0,E39,IF(G38<0,E38,IF(G37<0,E37,IF(G36<0,E36,IF(G35<0,E35,))))))) -> 2
E58: B(absolute value cumulative value period based on A) | F58: =IF(F57=0,H35,IF(F57=1,H36,IF(F57=2,H37,IF(F57=3,H38,IF(F57=4,H39,IF(F57=5,H40,IF(F57=6,H41,G58))))))) -> 243459.8081 | G58: =IF(F57=7,H42,IF(F57=8,H43,IF(F57=9,H44,IF(F57=10,H45,IF(F57=11,H46,IF(F57=12,H47,IF(F57=13,H48,H58))))))) -> FALSE | H58: =IF(F57=14,H49,IF(F57=15,H50,IF(F57=16,H51,IF(F57=17,H52,IF(F58=18,H53,IF(F58=19,H54,IF(F58=20,H55))))))) -> FALSE
E59: C(actual cash flow period after A) | F59: =IF(F57=0,F36,IF(F57=1,F37,IF(F57=2,F38,IF(F57=3,F39,IF(F57=4,F40,IF(F57=5,F41,IF(F57=6,F42,G59))))))) -> 420031.2437 | G59: =IF(F57=7,F43,IF(F57=8,F44,IF(F57=9,F45,IF(F57=10,F46,IF(F57=11,F47,IF(F57=12,F48,IF(F57=13,F49,H59))))))) -> FALSE | H59: =IF(F57=14,F50,IF(F57=15,F51,IF(F57=16,F52,IF(F57=17,F53,IF(F57=18,F54,IF(F57=19,F55,IF(F57=20,F56))))))) -> FALSE
A62: Extra income from Cream per day | B62: Qty | C62: Price | D62: Total Daily Revenue | E62: Yearly
A63: Quarts | B63: ='Standardized Milk'!C35 -> 27 | C63: ='Milk Pricing'!J204 -> 7.265555556 | D63: =C63*B63 -> 196.17 | E63: =D63*365.25 -> 71651.0925
A64: Pints | B64: =Outputs!C20+Outputs!C21 -> 56 | C64: ='Milk Pricing'!K204 -> 5.048 | D64: =C64*B64 -> 282.688 | E64: =D64*365.25 -> 103251.792
A65: Lost Income from Unused Product too smal to bottle: | B65: ='Standardized Milk'!E40 -> 0.5618178829 | C65: =C64 -> 5.048 | D65: =B65*C65 -> 2.836056673 | E65: 1035.8697

Sheet NPV_basic (hidden)
G1: Year 0 (investment year) | H1: Year 1 | I1: Year 2 | J1: Year 3 | K1: Year 4 | L1: Year 5 | M1: Year 6 | N1: Year 7 | O1: Year 8 | P1: Year 9 | Q1: Year 10 | R1: Year 11 | S1: Year 12 | T1: Year 13 | U1: Year 14 | V1: Year 15 | W1: Year 16 | X1: Year 17 | Y1: Year 18 | Z1: Year 19 | AA1: Year 20
A2: equipment cost | B2: ='Suggested Equipment'!B54+'Suggested Equipment'!B55 -> 716600 | F2: Change in Revenue
A3: cost to build | B3: =Inputs!B36 -> 220857 | F3: Product sold (in gallons) | H3: =B47*365.25 -> 165503.9062 | I3: =H3 -> 165503.9062 | J3: =I3 -> 165503.9062 | K3: 165503.9062 | L3: 165503.9062 | M3: 165503.9062 | N3: 165503.9062 | O3: 165503.9062 | P3: 165503.9062 | Q3: 165503.9062 | R3: 165503.9062 | S3: 165503.9062 | T3: 165503.9062 | U3: 165503.9062 | V3: 165503.9062 | W3: 165503.9062 | X3: 165503.9062 | Y3: 165503.9062 | Z3: =Y3 -> 165503.9062 | AA3: 165503.9062
F4: Product revenue ($/unit) | H4: =SUM(D41:D44)*365.25 -> 1639654.732 | I4: =H4 -> 1639654.732 | J4: 1639654.732 | K4: 1639654.732 | L4: 1639654.732 | M4: 1639654.732 | N4: 1639654.732 | O4: 1639654.732 | P4: 1639654.732 | Q4: 1639654.732 | R4: 1639654.732 | S4: 1639654.732 | T4: 1639654.732 | U4: 1639654.732 | V4: 1639654.732 | W4: 1639654.732 | X4: 1639654.732 | Y4: 1639654.732 | Z4: 1639654.732 | AA4: 1639654.732
A5: total investment | B5: =SUM(B2:B3) -> 937457 | F5: Opportunity cost of raw product ($/cwt)
F6: Value of remaining raw product ($/cwt) | H6: =B22 -> 1363142.124 | I6: =H6 -> 1363142.124 | J6: =I6 -> 1363142.124 | K6: 1363142.124 | L6: 1363142.124 | M6: 1363142.124 | N6: 1363142.124 | O6: 1363142.124 | P6: 1363142.124 | Q6: 1363142.124 | R6: 1363142.124 | S6: 1363142.124 | T6: 1363142.124 | U6: 1363142.124 | V6: 1363142.124 | W6: 1363142.124 | X6: 1363142.124 | Y6: 1363142.124 | Z6: =Y6 -> 1363142.124 | AA6: 1363142.124
A7: Terminal value of equipment | B7: 0.1 | F7: Cost of Farmstead Milk Lost | H7: =-((H4*B38)+(D45*365.25)+(SUM(E63:E65))) -> -379015.7818 | I7: =H7 -> -379015.7818 | J7: -379015.7818 | K7: -379015.7818 | L7: -379015.7818 | M7: -379015.7818 | N7: -379015.7818 | O7: -379015.7818 | P7: -379015.7818 | Q7: -379015.7818 | R7: -379015.7818 | S7: -379015.7818 | T7: -379015.7818 | U7: -379015.7818 | V7: -379015.7818 | W7: -379015.7818 | X7: -379015.7818 | Y7: -379015.7818 | Z7: -379015.7818 | AA7: -379015.7818
A8: Terminal value of building | B8: 0.05 | F8: Total annual change in Revenue | H8: =SUM(H4:H7) -> 2623781.075 | I8: =SUM(I4:I7) -> 2623781.075 | J8: 2623781.075 | K8: 2623781.075 | L8: 2623781.075 | M8: 2623781.075 | N8: 2623781.075 | O8: 2623781.075 | P8: 2623781.075 | Q8: 2623781.075 | R8: 2623781.075 | S8: 2623781.075 | T8: 2623781.075 | U8: 2623781.075 | V8: 2623781.075 | W8: 2623781.075 | X8: 2623781.075 | Y8: 2623781.075 | Z8: 2623781.075 | AA8: 2623781.075
F9: Change in Costs
F10: Labor ($/year) | H10: =B16 -> 39755.86694 | I10: =H10 -> 39755.86694 | J10: 39755.86694 | K10: 39755.86694 | L10: 39755.86694 | M10: 39755.86694 | N10: 39755.86694 | O10: 39755.86694 | P10: 39755.86694 | Q10: 39755.86694 | R10: 39755.86694 | S10: 39755.86694 | T10: 39755.86694 | U10: 39755.86694 | V10: 39755.86694 | W10: 39755.86694 | X10: 39755.86694 | Y10: =X10 -> 39755.86694 | Z10: 39755.86694 | AA10: 39755.86694
F11: Utilities (electric, water, sewage, gas) | H11: =B14 -> 40438 | I11: 40438 | J11: 40438 | K11: 40438 | L11: 40438 | M11: 40438 | N11: 40438 | O11: 40438 | P11: 40438 | Q11: 40438 | R11: 40438 | S11: 40438 | T11: 40438 | U11: 40438 | V11: 40438 | W11: 40438 | X11: 40438 | Y11: 40438 | Z11: 40438 | AA11: 40438
C12: Total cwt | D12: =Equipment!D11/100 -> 73350.30801 | F12: Supplies ((trash, packaging, cleaning, processing, other) | H12: =B15 -> 61899 | I12: 61899 | J12: 61899 | K12: 61899 | L12: 61899 | M12: 61899 | N12: 61899 | O12: 61899 | P12: 61899 | Q12: 61899 | R12: 61899 | S12: 61899 | T12: 61899 | U12: 61899 | V12: 61899 | W12: 61899 | X12: 61899 | Y12: 61899 | Z12: 61899 | AA12: 61899
C13: cwt processed | D13: =Equipment!B11/100 -> 14670.0616 | F13: Farm Cost (per CWT) | H13: =D12*B25 -> 1883635.91 | I13: =H13 -> 1883635.91 | J13: 1883635.91 | K13: 1883635.91 | L13: 1883635.91 | M13: 1883635.91 | N13: 1883635.91 | O13: 1883635.91 | P13: 1883635.91 | Q13: 1883635.91 | R13: 1883635.91 | S13: 1883635.91 | T13: 1883635.91 | U13: 1883635.91 | V13: 1883635.91 | W13: 1883635.91 | X13: 1883635.91 | Y13: 1883635.91 | Z13: 1883635.91 | AA13: 1883635.91
A14: Utilities | B14: =Inputs!B37 -> 40438 | C14: cwt conventional | D14: =D12-D13 -> 58680.24641 | F14: Annual Debt Repayment | H14: 0 | I14: =H14 -> 0 | J14: 0 | K14: 0 | L14: 0 | M14: 0 | N14: 0 | O14: 0 | P14: 0 | Q14: 0 | R14: 0 | S14: 0 | T14: 0 | U14: 0 | V14: 0 | W14: 0 | X14: 0 | Y14: 0 | Z14: 0 | AA14: 0
A15: Others Costs of Production | B15: =Inputs!B38 -> 61899 | F15: Total annual increase in costs | H15: =SUM(H10:H14) -> 2025728.777 | I15: =SUM(I10:I14) -> 2025728.777 | J15: 2025728.777 | K15: 2025728.777 | L15: 2025728.777 | M15: 2025728.777 | N15: 2025728.777 | O15: 2025728.777 | P15: 2025728.777 | Q15: 2025728.777 | R15: 2025728.777 | S15: 2025728.777 | T15: 2025728.777 | U15: 2025728.777 | V15: 2025728.777 | W15: 2025728.777 | X15: 2025728.777 | Y15: 2025728.777 | Z15: 2025728.777 | AA15: 2025728.777
A16: labor cost | B16: =(Inputs!B35)*D13 -> 39755.86694 | F16: Revenue from raw milk | H16: =$B$21 -> 1703927.655 | I16: =$B$21 -> 1703927.655 | J16: 1703927.655 | K16: 1703927.655 | L16: 1703927.655 | M16: 1703927.655 | N16: 1703927.655 | O16: 1703927.655 | P16: 1703927.655 | Q16: 1703927.655 | R16: 1703927.655 | S16: 1703927.655 | T16: 1703927.655 | U16: 1703927.655 | V16: 1703927.655 | W16: 1703927.655 | X16: 1703927.655 | Y16: 1703927.655 | Z16: 1703927.655 | AA16: 1703927.655
F17: cost of producing raw milk | H17: =H13 -> 1883635.91 | I17: =I13 -> 1883635.91 | J17: 1883635.91 | K17: 1883635.91 | L17: 1883635.91 | M17: 1883635.91 | N17: 1883635.91 | O17: 1883635.91 | P17: 1883635.91 | Q17: 1883635.91 | R17: 1883635.91 | S17: 1883635.91 | T17: 1883635.91 | U17: 1883635.91 | V17: 1883635.91 | W17: 1883635.91 | X17: 1883635.91 | Y17: 1883635.91 | Z17: 1883635.91 | AA17: 1883635.91
A18: yearly cost added | B18: =SUM(B15:B16) -> 101654.8669 | F18: Opportunity cost of raw product ($/cwt) | H18: =IF(H16-H17>0,H16-H17,0) -> 0 | I18: =IF(I16-I17>0,I16-I17,0) -> 0 | J18: 0 | K18: 0 | L18: 0 | M18: 0 | N18: 0 | O18: 0 | P18: 0 | Q18: 0 | R18: 0 | S18: 0 | T18: 0 | U18: 0 | V18: 0 | W18: 0 | X18: 0 | Y18: 0 | Z18: 0 | AA18: 0
F19: Gross Annual Increase in Income | H19: =H8 -> 2623781.075 | I19: 2623781.075 | J19: 2623781.075 | K19: 2623781.075 | L19: 2623781.075 | M19: 2623781.075 | N19: 2623781.075 | O19: 2623781.075 | P19: 2623781.075 | Q19: 2623781.075 | R19: 2623781.075 | S19: 2623781.075 | T19: 2623781.075 | U19: 2623781.075 | V19: 2623781.075 | W19: 2623781.075 | X19: 2623781.075 | Y19: 2623781.075 | Z19: 2623781.075 | AA19: 2623781.075
A20: Value of product sold (bottled milk in gallons) | B20: =IF(Inputs!B45="",3.43,Inputs!B45) -> 1.64 | F20: Net Annual Increase in Income | H20: =H19-H15-H18 -> 598052.2981 | I20: =I19-I15-I18 -> 598052.2981 | J20: 598052.2981 | K20: 598052.2981 | L20: 598052.2981 | M20: 598052.2981 | N20: 598052.2981 | O20: 598052.2981 | P20: 598052.2981 | Q20: 598052.2981 | R20: 598052.2981 | S20: 598052.2981 | T20: 598052.2981 | U20: 598052.2981 | V20: 598052.2981 | W20: 598052.2981 | X20: 598052.2981 | Y20: 598052.2981 | Z20: 598052.2981 | AA20: 598052.2981
A21: Starting value of all raw product (milk price) | B21: =D12*B24 -> 1703927.655 | F21: Terminal Value | G21: =(B2*B7)+(B3*B8) -> 82702.85
A22: Remaining value of raw fluid product (milk price) | B22: =(D12-D13)*B24 -> 1363142.124 | F22: Total Cash Inflow | H22: =H19 -> 2623781.075 | I22: =I19 -> 2623781.075 | J22: =J19 -> 2623781.075 | K22: 2623781.075 | L22: 2623781.075 | M22: 2623781.075 | N22: 2623781.075 | O22: 2623781.075 | P22: 2623781.075 | Q22: 2623781.075 | R22: 2623781.075 | S22: 2623781.075 | T22: 2623781.075 | U22: 2623781.075 | V22: 2623781.075 | W22: 2623781.075 | X22: 2623781.075 | Y22: 2623781.075 | Z22: 2623781.075 | AA22: 2623781.075
A23: Discount rate | B23: =B28+0.04 -> 0.125 | F23: Total Cash Outflow | G23: =IF(ISERROR(B32),(B5),B32+B33) -> 937457 | H23: =H15 -> 2025728.777 | I23: 2025728.777 | J23: 2025728.777 | K23: 2025728.777 | L23: 2025728.777 | M23: 2025728.777 | N23: 2025728.777 | O23: 2025728.777 | P23: 2025728.777 | Q23: 2025728.777 | R23: 2025728.777 | S23: 2025728.777 | T23: 2025728.777 | U23: 2025728.777 | V23: 2025728.777 | W23: 2025728.777 | X23: 2025728.777 | Y23: 2025728.777 | Z23: 2025728.777 | AA23: 2025728.777
A24: Milk price (avg for tn based on dairy gauge) | B24: =Inputs!B41 -> 23.23 | F24: Net Cash Flow | G24: =-G23 -> -937457 | H24: =H22-H23 -> 598052.2981 | I24: =I22-I23 -> 598052.2981 | J24: =J22-J23 -> 598052.2981 | K24: 598052.2981 | L24: 598052.2981 | M24: 598052.2981 | N24: 598052.2981 | O24: 598052.2981 | P24: 598052.2981 | Q24: 598052.2981 | R24: 598052.2981 | S24: 598052.2981 | T24: 598052.2981 | U24: 598052.2981 | V24: 598052.2981 | W24: 598052.2981 | X24: 598052.2981 | Y24: 598052.2981 | Z24: 598052.2981 | AA24: 598052.2981
A25: Cost to Produce Raw Milk | B25: =Inputs!B39 -> 25.68 | F25: Present Value | G25: =G24 -> -937457 | H25: =H24/(1+($B$23))^1 -> 531602.0428 | I25: =I24/(1+($B$23))^2 -> 472535.1491 | J25: =J24/(1+($B$23))^3 -> 420031.2437 | K25: =K24/(1+($B$23))^4 -> 373361.1055 | L25: =L24/(1+($B$23))^5 -> 331876.5382 | M25: =M24/(1+($B$23))^6 -> 295001.3673 | N25: =N24/(1+($B$23))^7 -> 262223.4376 | O25: =O24/(1+($B$23))^8 -> 233087.5001 | P25: =P24/(1+($B$23))^9 -> 207188.889 | Q25: =Q24/(1+($B$23))^10 -> 184167.9013 | R25: =R24/(1+($B$23))^11 -> 163704.8012 | S25: =S24/(1+($B$23))^12 -> 145515.3788 | T25: =T24/(1+($B$23))^13 -> 129347.0034 | U25: =U24/(1+($B$23))^14 -> 114975.1141 | V25: =V24/(1+($B$23))^15 -> 102200.1014 | W25: =W24/(1+($B$23))^16 -> 90844.53461 | X25: =X24/(1+($B$23))^17 -> 80750.69743 | Y25: =Y24/(1+($B$23))^18 -> 71778.39772 | Z25: =Z24/(1+($B$23))^19 -> 63803.02019 | AA25: =AA24/(1+($B$23))^20 -> 56713.79573
A27: Debt Variables | D27: IRR | E27: =IFERROR(IRR(G24:AA24),"No Positive Values") -> 0.6379186796 | F27: Investment Length | G27: =Inputs!B11 -> 20
A28: Interest Rate | B28: =Inputs!B82 -> 0.085 | F28: Net Present Value | G28: =IF(G27=1,SUM(G25:H25),IF(G27=2,SUM(G25:I25),IF(G27=3,SUM(G25:J25),IF(G27=4,SUM(G25:K25),IF(G27=5,SUM(G25:L25),IF(G27=6,SUM(G25:M25),H28)))))) -> 3393251.019 | H28: =IF(G27=7,SUM(G25:N25),IF(G27=8,SUM(G25:O25),IF(G27=9,SUM(G25:P25),IF(G27=10,SUM(G25:Q25),IF(G27=11,SUM(G25:R25),IF(G27=12,SUM(G25:S25),I28)))))) -> 3393251.019 | I28: =IF(G27=13,SUM(G25:T25),IF(G27=14,SUM(G25:U25),IF(G27=15,SUM(G25:V25),IF(G27=16,SUM(G25:W25),IF(G27=17,SUM(G25:X25),J28))))) -> 3393251.019 | J28: =IF(G27=18,SUM(G25:Y25),IF(G27=19,SUM(G25:Z25),IF(G27=20,SUM(G25:AA25)))) -> 3393251.019
A29: Duration of Loan in Years | B29: =Inputs!B83 -> 20
A30: Amount Financed in % | B30: =Inputs!B85 -> 0.8 | F30: Years to Break Even | G30: =IF(ISERROR(F59),"n/a",IF(F59>1,(F57+(F58/F59)),21)) -> 1.858888398
A31: Down Payment Percent | B31: =Inputs!B84 -> 0.2
A32: Down Payment Amount | B32: =(B2+B3)*B31 -> 187491.4
A33: Actual Amount Financed | B33: =(B2+B3)-B32 -> 749965.6 | E33: Cash Flow
A34: Monthly Payment | B34: =-PMT(B28,B29,B33,) -> 79249.59569 | E34: Year | F34: Cash Flow | G34: Cumulative Cash Flow | H34: Absolute Value of Cumulative Cash Flow
A35: Total Interest | B35: =B36-B33 -> 835026.3137 | E35: 0 | F35: =G25 -> -937457 | G35: =SUM(F35) -> -937457 | H35: =ABS(G35) -> 937457
A36: Total Amount Payed | B36: =B34*B29 -> 1584991.914 | E36: 1 | F36: =H25 -> 531602.0428 | G36: =SUM(F35:F36) -> -405854.9572 | H36: =ABS(G36) -> 405854.9572
E37: 2 | F37: =I25 -> 472535.1491 | G37: =SUM(F35:F37) -> 66680.19191 | H37: =ABS(G37) -> 66680.19191
A38: Percent Lost in Production | B38: 0.123089 | E38: 3 | F38: =J25 -> 420031.2437 | G38: =SUM(F35:F38) -> 486711.4356 | H38: 486711.4356
E39: 4 | F39: =K25 -> 373361.1055 | G39: =SUM(F35:F39) -> 860072.5411 | H39: 860072.5411
A40: Value of Milk Sizes | B40: Qty | C40: Price | D40: Total Daily Revenue | E40: 5 | F40: =L25 -> 331876.5382 | G40: =SUM(F35:F40) -> 1191949.079 | H40: 1191949.079
A41: Gallons | B41: =Outputs!B17 -> 113 | C41: =Inputs!B42 -> 5.16 | D41: =C41*B41 -> 583.08 | E41: 6 | F41: =M25 -> 295001.3673 | G41: =SUM(F35:F41) -> 1486950.447 | H41: 1486950.447
A42: Half Gallons | B42: =Outputs!B18 -> 226 | C42: =Inputs!B43 -> 4.96 | D42: =C42*B42 -> 1120.96 | E42: 7 | F42: =N25 -> 262223.4376 | G42: =SUM(F35:F42) -> 1749173.884 | H42: 1749173.884
A43: Quarts | B43: =Outputs!B19 -> 453 | C43: =Inputs!B44 -> 2.85 | D43: 1291.05 | E43: 8 | F43: =O25 -> 233087.5001 | G43: =SUM(F35:F43) -> 1982261.384 | H43: 1982261.384
A44: Pints | B44: =Outputs!B20+Outputs!B21 -> 911 | C44: =Inputs!B45 -> 1.64 | D44: 1494.04 | E44: 9 | F44: =P25 -> 207188.889 | G44: =SUM(F35:F44) -> 2189450.273 | H44: 2189450.273
A45: Leftover Milk | B45: ='Standardized Milk'!E32 -> 0.6651312644 | C45: =C41 -> 5.16 | D45: =C45*B45 -> 3.432077324 | E45: 10 | F45: =Q25 -> 184167.9013 | G45: =SUM(F35:F45) -> 2373618.175 | H45: 2373618.175
A46: Total Gallons | B46: =B41+(B42*0.5)+(B43*0.25)+(B44*0.125)+(B45*0.125) -> 453.2081414 | E46: 11 | F46: =R25 -> 163704.8012 | G46: =SUM(F35:F46) -> 2537322.976 | H46: 2537322.976
A47: Total gallons minus leftover | B47: =B46-B45*0.125 -> 453.125 | E47: 12 | F47: =S25 -> 145515.3788 | G47: =SUM(F35:F47) -> 2682838.355 | H47: 2682838.355 | M47: =H3/2 -> 82751.95312
E48: 13 | F48: =T25 -> 129347.0034 | G48: =SUM(F35:F48) -> 2812185.358 | H48: 2812185.358
E49: 14 | F49: =U25 -> 114975.1141 | G49: =SUM(F35:F49) -> 2927160.472 | H49: 2927160.472
E50: 15 | F50: =V25 -> 102200.1014 | G50: =SUM(F35:F50) -> 3029360.573 | H50: 3029360.573
E51: 16 | F51: =W25 -> 90844.53461 | G51: =SUM(F35:F51) -> 3120205.108 | H51: 3120205.108
E52: 17 | F52: =X25 -> 80750.69743 | G52: =SUM(F35:F52) -> 3200955.806 | H52: 3200955.806
E53: 18 | F53: =Y25 -> 71778.39772 | G53: =SUM(F35:F53) -> 3272734.203 | H53: 3272734.203
E54: 19 | F54: =Z25 -> 63803.02019 | G54: =SUM(F35:F54) -> 3336537.223 | H54: 3336537.223
E55: 20 | F55: =AA25 -> 56713.79573 | G55: =SUM(F35:F55) -> 3393251.019 | H55: 3393251.019
E57: A(last negative period) | F57: =IF(G55<0,E55,IF(G54<0,E54,IF(G53<0,E53,IF(G52<0,E52,IF(G51<0,E51,IF(G50<0,E50,IF(G49<0,E49,G57))))))) -> 1 | G57: =IF(G48<0,E48,IF(G47<0,E47,IF(G46<0,E46,IF(G45<0,E45,IF(G44<0,E44,IF(G43<0,E43,IF(G42<0,E42,H57))))))) -> 1 | H57: =IF(G41<0,E41,IF(G40<0,E40,IF(G39<0,E39,IF(G38<0,E38,IF(G37<0,E37,IF(G36<0,E36,IF(G35<0,E35,))))))) -> 1
E58: B(absolute value cumulative value period based on A) | F58: =IF(F57=0,H35,IF(F57=1,H36,IF(F57=2,H37,IF(F57=3,H38,IF(F57=4,H39,IF(F57=5,H40,IF(F57=6,H41,G58))))))) -> 405854.9572 | G58: =IF(F57=7,H42,IF(F57=8,H43,IF(F57=9,H44,IF(F57=10,H45,IF(F57=11,H46,IF(F57=12,H47,IF(F57=13,H48,H58))))))) -> FALSE | H58: =IF(F57=14,H49,IF(F57=15,H50,IF(F57=16,H51,IF(F57=17,H52,IF(F58=18,H53,IF(F58=19,H54,IF(F58=20,H55))))))) -> FALSE
E59: C(actual cash flow period after A) | F59: =IF(F57=0,F36,IF(F57=1,F37,IF(F57=2,F38,IF(F57=3,F39,IF(F57=4,F40,IF(F57=5,F41,IF(F57=6,F42,G59))))))) -> 472535.1491 | G59: =IF(F57=7,F43,IF(F57=8,F44,IF(F57=9,F45,IF(F57=10,F46,IF(F57=11,F47,IF(F57=12,F48,IF(F57=13,F49,H59))))))) -> FALSE | H59: =IF(F57=14,F50,IF(F57=15,F51,IF(F57=16,F52,IF(F57=17,F53,IF(F57=18,F54,IF(F57=19,F55,IF(F57=20,F56))))))) -> FALSE
A62: Extra income from Cream per day | B62: Qty | C62: Price | D62: Total Daily Revenue | E62: Yearly
A63: Quarts | B63: ='Standardized Milk'!C35 -> 27 | C63: ='Milk Pricing'!J204 -> 7.265555556 | D63: =C63*B63 -> 196.17 | E63: =D63*365.25 -> 71651.0925
A64: Pints | B64: =Outputs!C20+Outputs!C21 -> 56 | C64: ='Milk Pricing'!K204 -> 5.048 | D64: =C64*B64 -> 282.688 | E64: =D64*365.25 -> 103251.792
A65: Lost Income from Unused Product too smal to bottle: | B65: ='Standardized Milk'!E40 -> 0.5618178829 | C65: =C64 -> 5.048 | D65: =B65*C65 -> 2.836056673 | E65: 1035.8697
